Workbook

Sheet Navigation Pane
B2: Brisbane City Council
B3: Local Government Infrastructure Plan (LGIP)
B6: Version No | D6: 1 | F6: Date | G6: 2022-08-01 | J6: Author | K6: BCC
B8: Comments | D8: Version for LGIP amendment 1b – draft for public consultation
D10: Inputs | I10: Calculation | N10: Outputs
C12: General Input Sheet | H12: Calculation Function | M12: Summary Cost Schedule
C13: l Financial Inputs l Other "generic" inputs | H13: Catchment based summary of demand, infrastructure (existing and new) and cost allocation Infrastructure Cost calculation for each catchment Optional Discounted Cashflow | M13: l Summary of demand and cost allocation by catchment l Final costs by catchment
M15: Summary Cash flow Projections
C16: l Unit Cost of Passive Assets l Unit Cost of Land | M16: l Summary of forecast Cap X and anticipated IC revenues. Refer to Revenue and Cash Flow model for output.
C19: l Estimates of current and future demand (per cost catchment)
C21: Asset Inputs
C22: Existing Trunk Assets (& Catchments Served)
C23: Future Trunk Assets (& Catchments Served)

Sheet General Input Sheet
B2: ='Navigation Pane'!B2 -> Brisbane City Council
A3: Return to Navigation Pane
B4: General Input Sheet
B6: General Inputs | E6: Reference | G6: Value | I6: Comments
C8: Base Year | E8: YEAR | G8: 2021
G9: =YEAR -> 2021
C10: Term (between 15 and 30 years) | E10: TERM | G10: 15
B12: Application of Discounted Cash flow
C14: Calculate charges using Discounted Cash flow? (Y/N) | E14: DCFTRIGGER | G14: Yes
B16: General Financial Inputs
B18: Discount Rate (WACC):
C19: Average 10 Year Bond Rate | E19: TenYr
B21: Option 1 | C21: Basic Margin on 10 Yr. Bond Rate | E21: Margin | I21: 3.5% is the baseline figure quoted in LG Bulletin 06/01
C23: WACC: | E23: WACC1 | G23: 0.0591
B25: Option 2 | C25: Capital Structure (% Debt) | E25: Capstr
C26: Market Risk Premium | E26: Risk
C27: Asset Beta | E27: AssetBeta
C28: Cost of Debt | E28: Debt
C30: WACC: | E30: WACC2 | G30: 0.0591
C32: WACC Option to be applied in the calculation? | E32: WACC1 | G32: =IF(G14="No",0,IF(E32="WACC1",WACC1,IF(E32="WACC2",WACC2,"Error"))) -> 0.0591
B34: Escalation Rates
C35: Capital Escalation - Future Cap X | E35: PPI | G35: =(G38/G48)^(1/(E38-E48))-1 -> 0.01820477729 | I35: ten (10) yr. average Roads and Bridges Index between 2011 - 2021 (Mar Qtr.)
C37: Capital Indexation Rates - Historical (June Qtr.)
E38: =YEAR -> 2021 | G38: 119.78 | I38: three (3) yr. rolling average Roads and Bridges Index (ABS 6427, Table 17, Index 3101, Series ID: A2333727L)
E39: =E38-1 -> 2020 | G39: 118.02
E40: =E39-1 -> 2019 | G40: 114.56
E41: 2018 | G41: 112.03
E42: =E41-1 -> 2017 | G42: 110.64
E43: =E42-1 -> 2016 | G43: 110.54
E44: =E43-1 -> 2015
E45: 2014
E46: 2013
E47: 2012
E48: 2011 | G48: 100.0076
C51: Land Escalation | E51: LandInd | G51: =(G53/G63)^(1/(E53-E63))-1 -> 0.02011185319 | I51: ten (10) yr. average Consumer Price Index Roads between 2011 - 2021 (Mar Qtr.)
E53: =YEAR -> 2021 | G53: 117.5284486 | I53: three (3) yr. rolling average Consumer Price Index (ABS 6427, Table 17, Index 3101, Series ID: A2333727L)
E54: =E53-1 -> 2020
E55: =E54-1 -> 2019
E56: 2018
E57: =E56-1 -> 2017
E58: =E57-1 -> 2016 | G58: 108.2858073
E59: =E58-1 -> 2015
E60: 2014
E61: 2013
E62: 2012
E63: 2011 | G63: 96.30859889

Sheet Exist Trunk Assets - Transport
B1: ='Navigation Pane'!B2 -> Brisbane City Council
B2: Transport
B4: EXISTING TRUNK ASSETS
B6: Land Valuation Type | C6: Location
D8: Asset Data
B9: Basic Asset Data | E9: Basic Asset Valuation | J9: Refined Asset Value
B10: Asset ID | C10: Asset Name | D10: Length (m) | E10: Construction Unit Rate ($/m) | F10: Construction Cost | G10: Size of land (ha) (*) | H10: Land Unit Rate ($/m2) | I10: Land Value | J10: Valuation Year | K10: Current Replacement Cost
B12: Councils ID (from GIS, FAR, AMA etc.) | F12: May be calculated from unit rates OR unique values can be direct entered
B13: 10033-35220 | C13: NU035 | D13: 800 | E13: 10719.17625 | F13: =IFERROR(D13*E13,0) -> 8575341 | G13: 7240 | H13: 388.7310773 | I13: =IFERROR(G13*H13,"") -> 2814413 | J13: 2021 | K13: =IFERROR(ROUND((F13+I13),0),0) -> 11389754
B14: 10033-39601 | C14: MV100 | D14: 260 | E14: 48205.61538 | F14: 12533460 | G14: 2353 | H14: 0 | I14: 0 | J14: 2021 | K14: 12533460
B15: 10066-11347 | C15: RC265 | D15: 260 | E15: 10697.19615 | F15: 2781271 | G15: 2535 | H15: 412.9057199 | I15: 1046716 | J15: 2021 | K15: 3827987
B16: 10066-37612 | C16: RC265 | D16: 460 | E16: 8861.467391 | F16: 4076275 | G16: 4485 | H16: 208.6399108 | I16: 935750 | J16: 2021 | K16: 5012025
B17: 10067-10070 | C17: SC080 | D17: 360 | E17: 16397.58889 | F17: 5903132 | G17: 7776 | H17: 137.9016204 | I17: 1072323 | J17: 2021 | K17: 6975455
B18: 10067-15061 | C18: SC080 | D18: 140 | E18: 3143.442857 | F18: 440082 | G18: 3024 | H18: 248.9361772 | I18: 752783 | J18: 2021 | K18: 1192865
B19: 10067-15062 | C19: N/A | D19: 320 | E19: 8068.2625 | F19: 2581844 | G19: 3120 | H19: 770.5429487 | I19: 2404094 | J19: 2021 | K19: 4985938
B20: 10068-10069 | C20: SC620 | D20: 320 | E20: 13610.11875 | F20: 4355238 | G20: 3120 | H20: 305.1907051 | I20: 952195 | J20: 2021 | K20: 5307433
B21: 10068-15062 | C21: N/A | D21: 560 | E21: 8068.2625 | F21: 4518227 | G21: 5460 | H21: 770.5430403 | I21: 4207165 | J21: 2021 | K21: 8725392
B22: 10068-37372 | C22: SC620 | D22: 410 | E22: 17971.58537 | F22: 7368350 | G22: 3997.5 | H22: 193.5502189 | I22: 773717 | J22: 2021 | K22: 8142067
B23: 10069-10068 | C23: SC620 | D23: 320 | E23: 13610.11875 | F23: 4355238 | G23: 3120 | H23: 305.1907051 | I23: 952195 | J23: 2021 | K23: 5307433
B24: 10069-10071 | C24: SC620 | D24: 480 | E24: 13330.29792 | F24: 6398543 | G24: 4680 | H24: 200.2237179 | I24: 937047 | J24: 2021 | K24: 7335590
B25: 10070-10067 | C25: SC080 | D25: 360 | E25: 16397.58889 | F25: 5903132 | G25: 7776 | H25: 137.9016204 | I25: 1072323 | J25: 2021 | K25: 6975455
B26: 10070-37368 | C26: SC080 | D26: 790 | E26: 7276.203797 | F26: 5748201 | G26: 17064 | H26: 135.4437412 | I26: 2311212 | J26: 2021 | K26: 8059413
B27: 10071-10069 | C27: SC620 | D27: 480 | E27: 13330.29792 | F27: 6398543 | G27: 4680 | H27: 200.2237179 | I27: 937047 | J27: 2021 | K27: 7335590
B28: 10071-37376 | C28: SC620 | D28: 420 | E28: 1767.190476 | F28: 742220 | G28: 4095 | H28: 203.7291819 | I28: 834271 | J28: 2021 | K28: 1576491
B29: 10072-25500 | C29: RC265 | D29: 380 | E29: 8843.357895 | F29: 3360476 | G29: 3705 | H29: 233.8369771 | I29: 866366 | J29: 2021 | K29: 4226842
B30: 10072-37371 | C30: RC265 | D30: 100 | E30: 7883.98 | F30: 788398 | G30: 975 | H30: 437.1517949 | I30: 426223 | J30: 2021 | K30: 1214621
B31: 10073-15162 | C31: RB265 | D31: 170 | E31: 2621.505882 | F31: 445656 | G31: 1657.5 | H31: 481.7266968 | I31: 798462 | J31: 2021 | K31: 1244118
B32: 10073-37612 | C32: RB265 | D32: 300 | E32: 13884.1 | F32: 4165230 | G32: 2925 | H32: 369.6109402 | I32: 1081112 | J32: 2021 | K32: 5246342
B33: 10074-34821 | C33: N/A | D33: 530 | E33: 9810.109434 | F33: 5199358 | G33: 11448 | H33: 662.7599581 | I33: 7587276 | J33: 2021 | K33: 12786634
B34: 10074-37614 | C34: SC180 | D34: 460 | E34: 12076.19565 | F34: 5555050 | G34: 9936 | H34: 158.7337963 | I34: 1577179 | J34: 2021 | K34: 7132229
B35: 10075-11362 | C35: RC104 | D35: 310 | E35: 10913.89677 | F35: 3383308 | G35: 8416.5 | H35: 139.4826828 | I35: 1173956 | J35: 2021 | K35: 4557264
B36: 10075-37612 | C36: RC104 | D36: 340 | E36: 6340.923529 | F36: 2155914 | G36: 9231 | H36: 145.7541978 | I36: 1345457 | J36: 2021 | K36: 3501371
B37: 10076-15162 | C37: RB265 | D37: 230 | E37: 3663.795652 | F37: 842673 | G37: 2242.5 | H37: 311.7302118 | I37: 699055 | J37: 2021 | K37: 1541728
B38: 10076-15164 | C38: RB265 | D38: 530 | E38: 4584.324528 | F38: 2429692 | G38: 5167.5 | H38: 410.5188195 | I38: 2121356 | J38: 2021 | K38: 4551048
B39: 10092-10093 | C39: PA390 | D39: 1610 | E39: 857.7850932 | F39: 1381034 | G39: 14570.5 | H39: 250.1834529 | I39: 3645298 | J39: 2021 | K39: 5026332
B40: 10093-10092 | C40: PA390 | D40: 1610 | E40: 857.7850932 | F40: 1381034 | G40: 14570.5 | H40: 250.1834529 | I40: 3645298 | J40: 2021 | K40: 5026332
B41: 10228-10245 | C41: N/A | D41: 190 | E41: 13776.07895 | F41: 2617455 | G41: 4104 | H41: 786.1291423 | I41: 3226274 | J41: 2021 | K41: 5843729
B42: 10228-10383 | C42: TL499 | D42: 180 | E42: 3337.5 | F42: 600750 | G42: 3888 | H42: 513.9503601 | I42: 1998239 | J42: 2021 | K42: 2598989
B43: 10228-14436 | C43: TL075 | D43: 310 | E43: 2637.6 | F43: 817656 | G43: 3022.5 | H43: 598.3430935 | I43: 1808492 | J43: 2021 | K43: 2626148
B44: 10240-38832 | C44: N/A | D44: 240 | E44: 3663.4 | F44: 879216 | G44: 8784 | H44: 211.1824909 | I44: 1855027 | J44: 2021 | K44: 2734243
B45: 10245-10228 | C45: N/A | D45: 190 | E45: 13776.07895 | F45: 2617455 | G45: 4104 | H45: 786.1291423 | I45: 3226274 | J45: 2021 | K45: 5843729
B46: 10245-10366 | C46: TJ170 | D46: 280 | E46: 11694.59286 | F46: 3274486 | G46: 9072 | H46: 515.1951058 | I46: 4673850 | J46: 2021 | K46: 7948336
B47: 10245-37022 | C47: TJ170 | D47: 250 | E47: 9257.908 | F47: 2314477 | G47: 5400 | H47: 681.3148148 | I47: 3679100 | J47: 2021 | K47: 5993577
B48: 10278-18829 | C48: SG350 | D48: 390 | E48: 2153.017949 | F48: 839677 | G48: 3802.5 | H48: 349.4051282 | I48: 1328613 | J48: 2021 | K48: 2168290
B49: 10278-37190 | C49: SG435 | D49: 90 | E49: 14733.56667 | F49: 1326021 | G49: 1944 | H49: 612.2587449 | I49: 1190231 | J49: 2021 | K49: 2516252
B50: 10278-39609 | C50: SG435 | D50: 170 | E50: 8740.529412 | F50: 1485890 | G50: 5508 | H50: 402.72313 | I50: 2218199 | J50: 2021 | K50: 3704089
B51: 10286-25678 | C51: SG435 | D51: 130 | E51: 11520.54615 | F51: 1497671 | G51: 2808 | H51: 633.1791311 | I51: 1777967 | J51: 2021 | K51: 3275638
B52: 10286-37191 | C52: SG435 | D52: 60 | E52: 31165.71667 | F52: 1869943 | G52: 1296 | H52: 1319.128858 | I52: 1709591 | J52: 2021 | K52: 3579534
B53: 10287-37190 | C53: SG435 | D53: 200 | E53: 12221.935 | F53: 2444387 | G53: 6480 | H53: 409.9506173 | I53: 2656480 | J53: 2021 | K53: 5100867
B54: 10287-37191 | C54: SG435 | D54: 210 | E54: 22484.25714 | F54: 4721694 | G54: 4536 | H54: 887.5253527 | I54: 4025815 | J54: 2021 | K54: 8747509
B55: 10289-37177 | C55: SG435 | D55: 180 | E55: 17984.08333 | F55: 3237135 | G55: 5832 | H55: 383.8055556 | I55: 2238354 | J55: 2021 | K55: 5475489
B56: 10289-39609 | C56: SG435 | D56: 120 | E56: 14615.75833 | F56: 1753891 | G56: 2592 | H56: 1079.109182 | I56: 2797051 | J56: 2021 | K56: 4550942
B57: 10290-10294 | C57: RI490 | D57: 170 | E57: 23461.5 | F57: 3988455 | G57: 1657.5 | H57: 1250.242534 | I57: 2072277 | J57: 2021 | K57: 6060732
B58: 10290-37177 | C58: RI490 | D58: 420 | E58: 6674.338095 | F58: 2803222 | G58: 4095 | H58: 834.9142857 | I58: 3418974 | J58: 2021 | K58: 6222196
B59: 10291-37171 | C59: RI050 | D59: 200 | E59: 1403.1 | F59: 280620 | G59: 1950 | H59: 361.085641 | I59: 704117 | J59: 2021 | K59: 984737
B60: 10291-37173 | C60: RI050 | D60: 200 | E60: 3668.76 | F60: 733752 | G60: 1950 | H60: 1095.780513 | I60: 2136772 | J60: 2021 | K60: 2870524
B61: 10292-10315 | C61: RI400 | D61: 330 | E61: 7429.693939 | F61: 2451799 | G61: 7128 | H61: 669.0371773 | I61: 4768897 | J61: 2021 | K61: 7220696
B62: 10292-37176 | C62: RI400 | D62: 310 | E62: 3802.067742 | F62: 1178641 | G62: 6696 | H62: 518.7862903 | I62: 3473793 | J62: 2021 | K62: 4652434
B63: 10294-10290 | C63: RI490 | D63: 170 | E63: 23461.5 | F63: 3988455 | G63: 1657.5 | H63: 1250.242534 | I63: 2072277 | J63: 2021 | K63: 6060732
B64: 10294-10304 | C64: RI490 | D64: 140 | E64: 19967.22143 | F64: 2795411 | G64: 1365 | H64: 1143.188278 | I64: 1560452 | J64: 2021 | K64: 4355863
B65: 10295-10327 | C65: SI604 | D65: 330 | E65: 11400.13636 | F65: 3762045 | G65: 3217.5 | H65: 781.0887335 | I65: 2513153 | J65: 2021 | K65: 6275198
B66: 10295-10332 | C66: SI604 | D66: 180 | E66: 12273.16111 | F66: 2209169 | G66: 1755 | H66: 1216.119088 | I66: 2134289 | J66: 2021 | K66: 4343458
B67: 10300-37160 | C67: N/A | D67: 200 | E67: 8068.26 | F67: 1613652 | G67: 1950 | H67: 770.5430769 | I67: 1502559 | J67: 2021 | K67: 3116211
B68: 10300-37161 | C68: N/A | D68: 280 | E68: 8068.264286 | F68: 2259114 | G68: 2730 | H68: 770.5428571 | I68: 2103582 | J68: 2021 | K68: 4362696
B69: 10301-37156 | C69: N/A | D69: 490 | E69: 8068.263265 | F69: 3953449 | G69: 4778 | H69: 770.4623273 | I69: 3681269 | J69: 2021 | K69: 7634718
B70: 10301-37160 | C70: N/A | D70: 530 | E70: 8068.262264 | F70: 4276179 | G70: 5168 | H70: 770.4684598 | I70: 3981781 | J70: 2021 | K70: 8257960
B71: 10304-10294 | C71: RI490 | D71: 140 | E71: 19967.22143 | F71: 2795411 | G71: 1365 | H71: 1143.188278 | I71: 1560452 | J71: 2021 | K71: 4355863
B72: 10304-37171 | C72: RI490 | D72: 360 | E72: 10101.31667 | F72: 3636474 | G72: 3510 | H72: 771.3282051 | I72: 2707362 | J72: 2021 | K72: 6343836
B73: 10305-37150 | C73: QG450 | D73: 470 | E73: 2422.723404 | F73: 1138680 | G73: 4253.5 | H73: 1286.086752 | I73: 5470370 | J73: 2021 | K73: 6609050
B74: 10305-37163 | C74: QG450 | D74: 850 | E74: 7056.42 | F74: 5997957 | G74: 15385 | H74: 519.5105622 | I74: 7992670 | J74: 2021 | K74: 13990627
B75: 10307-10815 | C75: QG890 | D75: 430 | E75: 11050.07209 | F75: 4751531 | G75: 4192.5 | H75: 727.8511628 | I75: 3051516 | J75: 2021 | K75: 7803047
B76: 10307-37149 | C76: QG890 | D76: 200 | E76: 11076.835 | F76: 2215367 | G76: 1950 | H76: 1214.71641 | I76: 2368697 | J76: 2021 | K76: 4584064
B77: 10312-37163 | C77: N/A | D77: 80 | E77: 13285.275 | F77: =IFERROR(D77*E77,0) -> 1062822 | G77: 1560 | H77: 0 | I77: =IFERROR(G77*H77,"") -> 0 | J77: 2021 | K77: =IFERROR(ROUND((F77+I77),0),0) -> 1062822
B78: 10315-10292 | C78: RI400 | D78: 330 | E78: 7429.693939 | F78: 2451799 | G78: 10692 | H78: 446.0247849 | I78: 4768897 | J78: 2021 | K78: 7220696
B79: 10315-10334 | C79: RI400 | D79: 140 | E79: 7041.057143 | F79: 985748 | G79: 3024 | H79: 552.3310185 | I79: 1670249 | J79: 2021 | K79: 2655997
B80: 10320-10326 | C80: RI400 | D80: 370 | E80: 6851.143243 | F80: 2534923 | G80: 7992 | H80: 1200.558308 | I80: 9594862 | J80: 2021 | K80: 12129785
B81: 10320-37044 | C81: RI400 | D81: 280 | E81: 10947.08571 | F81: 3065184 | G81: 6048 | H81: 1635.705853 | I81: 9892749 | J81: 2021 | K81: 12957933
B82: 10321-10325 | C82: RI420 | D82: 170 | E82: 10118.23529 | F82: 1720100 | G82: 3077 | H82: 566.6217095 | I82: 1743495 | J82: 2021 | K82: 3463595
B83: 10321-37044 | C83: RI420 | D83: 370 | E83: 5343.105405 | F83: 1976949 | G83: 6697 | H83: 666.1990443 | I83: 4461535 | J83: 2021 | K83: 6438484
B84: 10323-10329 | C84: SI428 | D84: 240 | E84: 6852.729167 | F84: 1644655 | G84: 2340 | H84: 1050.142308 | I84: 2457333 | J84: 2021 | K84: 4101988
B85: 10323-14521 | C85: SI428 | D85: 70 | E85: 3928.457143 | F85: 274992 | G85: 682.5 | H85: 976.6446886 | I85: 666560 | J85: 2021 | K85: 941552
B86: 10324-37046 | C86: RI065 | D86: 400 | E86: 7964.96 | F86: 3185984 | G86: 3900 | H86: 1503.991026 | I86: 5865565 | J86: 2021 | K86: 9051549
B87: 10324-37053 | C87: RI065 | D87: 300 | E87: 21943.11 | F87: 6582933 | G87: 2925 | H87: 1786.010256 | I87: 5224080 | J87: 2021 | K87: 11807013
B88: 10325-10321 | C88: RI420 | D88: 170 | E88: 10118.23529 | F88: 1720100 | G88: 3077 | H88: 566.6217095 | I88: 1743495 | J88: 2021 | K88: 3463595
B89: 10325-36035 | C89: RI420 | D89: 340 | E89: 5783.35 | F89: 1966339 | G89: 6154 | H89: 621.3765031 | I89: 3823951 | J89: 2021 | K89: 5790290
B90: 10326-10320 | C90: RI400 | D90: 370 | E90: 6851.143243 | F90: 2534923 | G90: 7992 | H90: 1200.558308 | I90: 9594862 | J90: 2021 | K90: 12129785
B91: 10326-37045 | C91: RI400 | D91: 200 | E91: 8703.635 | F91: 1740727 | G91: 4320 | H91: 1938.979398 | I91: 8376391 | J91: 2021 | K91: 10117118
B92: 10327-10295 | C92: SI604 | D92: 330 | E92: 11400.13636 | F92: 3762045 | G92: 3217.5 | H92: 781.0887335 | I92: 2513153 | J92: 2021 | K92: 6275198
B93: 10327-37177 | C93: SI604 | D93: 100 | E93: 6454.33 | F93: 645433 | G93: 975 | H93: 1313.152821 | I93: 1280324 | J93: 2021 | K93: 1925757
B94: 10328-37040 | C94: SI004 | D94: 160 | E94: 24935.64375 | F94: 3989703 | G94: 1560 | H94: 2654.259615 | I94: 4140645 | J94: 2021 | K94: 8130348
B95: 10328-37042 | C95: SI004 | D95: 300 | E95: 24394.72 | F95: 7318416 | G95: 2925 | H95: 1790.818462 | I95: 5238144 | J95: 2021 | K95: 12556560
B96: 10329-10323 | C96: SI428 | D96: 240 | E96: 6852.729167 | F96: 1644655 | G96: 2340 | H96: 1050.142308 | I96: 2457333 | J96: 2021 | K96: 4101988
B97: 10329-37034 | C97: SI428 | D97: 340 | E97: 6617 | F97: 2249780 | G97: 3315 | H97: 795.7547511 | I97: 2637927 | J97: 2021 | K97: 4887707
B98: 10330-37030 | C98: SI822 | D98: 930 | E98: 859.6032258 | F98: 799431 | G98: 9067.5 | H98: 232.5806452 | I98: 2108925 | J98: 2021 | K98: 2908356
B99: 10330-37037 | C99: SI822 | D99: 120 | E99: 6661.925 | F99: 799431 | G99: 1170 | H99: 1886.87265 | I99: 2207641 | J99: 2021 | K99: 3007072
B100: 10331-37035 | C100: SI188 | D100: 120 | E100: 5773.358333 | F100: 692803 | G100: 1170 | H100: 1217.433333 | I100: 1424397 | J100: 2021 | K100: 2117200
B101: 10331-37036 | C101: SI188 | D101: 190 | E101: 12735.54211 | F101: 2419753 | G101: 1852.5 | H101: 835.5411606 | I101: 1547840 | J101: 2021 | K101: 3967593
B102: 10332-10295 | C102: SI604 | D102: 180 | E102: 12273.16111 | F102: 2209169 | G102: 1755 | H102: 1216.119088 | I102: 2134289 | J102: 2021 | K102: 4343458
B103: 10332-14760 | C103: SI604 | D103: 220 | E103: 11200.19091 | F103: 2464042 | G103: 2145 | H103: 1237.232168 | I103: 2653863 | J103: 2021 | K103: 5117905
B104: 10334-10315 | C104: RI400 | D104: 140 | E104: 7041.057143 | F104: 985748 | G104: 3024 | H104: 552.3310185 | I104: 1670249 | J104: 2021 | K104: 2655997
B105: 10334-37044 | C105: RI400 | D105: 210 | E105: 15777.1 | F105: 3313191 | G105: 6804 | H105: 775.3156966 | I105: 5275248 | J105: 2021 | K105: 8588439
B106: 10335-37037 | C106: N/A | D106: 130 | E106: 13285.26923 | F106: 1727085 | G106: 2535 | H106: 0 | I106: 0 | J106: 2021 | K106: 1727085
B107: 10335-37181 | C107: SI188 | D107: 270 | E107: 6626.203704 | F107: 1789075 | G107: 5265 | H107: 510.3876543 | I107: 2687191 | J107: 2021 | K107: 4476266
B108: 10336-10344 | C108: SI604 | D108: 220 | E108: 10247.44091 | F108: 2254437 | G108: 2145 | H108: 928.3473193 | I108: 1991305 | J108: 2021 | K108: 4245742
B109: 10336-37181 | C109: SI604 | D109: 240 | E109: 15007.95 | F109: 3601908 | G109: 2340 | H109: 1188.555128 | I109: 2781219 | J109: 2021 | K109: 6383127
B110: 10338-10346 | C110: TH130 | D110: 680 | E110: 5328.320588 | F110: 3623258 | G110: 14688 | H110: 336.3558007 | I110: 4940394 | J110: 2021 | K110: 8563652
B111: 10338-37028 | C111: TH130 | D111: 350 | E111: 15666.87429 | F111: 5483406 | G111: 7560 | H111: 492.5838624 | I111: 3723934 | J111: 2021 | K111: 9207340
B112: 10339-37182 | C112: TH090 | D112: 430 | E112: 22605.22558 | F112: 9720247 | G112: 8385 | H112: 435.9480024 | I112: 3655424 | J112: 2021 | K112: 13375671
B113: 10339-37204 | C113: TH090 | D113: 210 | E113: 38256.86667 | F113: 8033942 | G113: 4095 | H113: 864.3714286 | I113: 3539601 | J113: 2021 | K113: 11573543
B114: 10340-37195 | C114: TH130 | D114: 120 | E114: 10211.50833 | F114: 1225381 | G114: 2592 | H114: 738.0902778 | I114: 1913130 | J114: 2021 | K114: 3138511
B115: 10340-39582 | C115: TH130 | D115: 260 | E115: 11001.62308 | F115: 2860422 | G115: 5616 | H115: 474.3133903 | I115: 2663744 | J115: 2021 | K115: 5524166
B116: 10341-10342 | C116: TH130 | D116: 200 | E116: 13709.81 | F116: 2741962 | G116: 4320 | H116: 623.5314815 | I116: 2693656 | J116: 2021 | K116: 5435618
B117: 10341-37202 | C117: TH130 | D117: 150 | E117: 7469.906667 | F117: 1120486 | G117: 3240 | H117: 404.5296296 | I117: 1310676 | J117: 2021 | K117: 2431162
B118: 10342-10341 | C118: TH130 | D118: 200 | E118: 13709.81 | F118: 2741962 | G118: 4320 | H118: 623.5314815 | I118: 2693656 | J118: 2021 | K118: 5435618
B119: 10342-37204 | C119: TH130 | D119: 310 | E119: 8815.809677 | F119: 2732901 | G119: 6696 | H119: 513.2050478 | I119: 3436421 | J119: 2021 | K119: 6169322
B120: 10343-14783 | C120: N/A | D120: 60 | E120: 8068.25 | F120: 484095 | G120: 585 | H120: 770.5435897 | I120: 450768 | J120: 2021 | K120: 934863
B121: 10343-37182 | C121: N/A | D121: 140 | E121: 8068.264286 | F121: 1129557 | G121: 1365 | H121: 770.5428571 | I121: 1051791 | J121: 2021 | K121: 2181348
B122: 10344-10336 | C122: SI604 | D122: 220 | E122: 10247.44091 | F122: 2254437 | G122: 2145 | H122: 928.3473193 | I122: 1991305 | J122: 2021 | K122: 4245742
B123: 10344-14761 | C123: SI604 | D123: 80 | E123: 19257.7625 | F123: 1540621 | G123: 780 | H123: 1924.339744 | I123: 1500985 | J123: 2021 | K123: 3041606
B124: 10346-10338 | C124: TH130 | D124: 680 | E124: 5328.320588 | F124: 3623258 | G124: 14688 | H124: 336.3558007 | I124: 4940394 | J124: 2021 | K124: 8563652
B125: 10346-37204 | C125: TH130 | D125: 620 | E125: 21559.27742 | F125: 13366752 | G125: 13392 | H125: 476.6141726 | I125: 6382817 | J125: 2021 | K125: 19749569
B126: 10347-37205 | C126: UH995 | D126: 100 | E126: 10223.03 | F126: 1022303 | G126: 1195 | H126: 564.5966527 | I126: 674693 | J126: 2021 | K126: 1696996
B127: 10347-39395 | C127: UH995 | D127: 110 | E127: 8530.318182 | F127: 938335 | G127: 1314.5 | H127: 366.4960061 | I127: 481759 | J127: 2021 | K127: 1420094
B128: 10348-10349 | C128: TJ170 | D128: 520 | E128: 4867.365385 | F128: 2531030 | G128: 11232 | H128: 461.5464744 | I128: 5184090 | J128: 2021 | K128: 7715120
B129: 10348-10365 | C129: TL195 | D129: 620 | E129: 6885.275806 | F129: 4268871 | G129: 6045 | H129: 739.6640199 | I129: 4471269 | J129: 2021 | K129: 8740140
B130: 10348-10838 | C130: TJ170 | D130: 140 | E130: 4312.45 | F130: 603743 | G130: 3024 | H130: 471.9011243 | I130: 1427029 | J130: 2021 | K130: 2030772
B131: 10348-14457 | C131: TJ250 | D131: 870 | E131: 12258.03218 | F131: 10664488 | G131: 8482.5 | H131: 643.5331565 | I131: 5458770 | J131: 2021 | K131: 16123258
B132: 10349-10348 | C132: TJ170 | D132: 520 | E132: 4867.365385 | F132: 2531030 | G132: 11232 | H132: 461.5464744 | I132: 5184090 | J132: 2021 | K132: 7715120
B133: 10349-37026 | C133: TJ170 | D133: 310 | E133: 7953.151613 | F133: 2465477 | G133: 6696 | H133: 885.8206392 | I133: 5931455 | J133: 2021 | K133: 8396932
B134: 10350-10352 | C134: TJ860 | D134: 310 | E134: 16710.81935 | F134: 5180354 | G134: 3022.5 | H134: 1388.789082 | I134: 4197615 | J134: 2021 | K134: 9377969
B135: 10350-14453 | C135: TJ860 | D135: 80 | E135: 11752.55 | F135: 940204 | G135: 780 | H135: 2043.815385 | I135: 1594176 | J135: 2021 | K135: 2534380
B136: 10351-10352 | C136: TJ860 | D136: 280 | E136: 27397.87857 | F136: 7671406 | G136: 2730 | H136: 993.9912088 | I136: 2713596 | J136: 2021 | K136: 10385002
B137: 10351-14449 | C137: TJ860 | D137: 170 | E137: 17428.48235 | F137: 2962842 | G137: 1657.5 | H137: 1352.834389 | I137: 2242323 | J137: 2021 | K137: 5205165
B138: 10352-10350 | C138: TJ860 | D138: 310 | E138: 16710.81935 | F138: 5180354 | G138: 3022.5 | H138: 1388.789082 | I138: 4197615 | J138: 2021 | K138: 9377969
B139: 10352-10351 | C139: TJ860 | D139: 280 | E139: 27397.87857 | F139: 7671406 | G139: 2730 | H139: 993.9912088 | I139: 2713596 | J139: 2021 | K139: 10385002
B140: 10352-14444 | C140: TJ250 | D140: 380 | E140: 20324.02368 | F140: 7723129 | G140: 3705 | H140: 987.5203779 | I140: 3658763 | J140: 2021 | K140: 11381892
B141: 10352-14458 | C141: TJ250 | D141: 200 | E141: 4771.62 | F141: =IFERROR(D141*E141,0) -> 954324 | G141: 1950 | H141: 1040.419487 | I141: =IFERROR(G141*H141,"") -> 2028818 | J141: 2021 | K141: =IFERROR(ROUND((F141+I141),0),0) -> 2983142
B142: 10353-14445 | C142: TK570 | D142: 130 | E142: 7870.615385 | F142: 1023180 | G142: 2808 | H142: 844.4811254 | I142: 2371303 | J142: 2021 | K142: 3394483
B143: 10353-39583 | C143: TK570 | D143: 100 | E143: 5195.48 | F143: 519548 | G143: 2160 | H143: 1150.853704 | I143: 2485844 | J143: 2021 | K143: 3005392
B144: 10354-36991 | C144: RJ065 | D144: 350 | E144: 9261.431429 | F144: 3241501 | G144: 3412.5 | H144: 1002.472674 | I144: 3420938 | J144: 2021 | K144: 6662439
B145: 10354-37034 | C145: RJ065 | D145: 1410 | E145: 2229.819858 | F145: 3144046 | G145: 13747.5 | H145: 863.0515366 | I145: 11864801 | J145: 2021 | K145: 15008847
B146: 10355-37015 | C146: SJ805 | D146: 150 | E146: 9518.28 | F146: 1427742 | G146: 1462.5 | H146: 1059.709402 | I146: 1549825 | J146: 2021 | K146: 2977567
B147: 10355-37016 | C147: SJ805 | D147: 400 | E147: 13224.1925 | F147: 5289677 | G147: 3900 | H147: 842.3120513 | I147: 3285017 | J147: 2021 | K147: 8574694
B148: 10357-10968 | C148: RJ115 | D148: 270 | E148: 18192.18148 | F148: 4911889 | G148: 2632.5 | H148: 2473.119848 | I148: 6510488 | J148: 2021 | K148: 11422377
B149: 10357-36992 | C149: RJ115 | D149: 340 | E149: 12685.86765 | F149: 4313195 | G149: 3315 | H149: 1690.48356 | I149: 5603953 | J149: 2021 | K149: 9917148
B150: 10358-36991 | C150: SJ805 | D150: 190 | E150: 14442.86842 | F150: 2744145 | G150: 1852.5 | H150: 829.920108 | I150: 1537427 | J150: 2021 | K150: 4281572
B151: 10358-36994 | C151: SJ805 | D151: 310 | E151: 5667.593548 | F151: 1756954 | G151: 3022.5 | H151: 787.5070306 | I151: 2380240 | J151: 2021 | K151: 4137194
B152: 10361-10371 | C152: TL895 | D152: 270 | E152: 5429.896296 | F152: 1466072 | G152: 2632.5 | H152: 201.4602089 | I152: 530344 | J152: 2021 | K152: 1996416
B153: 10361-10372 | C153: TL715 | D153: 600 | E153: 9787.621667 | F153: 5872573 | G153: 5850 | H153: 259.5729915 | I153: 1518502 | J153: 2021 | K153: 7391075
B154: 10361-14480 | C154: TL715 | D154: 120 | E154: 8704.825 | F154: 1044579 | G154: 1170 | H154: 467.008547 | I154: 546400 | J154: 2021 | K154: 1590979
B155: 10362-10363 | C155: TL895 | D155: 430 | E155: 7641.218605 | F155: 3285724 | G155: 4192.5 | H155: 949.4578414 | I155: 3980602 | J155: 2021 | K155: 7266326
B156: 10362-10373 | C156: TL195 | D156: 310 | E156: 21723.25484 | F156: 6734209 | G156: 3022.5 | H156: 723.001158 | I156: 2185271 | J156: 2021 | K156: 8919480
B157: 10362-10381 | C157: TL895 | D157: 140 | E157: 3732.25 | F157: 522515 | G157: 1365 | H157: 1429.276923 | I157: 1950963 | J157: 2021 | K157: 2473478
B158: 10363-10362 | C158: TL895 | D158: 430 | E158: 7641.218605 | F158: 3285724 | G158: 4192.5 | H158: 949.4578414 | I158: 3980602 | J158: 2021 | K158: 7266326
B159: 10363-14479 | C159: TL895 | D159: 370 | E159: 8260.87027 | F159: 3056522 | G159: 3607.5 | H159: 744.4742897 | I159: 2685691 | J159: 2021 | K159: 5742213
B160: 10364-10381 | C160: TL895 | D160: 100 | E160: 40369.03 | F160: 4036903 | G160: 975 | H160: 2601.345641 | I160: 2536312 | J160: 2021 | K160: 6573215
B161: 10364-37026 | C161: TL895 | D161: 210 | E161: 19309.77619 | F161: 4055053 | G161: 2047.5 | H161: 861.9291819 | I161: 1764800 | J161: 2021 | K161: 5819853
B162: 10365-10348 | C162: TL195 | D162: 620 | E162: 6885.275806 | F162: 4268871 | G162: 6045 | H162: 739.6640199 | I162: 4471269 | J162: 2021 | K162: 8740140
B163: 10365-10373 | C163: TL195 | D163: 280 | E163: 14641.04643 | F163: 4099493 | G163: 2730 | H163: 1583.793773 | I163: 4323757 | J163: 2021 | K163: 8423250
B164: 10366-10245 | C164: TJ170 | D164: 280 | E164: 11694.59286 | F164: 3274486 | G164: 6048 | H164: 772.7926587 | I164: 4673850 | J164: 2021 | K164: 7948336
B165: 10366-37026 | C165: TJ170 | D165: 170 | E165: 12250.25294 | F165: 2082543 | G165: 5508 | H165: 932.2213145 | I165: 5134675 | J165: 2021 | K165: 7217218
B166: 10368-10369 | C166: TL570 | D166: 510 | E166: 5687.221569 | F166: 2900483 | G166: 11016 | H166: 768.9133079 | I166: 8470349 | J166: 2021 | K166: 11370832
B167: 10368-10383 | C167: TL150 | D167: 160 | E167: 7396.55 | F167: 1183448 | G167: 1560 | H167: 1869.512179 | I167: 2916439 | J167: 2021 | K167: 4099887
B168: 10368-14436 | C168: N/A | D168: 190 | E168: 16883.71053 | F168: 3207905 | G168: 1852.5 | H168: 0 | I168: 0 | J168: 2021 | K168: 3207905
B169: 10368-37022 | C169: TL570 | D169: 340 | E169: 14135.05 | F169: 4805917 | G169: 11016 | H169: 542.234931 | I169: 5973260 | J169: 2021 | K169: 10779177
B170: 10369-10368 | C170: TL570 | D170: 510 | E170: 5687.221569 | F170: 2900483 | G170: 11016 | H170: 768.9133079 | I170: 8470349 | J170: 2021 | K170: 11370832
B171: 10369-39393 | C171: TL570 | D171: 420 | E171: 3729.611905 | F171: 1566437 | G171: 9072 | H171: 660.35097 | I171: 5990704 | J171: 2021 | K171: 7557141
B172: 10370-14480 | C172: TL715 | D172: 380 | E172: 9806.044737 | F172: 3726297 | G172: 3705 | H172: 839.0383266 | I172: 3108637 | J172: 2021 | K172: 6834934
B173: 10370-38343 | C173: TL715 | D173: 230 | E173: 4254.052174 | F173: 978432 | G173: 2242.5 | H173: 894.8231884 | I173: 2006641 | J173: 2021 | K173: 2985073
B174: 10371-10361 | C174: TL895 | D174: 270 | E174: 5429.896296 | F174: 1466072 | G174: 2632.5 | H174: 201.4602089 | I174: 530344 | J174: 2021 | K174: 1996416
B175: 10371-14479 | C175: TL895 | D175: 200 | E175: 7344.875 | F175: 1468975 | G175: 1950 | H175: 654.0610256 | I175: 1275419 | J175: 2021 | K175: 2744394
B176: 10372-10361 | C176: TL715 | D176: 600 | E176: 9787.621667 | F176: 5872573 | G176: 5850 | H176: 259.5729915 | I176: 1518502 | J176: 2021 | K176: 7391075
B177: 10372-38342 | C177: TL715 | D177: 650 | E177: 10269.91077 | F177: 6675442 | G177: 6337.5 | H177: 248.3812229 | I177: 1574116 | J177: 2021 | K177: 8249558
B178: 10373-10362 | C178: TL195 | D178: 310 | E178: 21723.25484 | F178: 6734209 | G178: 3022.5 | H178: 723.001158 | I178: 2185271 | J178: 2021 | K178: 8919480
B179: 10373-10365 | C179: TL195 | D179: 280 | E179: 14641.04643 | F179: 4099493 | G179: 2730 | H179: 1583.793773 | I179: 4323757 | J179: 2021 | K179: 8423250
B180: 10374-14437 | C180: TK170 | D180: 210 | E180: 19401.11905 | F180: 4074235 | G180: 4536 | H180: 571.4010141 | I180: 2591875 | J180: 2021 | K180: 6666110
B181: 10374-37022 | C181: TK170 | D181: 450 | E181: 4140.128889 | F181: 1863058 | G181: 9720 | H181: 613.2372428 | I181: 5960666 | J181: 2021 | K181: 7823724
B182: 10375-10380 | C182: TK510 | D182: 410 | E182: 4284.82439 | F182: 1756778 | G182: 9799 | H182: 442.7797734 | I182: 4338799 | J182: 2021 | K182: 6095577
B183: 10375-10382 | C183: TL075 | D183: 240 | E183: 16386.3 | F183: 3932712 | G183: 2340 | H183: 876.9307692 | I183: 2052018 | J183: 2021 | K183: 5984730
B184: 10375-39369 | C184: TK510 | D184: 310 | E184: 12403.45484 | F184: 3845071 | G184: 7409 | H184: 521.8713727 | I184: 3866545 | J184: 2021 | K184: 7711616
B185: 10376-10377 | C185: TK510 | D185: 270 | E185: 6533.52963 | F185: 1764053 | G185: 3226.5 | H185: 1126.057958 | I185: 3633226 | J185: 2021 | K185: 5397279
B186: 10376-39112 | C186: TL495 | D186: 610 | E186: 11048.76393 | F186: 6739746 | G186: 7289.5 | H186: 403.0532958 | I186: 2938057 | J186: 2021 | K186: 9677803
B187: 10377-10376 | C187: TK510 | D187: 270 | E187: 6533.52963 | F187: 1764053 | G187: 3226.5 | H187: 1126.057958 | I187: 3633226 | J187: 2021 | K187: 5397279
B188: 10377-39369 | C188: TK510 | D188: 360 | E188: 4053.080556 | F188: 1459109 | G188: 8604 | H188: 443.8322873 | I188: 3818733 | J188: 2021 | K188: 5277842
B189: 10378-10382 | C189: TL075 | D189: 170 | E189: 9091.676471 | F189: 1545585 | G189: 1657.5 | H189: 1065.735747 | I189: 1766457 | J189: 2021 | K189: 3312042
B190: 10378-14435 | C190: TL075 | D190: 270 | E190: 4019.025926 | F190: 1085137 | G190: 2632.5 | H190: 730.8208927 | I190: 1923886 | J190: 2021 | K190: 3009023
B191: 10379-14435 | C191: TL075 | D191: 90 | E191: 8677.844444 | F191: 781006 | G191: 877.5 | H191: 2277.480342 | I191: 1998489 | J191: 2021 | K191: 2779495
B192: 10379-14436 | C192: TL075 | D192: 140 | E192: 8620.742857 | F192: 1206904 | G192: 1365 | H192: 1426.09304 | I192: 1946617 | J192: 2021 | K192: 3153521
B193: 10380-10375 | C193: TK510 | D193: 410 | E193: 4284.82439 | F193: 1756778 | G193: 9799 | H193: 442.7797734 | I193: 4338799 | J193: 2021 | K193: 6095577
B194: 10380-37020 | C194: TK510 | D194: 230 | E194: 24404.1087 | F194: 5612945 | G194: 5497 | H194: 398.9807168 | I194: 2193197 | J194: 2021 | K194: 7806142
B195: 10381-10362 | C195: TL895 | D195: 140 | E195: 3732.25 | F195: 522515 | G195: 1365 | H195: 1429.276923 | I195: 1950963 | J195: 2021 | K195: 2473478
B196: 10381-10364 | C196: TL895 | D196: 100 | E196: 40369.03 | F196: 4036903 | G196: 975 | H196: 2601.345641 | I196: 2536312 | J196: 2021 | K196: 6573215
B197: 10381-25672 | C197: TL150 | D197: 190 | E197: 5913.921053 | F197: 1123645 | G197: 1852.5 | H197: 1649.358704 | I197: 3055437 | J197: 2021 | K197: 4179082
B198: 10382-10375 | C198: TL075 | D198: 240 | E198: 16386.3 | F198: 3932712 | G198: 2340 | H198: 876.9307692 | I198: 2052018 | J198: 2021 | K198: 5984730
B199: 10382-10378 | C199: TL075 | D199: 170 | E199: 9091.676471 | F199: 1545585 | G199: 1657.5 | H199: 1065.735747 | I199: 1766457 | J199: 2021 | K199: 3312042
B200: 10383-10228 | C200: TL499 | D200: 180 | E200: 3337.5 | F200: 600750 | G200: 3888 | H200: 513.9503601 | I200: 1998239 | J200: 2021 | K200: 2598989
B201: 10383-10368 | C201: TL150 | D201: 160 | E201: 7396.55 | F201: 1183448 | G201: 1560 | H201: 1869.512179 | I201: 2916439 | J201: 2021 | K201: 4099887
B202: 10383-25673 | C202: TL150 | D202: 190 | E202: 8930.463158 | F202: 1696788 | G202: 1852.5 | H202: 996.7584345 | I202: 1846495 | J202: 2021 | K202: 3543283
B203: 10384-10400 | C203: SJ595 | D203: 240 | E203: 7271.141667 | F203: 1745074 | G203: 5184 | H203: 975.164159 | I203: 5055251 | J203: 2021 | K203: 6800325
B204: 10384-37012 | C204: TK570 | D204: 260 | E204: 4027.523077 | F204: 1047156 | G204: 5616 | H204: 700.6990741 | I204: 3935126 | J204: 2021 | K204: 4982282
... 8182 more rows

Sheet Future Trunk Assets - Roads
B1: ='Navigation Pane'!B2 -> Brisbane City Council
B2: Transport
B4: Future Trunk Assets
B6: Data Refernces | E6: 1. Project costs are on costs to undertake detailed design, survey, geotechnical investigations, project management, and supervision of construction works and obtain certification from a Registered Professional Engineer of Queensland. Project costs equate to 23% of the direct and indirect embellishment costs. 2. Contingency costs are based on the project delivery date, and applied to the direct construction cost, indirect construction cost and project cost. Contingencies equate to 7.5% for projects with a delivery date up to 2024, 15% for projects with a delivery date up to 2029 and 20% for projects with a delivery date up to 2034. 3. Total embellishment cost is the sum of direct embellishment cost, indirect embellishment cost, project cost and construction contingency cost. 4. Terminal Value Adjustment is only applicable to items that have an estimated completion date between 2026 and 2036, items value exceeds 20% of the total network value in the same catchment and same year of provision, and items catchment has spare capacity greater than 30%. 5. Total embellishment cost is the sum of direct embellishment cost, indirect embellishment cost, project cost and construction contingency cost. 6. Grants and subsidies only apply to Open Level Crossing projects. 7. All items and costs are allocated to a service catchment based on outputs from the BSTM Transport Model.
H11: Asset Data
B12: Basic Asset Data | G12: Asset Attributes | M12: Basic Asset Valuation | Y12: Refined Asset Value
B13: Asset ID | C13: LGIP ID | D13: Project Type | E13: Service Catchment | F13: Description | G13: Unit Rate Type (*) | H13: Length (m) | I13: Hierarchy/Name | J13: Size of Land (m2) | K13: Land Unit Rate ($/m2) | L13: Land Value | M13: Construction Unit Rate ($/m) | N13: Direct Construction Cost | O13: Valuation Year | P13: Base Est Escalation | Q13: Site/Condition | R13: Utility Rate | S13: Utility Cost | T13: Construction Contingency Rate % | U13: Construction Contingency Cost ($) | V13: Project Owners Cost (23% Direct Construction Cost)($) | W13: Grants and Subsidies ($) | X13: Total Construction Cost ($) | Y13: Year of Provision | Z13: Escalation | AA13: Discounting | AB13: Establishment Cost | AC13: Establishment Cost (Escalated) | AD13: Net Present Value of Establishment Cost
B15: Councils ID (from GIS, FAR, AMA etc.) | C15: ID from the LGIP drawings | N15: May be calculated from unit rates OR unique values can be direct entered | AC15: Gross cost (used for CF forecasts) | AD15: Adjusted Current Day Value
B16: R292 | C16: ACR-RB-002 | D16: Road Bridge | E16: 7, 9 | F16: Beatty Road Bridge (over Oxley Creek) | G16: 4 Lane Road | H16: 42 | I16: Suburban | J16: 0 | K16: =IFERROR(L16/J16,0) -> 0 | L16: 0 | M16: =IFERROR(N16/H16,0) -> 150930.7143 | N16: 6339090 | O16: 2021 | P16: =IFERROR(('General Input Sheet'!$G$38/(VLOOKUP(O16,Histindex,3,FALSE))),1) -> 1 | Q16: Upgrade | R16: =IFERROR(_xlfn.IFS(AND(Q16<>"New",D16<>"Road Bridge"),30%,AND(Q16<>"New",D16="Road Bridge"),10%),0) -> 0.1 | S16: =ROUND(N16*R16,0) -> 633909 | T16: =IF(Y16="","",IF(Y16<=YEAR+5,0.075,IF(AND(Y16>YEAR+5,Y16<=YEAR+10),0.15,IF(AND(Y16>YEAR+10,Y16<=YEAR+20),0.2,IF(Y16>YEAR+20,0.25,""))))) -> 0.15 | U16: =ROUND((N16+V16)*T16,0) -> 1169562 | V16: =ROUND((N16)*23%,0) -> 1457991 | W16: 0 | X16: =ROUND(N16+S16+U16+V16,0) -> 9600552 | Y16: 2029 | Z16: =(1+PPI)^('Future Trunk Assets - Roads'!Y16-YEAR) -> 1.155263475 | AA16: =IF(Y16<YEAR,1,IF('General Input Sheet'!$E$32="WACC1",1/(1+WACC1)^(Y16-YEAR), IF('General Input Sheet'!$E$32="WACC2",1/(1+WACC2)^(Y16-YEAR),"Check WACC Option in General Input Sheet"))) -> 0.6316903693 | AB16: =ROUND(X16+L16-W16,0) -> 9600552 | AC16: =IFERROR(ROUND((X16*Z16)+((1+Landind)^(Y16-YEAR)*L16),0),0) -> 11091167 | AD16: =IFERROR(ROUND((AC16*AA16),0),0) -> 7006183
B17: R292 | C17: ACR-RC-002 | D17: Road Corridor Project | E17: 7 | F17: Beatty Road (Bowhill Road to Mortimer Road) | G17: 4 Lane Road | H17: 1036 | I17: Suburban | J17: 3697 | K17: =IFERROR(L17/J17,0) -> 613.7627806 | L17: 2269081 | M17: =IFERROR(N17/H17,0) -> 2671.358108 | N17: 2767527 | O17: 2021 | P17: =IFERROR(('General Input Sheet'!$G$38/(VLOOKUP(O17,Histindex,3,FALSE))),1) -> 1 | Q17: Upgrade | R17: =IFERROR(_xlfn.IFS(AND(Q17<>"New",D17<>"Road Bridge"),30%,AND(Q17<>"New",D17="Road Bridge"),10%),0) -> 0.3 | S17: 830258 | T17: 0.15 | U17: 510609 | V17: 636531 | W17: 0 | X17: 4744925 | Y17: 2029 | Z17: =(1+PPI)^('Future Trunk Assets - Roads'!Y17-YEAR) -> 1.155263475 | AA17: =IF(Y17<YEAR,1,IF('General Input Sheet'!$E$32="WACC1",1/(1+WACC1)^(Y17-YEAR), IF('General Input Sheet'!$E$32="WACC2",1/(1+WACC2)^(Y17-YEAR),"Check WACC Option in General Input Sheet"))) -> 0.6316903693 | AB17: 7014006 | AC17: 8142562 | AD17: 5143578
B18: R293 | C18: ACR-RI-001 | D18: Road Intersection Project | E18: 7 | F18: Learoyd Road/Bradman Street Intersection | G18: 6 Lane Road / 4 Lane Road | H18: 0 | I18: Arterial / Suburban | J18: 600 | K18: 338.9933333 | L18: 203396 | M18: 0 | N18: 971801 | O18: 2021 | P18: =IFERROR(('General Input Sheet'!$G$38/(VLOOKUP(O18,Histindex,3,FALSE))),1) -> 1 | Q18: Existing unsignallised Int | R18: =IFERROR(_xlfn.IFS(AND(Q18<>"New",D18<>"Road Bridge"),30%,AND(Q18<>"New",D18="Road Bridge"),10%),0) -> 0.3 | S18: 291540 | T18: 0.075 | U18: 89649 | V18: 223514 | W18: 0 | X18: 1576504 | Y18: 2024 | Z18: =(1+PPI)^('Future Trunk Assets - Roads'!Y18-YEAR) -> 1.055614607 | AA18: =IF(Y18<YEAR,1,IF('General Input Sheet'!$E$32="WACC1",1/(1+WACC1)^(Y18-YEAR), IF('General Input Sheet'!$E$32="WACC2",1/(1+WACC2)^(Y18-YEAR),"Check WACC Option in General Input Sheet"))) -> 0.8417615727 | AB18: 1779900 | AC18: 1880097 | AD18: 1582593
B19: R292 | C19: ACR-RI-002 | D19: Road Intersection Project | E19: 7 | F19: Learoyd Road/Paradise Road Intersection | G19: 6 Lane Road / 4 Lane Road | H19: 0 | I19: Arterial / Suburban | J19: 300 | K19: 102.3366667 | L19: 30701 | M19: 0 | N19: 647867 | O19: 2021 | P19: =IFERROR(('General Input Sheet'!$G$38/(VLOOKUP(O19,Histindex,3,FALSE))),1) -> 1 | Q19: Existing signallised Int | R19: =IFERROR(_xlfn.IFS(AND(Q19<>"New",D19<>"Road Bridge"),30%,AND(Q19<>"New",D19="Road Bridge"),10%),0) -> 0.3 | S19: 194360 | T19: 0.15 | U19: 119531 | V19: 149009 | W19: 0 | X19: 1110767 | Y19: 2029 | Z19: =(1+PPI)^('Future Trunk Assets - Roads'!Y19-YEAR) -> 1.155263475 | AA19: =IF(Y19<YEAR,1,IF('General Input Sheet'!$E$32="WACC1",1/(1+WACC1)^(Y19-YEAR), IF('General Input Sheet'!$E$32="WACC2",1/(1+WACC2)^(Y19-YEAR),"Check WACC Option in General Input Sheet"))) -> 0.6316903693 | AB19: 1141468 | AC19: 1319231 | AD19: 833346
B20: R272 | C20: ACR-RI-003 | D20: Road Intersection Project | E20: 7 | F20: Beatty Road/Mortimer Road Intersection | G20: 4 Lane Road / 2 Lane Road | H20: 0 | I20: Suburban / District | J20: 450 | K20: 551.9244444 | L20: 248366 | M20: 0 | N20: 514316 | O20: 2021 | P20: =IFERROR(('General Input Sheet'!$G$38/(VLOOKUP(O20,Histindex,3,FALSE))),1) -> 1 | Q20: Existing signallised Int | R20: =IFERROR(_xlfn.IFS(AND(Q20<>"New",D20<>"Road Bridge"),30%,AND(Q20<>"New",D20="Road Bridge"),10%),0) -> 0.3 | S20: 154295 | T20: 0.15 | U20: 94891 | V20: 118293 | W20: 0 | X20: 881795 | Y20: 2029 | Z20: =(1+PPI)^('Future Trunk Assets - Roads'!Y20-YEAR) -> 1.155263475 | AA20: =IF(Y20<YEAR,1,IF('General Input Sheet'!$E$32="WACC1",1/(1+WACC1)^(Y20-YEAR), IF('General Input Sheet'!$E$32="WACC2",1/(1+WACC2)^(Y20-YEAR),"Check WACC Option in General Input Sheet"))) -> 0.6316903693 | AB20: 1130161 | AC20: 1309961 | AD20: 827490
B21: R272 | C21: AFD-RC-002 | D21: Road Corridor Project | E21: 7 | F21: Beatty Road (Granard Road to Barton Street) | G21: 4 Lane Road | H21: 435 | I21: Suburban | J21: 1167 | K21: 480.4755784 | L21: 560715 | M21: 2671.358621 | N21: 1162041 | O21: 2021 | P21: =IFERROR(('General Input Sheet'!$G$38/(VLOOKUP(O21,Histindex,3,FALSE))),1) -> 1 | Q21: Upgrade | R21: =IFERROR(_xlfn.IFS(AND(Q21<>"New",D21<>"Road Bridge"),30%,AND(Q21<>"New",D21="Road Bridge"),10%),0) -> 0.3 | S21: 348612 | T21: 0.15 | U21: 214397 | V21: 267269 | W21: 0 | X21: 1992319 | Y21: 2029 | Z21: =(1+PPI)^('Future Trunk Assets - Roads'!Y21-YEAR) -> 1.155263475 | AA21: =IF(Y21<YEAR,1,IF('General Input Sheet'!$E$32="WACC1",1/(1+WACC1)^(Y21-YEAR), IF('General Input Sheet'!$E$32="WACC2",1/(1+WACC2)^(Y21-YEAR),"Check WACC Option in General Input Sheet"))) -> 0.6316903693 | AB21: 2553034 | AC21: 2959197 | AD21: 1869296
B22: R272 | C22: AFD-RC-004 | D22: Road Corridor Project | E22: 7 | F22: Beatty Road (Mortimer Road to Kerry Road) | G22: 4 Lane Road | H22: 701 | I22: Suburban | J22: 2923 | K22: 304.2346904 | L22: 889278 | M22: 2671.35806 | N22: 1872622 | O22: 2021 | P22: =IFERROR(('General Input Sheet'!$G$38/(VLOOKUP(O22,Histindex,3,FALSE))),1) -> 1 | Q22: Upgrade | R22: =IFERROR(_xlfn.IFS(AND(Q22<>"New",D22<>"Road Bridge"),30%,AND(Q22<>"New",D22="Road Bridge"),10%),0) -> 0.3 | S22: 561787 | T22: 0.15 | U22: 345499 | V22: 430703 | W22: 0 | X22: 3210611 | Y22: 2029 | Z22: =(1+PPI)^('Future Trunk Assets - Roads'!Y22-YEAR) -> 1.155263475 | AA22: =IF(Y22<YEAR,1,IF('General Input Sheet'!$E$32="WACC1",1/(1+WACC1)^(Y22-YEAR), IF('General Input Sheet'!$E$32="WACC2",1/(1+WACC2)^(Y22-YEAR),"Check WACC Option in General Input Sheet"))) -> 0.6316903693 | AB22: 4099889 | AC22: 4751947 | AD22: 3001759
B23: R272 | C23: AFD-RC-005 | D23: Road Corridor Project | E23: 7 | F23: Beatty Road (Kerry Road to Boundary Road) | G23: 4 Lane Road | H23: 460 | I23: Suburban | J23: 1765 | K23: 297.6294618 | L23: 525316 | M23: 2671.358696 | N23: 1228825 | O23: 2021 | P23: =IFERROR(('General Input Sheet'!$G$38/(VLOOKUP(O23,Histindex,3,FALSE))),1) -> 1 | Q23: Upgrade | R23: =IFERROR(_xlfn.IFS(AND(Q23<>"New",D23<>"Road Bridge"),30%,AND(Q23<>"New",D23="Road Bridge"),10%),0) -> 0.3 | S23: 368648 | T23: 0.15 | U23: 226718 | V23: 282630 | W23: 0 | X23: 2106821 | Y23: 2029 | Z23: =(1+PPI)^('Future Trunk Assets - Roads'!Y23-YEAR) -> 1.155263475 | AA23: =IF(Y23<YEAR,1,IF('General Input Sheet'!$E$32="WACC1",1/(1+WACC1)^(Y23-YEAR), IF('General Input Sheet'!$E$32="WACC2",1/(1+WACC2)^(Y23-YEAR),"Check WACC Option in General Input Sheet"))) -> 0.6316903693 | AB23: 2632137 | AC23: 3049965 | AD23: 1926634
B24: R272 | C24: AFD-RC-006 | D24: Road Corridor Project | E24: 7 | F24: Beatty Road (Barton Street to Boundary Road) | G24: 4 Lane Road | H24: 512 | I24: Suburban | J24: 1178 | K24: 209.9932088 | L24: 247372 | M24: 2671.357422 | N24: 1367735 | O24: 2021 | P24: =IFERROR(('General Input Sheet'!$G$38/(VLOOKUP(O24,Histindex,3,FALSE))),1) -> 1 | Q24: Upgrade | R24: =IFERROR(_xlfn.IFS(AND(Q24<>"New",D24<>"Road Bridge"),30%,AND(Q24<>"New",D24="Road Bridge"),10%),0) -> 0.3 | S24: 410321 | T24: 0.15 | U24: 252347 | V24: 314579 | W24: 0 | X24: 2344982 | Y24: 2029 | Z24: =(1+PPI)^('Future Trunk Assets - Roads'!Y24-YEAR) -> 1.155263475 | AA24: =IF(Y24<YEAR,1,IF('General Input Sheet'!$E$32="WACC1",1/(1+WACC1)^(Y24-YEAR), IF('General Input Sheet'!$E$32="WACC2",1/(1+WACC2)^(Y24-YEAR),"Check WACC Option in General Input Sheet"))) -> 0.6316903693 | AB24: 2592354 | AC24: 2999162 | AD24: 1894542
B25: R272 | C25: AFD-RI-001 | D25: Road Intersection Project | E25: 7 | F25: Beatty Road/Boundary Road Intersection | G25: 4 Lane Road / 4 Lane Road | H25: 0 | I25: Suburban / Suburban | J25: 150 | K25: 1404.44 | L25: 210666 | M25: 0 | N25: 516545 | O25: 2021 | P25: =IFERROR(('General Input Sheet'!$G$38/(VLOOKUP(O25,Histindex,3,FALSE))),1) -> 1 | Q25: Existing signallised Int | R25: =IFERROR(_xlfn.IFS(AND(Q25<>"New",D25<>"Road Bridge"),30%,AND(Q25<>"New",D25="Road Bridge"),10%),0) -> 0.3 | S25: 154964 | T25: 0.075 | U25: 47651 | V25: 118805 | W25: 0 | X25: 837965 | Y25: 2024 | Z25: =(1+PPI)^('Future Trunk Assets - Roads'!Y25-YEAR) -> 1.055614607 | AA25: =IF(Y25<YEAR,1,IF('General Input Sheet'!$E$32="WACC1",1/(1+WACC1)^(Y25-YEAR), IF('General Input Sheet'!$E$32="WACC2",1/(1+WACC2)^(Y25-YEAR),"Check WACC Option in General Input Sheet"))) -> 0.8417615727 | AB25: 1048631 | AC25: 1108202 | AD25: 932842
B26: R272 | C26: AFD-RI-002 | D26: Road Intersection Project | E26: 7 | F26: Beatty Road/Kerry Road Intersection | G26: 4 Lane Road / 2 Lane Road | H26: 0 | I26: Suburban / District | J26: 150 | K26: 537.2733333 | L26: 80591 | M26: 0 | N26: 578606 | O26: 2021 | P26: =IFERROR(('General Input Sheet'!$G$38/(VLOOKUP(O26,Histindex,3,FALSE))),1) -> 1 | Q26: Existing unsignallised Int | R26: =IFERROR(_xlfn.IFS(AND(Q26<>"New",D26<>"Road Bridge"),30%,AND(Q26<>"New",D26="Road Bridge"),10%),0) -> 0.3 | S26: 173582 | T26: 0.075 | U26: 53376 | V26: 133079 | W26: 0 | X26: 938643 | Y26: 2024 | Z26: =(1+PPI)^('Future Trunk Assets - Roads'!Y26-YEAR) -> 1.055614607 | AA26: =IF(Y26<YEAR,1,IF('General Input Sheet'!$E$32="WACC1",1/(1+WACC1)^(Y26-YEAR), IF('General Input Sheet'!$E$32="WACC2",1/(1+WACC2)^(Y26-YEAR),"Check WACC Option in General Input Sheet"))) -> 0.8417615727 | AB26: 1019234 | AC26: 1076397 | AD26: 906070
B27: R272 | C27: AFD-RI-003 | D27: Road Intersection Project | E27: 7 | F27: Beatty Road/Barton Street Intersection | G27: 4 Lane Road / 4 Lane Road | H27: 0 | I27: Suburban / Suburban | J27: 150 | K27: 537.2733333 | L27: 80591 | M27: 0 | N27: 590337 | O27: 2021 | P27: =IFERROR(('General Input Sheet'!$G$38/(VLOOKUP(O27,Histindex,3,FALSE))),1) -> 1 | Q27: Existing signallised Int | R27: =IFERROR(_xlfn.IFS(AND(Q27<>"New",D27<>"Road Bridge"),30%,AND(Q27<>"New",D27="Road Bridge"),10%),0) -> 0.3 | S27: 177101 | T27: 0.15 | U27: 108917 | V27: 135778 | W27: 0 | X27: 1012133 | Y27: 2029 | Z27: =(1+PPI)^('Future Trunk Assets - Roads'!Y27-YEAR) -> 1.155263475 | AA27: =IF(Y27<YEAR,1,IF('General Input Sheet'!$E$32="WACC1",1/(1+WACC1)^(Y27-YEAR), IF('General Input Sheet'!$E$32="WACC2",1/(1+WACC2)^(Y27-YEAR),"Check WACC Option in General Input Sheet"))) -> 0.6316903693 | AB27: 1092724 | AC27: 1263788 | AD27: 798323
B28: R153 | C28: ALB-RB-001 | D28: Road Bridge | E28: 8, 16 | F28: Abbotsford Road Bridge (between Bimbil Street and Taylor Street) | G28: 6 Lane Road | H28: 65 | I28: Arterial | J28: 61 | K28: 0.9836065574 | L28: 60 | M28: 184171.2 | N28: 11971128 | O28: 2021 | P28: =IFERROR(('General Input Sheet'!$G$38/(VLOOKUP(O28,Histindex,3,FALSE))),1) -> 1 | Q28: Upgrade | R28: =IFERROR(_xlfn.IFS(AND(Q28<>"New",D28<>"Road Bridge"),30%,AND(Q28<>"New",D28="Road Bridge"),10%),0) -> 0.1 | S28: 1197113 | T28: 0.15 | U28: 2208673 | V28: 2753359 | W28: 0 | X28: 18130273 | Y28: 2029 | Z28: =(1+PPI)^('Future Trunk Assets - Roads'!Y28-YEAR) -> 1.155263475 | AA28: =IF(Y28<YEAR,1,IF('General Input Sheet'!$E$32="WACC1",1/(1+WACC1)^(Y28-YEAR), IF('General Input Sheet'!$E$32="WACC2",1/(1+WACC2)^(Y28-YEAR),"Check WACC Option in General Input Sheet"))) -> 0.6316903693 | AB28: 18130333 | AC28: 20945313 | AD28: 13230953
B29: R153 | C29: ALB-RC-004 | D29: Road Corridor Project | E29: 16 | F29: Abbotsford Road (Crosby Road to Collingwood Street) | G29: 6 Lane Road | H29: 66 | I29: Arterial | J29: 0 | K29: 0 | L29: 0 | M29: 4177.30303 | N29: 275702 | O29: 2021 | P29: =IFERROR(('General Input Sheet'!$G$38/(VLOOKUP(O29,Histindex,3,FALSE))),1) -> 1 | Q29: Upgrade | R29: =IFERROR(_xlfn.IFS(AND(Q29<>"New",D29<>"Road Bridge"),30%,AND(Q29<>"New",D29="Road Bridge"),10%),0) -> 0.3 | S29: 82711 | T29: 0.15 | U29: 50867 | V29: 63411 | W29: 0 | X29: 472691 | Y29: 2029 | Z29: =(1+PPI)^('Future Trunk Assets - Roads'!Y29-YEAR) -> 1.155263475 | AA29: =IF(Y29<YEAR,1,IF('General Input Sheet'!$E$32="WACC1",1/(1+WACC1)^(Y29-YEAR), IF('General Input Sheet'!$E$32="WACC2",1/(1+WACC2)^(Y29-YEAR),"Check WACC Option in General Input Sheet"))) -> 0.6316903693 | AB29: 472691 | AC29: 546083 | AD29: 344955
B30: R153 | C30: ALB-RC-011 | D30: Road Corridor Project | E30: 16 | F30: Sandgate Road (Albion Overpass to Anstey Street) | G30: 6 Lane Road | H30: 59 | I30: Arterial | J30: 541 | K30: 1700.504621 | L30: 919973 | M30: 4803.898305 | N30: 283430 | O30: 2021 | P30: =IFERROR(('General Input Sheet'!$G$38/(VLOOKUP(O30,Histindex,3,FALSE))),1) -> 1 | Q30: Upgrade | R30: =IFERROR(_xlfn.IFS(AND(Q30<>"New",D30<>"Road Bridge"),30%,AND(Q30<>"New",D30="Road Bridge"),10%),0) -> 0.3 | S30: 85029 | T30: 0.075 | U30: 26146 | V30: 65189 | W30: 0 | X30: 459794 | Y30: 2024 | Z30: =(1+PPI)^('Future Trunk Assets - Roads'!Y30-YEAR) -> 1.055614607 | AA30: =IF(Y30<YEAR,1,IF('General Input Sheet'!$E$32="WACC1",1/(1+WACC1)^(Y30-YEAR), IF('General Input Sheet'!$E$32="WACC2",1/(1+WACC2)^(Y30-YEAR),"Check WACC Option in General Input Sheet"))) -> 0.8417615727 | AB30: 1379767 | AC30: 1461969 | AD30: 1230629
B31: R153 | C31: ALB-RC-012 | D31: Road Corridor Project | E31: 16 | F31: Sandgate Road (Anstey Street to Abbotsford Road/Frodsham Street/Crosby Road) | G31: 6 Lane Road | H31: 118 | I31: Arterial | J31: 1129 | K31: 1156.24535 | L31: 1305401 | M31: 3425.279661 | N31: 404183 | O31: 2021 | P31: =IFERROR(('General Input Sheet'!$G$38/(VLOOKUP(O31,Histindex,3,FALSE))),1) -> 1 | Q31: Upgrade | R31: =IFERROR(_xlfn.IFS(AND(Q31<>"New",D31<>"Road Bridge"),30%,AND(Q31<>"New",D31="Road Bridge"),10%),0) -> 0.3 | S31: 121255 | T31: 0.075 | U31: 37286 | V31: 92962 | W31: 0 | X31: 655686 | Y31: 2024 | Z31: =(1+PPI)^('Future Trunk Assets - Roads'!Y31-YEAR) -> 1.055614607 | AA31: =IF(Y31<YEAR,1,IF('General Input Sheet'!$E$32="WACC1",1/(1+WACC1)^(Y31-YEAR), IF('General Input Sheet'!$E$32="WACC2",1/(1+WACC2)^(Y31-YEAR),"Check WACC Option in General Input Sheet"))) -> 0.8417615727 | AB31: 1961087 | AC31: 2077909 | AD31: 1749104
B32: R153 | C32: ALB-RC-013 | D32: Road Corridor Project | E32: 16 | F32: Frodsham Street (Sandgate Road to Abbotsford Road) | G32: 4 Lane Road | H32: 403 | I32: Arterial | J32: 3022 | K32: 1431.241893 | L32: 4325213 | M32: 2811.955335 | N32: 1133218 | O32: 2021 | P32: =IFERROR(('General Input Sheet'!$G$38/(VLOOKUP(O32,Histindex,3,FALSE))),1) -> 1 | Q32: Upgrade | R32: =IFERROR(_xlfn.IFS(AND(Q32<>"New",D32<>"Road Bridge"),30%,AND(Q32<>"New",D32="Road Bridge"),10%),0) -> 0.3 | S32: 339965 | T32: 0.15 | U32: 209079 | V32: 260640 | W32: 0 | X32: 1942902 | Y32: 2029 | Z32: =(1+PPI)^('Future Trunk Assets - Roads'!Y32-YEAR) -> 1.155263475 | AA32: =IF(Y32<YEAR,1,IF('General Input Sheet'!$E$32="WACC1",1/(1+WACC1)^(Y32-YEAR), IF('General Input Sheet'!$E$32="WACC2",1/(1+WACC2)^(Y32-YEAR),"Check WACC Option in General Input Sheet"))) -> 0.6316903693 | AB32: 6268115 | AC32: 7316688 | AD32: 4621881
B33: R153 | C33: ALB-RI-002 | D33: Road Intersection Project | E33: 16 | F33: Hudson Road/Albion Road Intersection | G33: 4 Lane Road / 4 Lane Road | H33: 0 | I33: Suburban / Suburban | J33: 450 | K33: 1057.488889 | L33: 475870 | M33: 0 | N33: 714619 | O33: 2021 | P33: =IFERROR(('General Input Sheet'!$G$38/(VLOOKUP(O33,Histindex,3,FALSE))),1) -> 1 | Q33: Existing signallised Int | R33: =IFERROR(_xlfn.IFS(AND(Q33<>"New",D33<>"Road Bridge"),30%,AND(Q33<>"New",D33="Road Bridge"),10%),0) -> 0.3 | S33: 214386 | T33: 0.15 | U33: 131847 | V33: 164362 | W33: 0 | X33: 1225214 | Y33: 2029 | Z33: =(1+PPI)^('Future Trunk Assets - Roads'!Y33-YEAR) -> 1.155263475 | AA33: =IF(Y33<YEAR,1,IF('General Input Sheet'!$E$32="WACC1",1/(1+WACC1)^(Y33-YEAR), IF('General Input Sheet'!$E$32="WACC2",1/(1+WACC2)^(Y33-YEAR),"Check WACC Option in General Input Sheet"))) -> 0.6316903693 | AB33: 1701084 | AC33: 1973492 | AD33: 1246636
B34: R153 | C34: ALB-RI-005 | D34: Road Intersection Project | E34: 16 | F34: Sandgate Road/Frodsham Street Intersection | G34: 6 Lane Road / 4 Lane Road | H34: 0 | I34: Arterial / Suburban | J34: 600 | K34: 1319.388333 | L34: 791633 | M34: 0 | N34: 681965 | O34: 2021 | P34: =IFERROR(('General Input Sheet'!$G$38/(VLOOKUP(O34,Histindex,3,FALSE))),1) -> 1 | Q34: Existing signallised Int | R34: =IFERROR(_xlfn.IFS(AND(Q34<>"New",D34<>"Road Bridge"),30%,AND(Q34<>"New",D34="Road Bridge"),10%),0) -> 0.3 | S34: 204590 | T34: 0.15 | U34: 125823 | V34: 156852 | W34: 0 | X34: 1169230 | Y34: 2029 | Z34: =(1+PPI)^('Future Trunk Assets - Roads'!Y34-YEAR) -> 1.155263475 | AA34: =IF(Y34<YEAR,1,IF('General Input Sheet'!$E$32="WACC1",1/(1+WACC1)^(Y34-YEAR), IF('General Input Sheet'!$E$32="WACC2",1/(1+WACC2)^(Y34-YEAR),"Check WACC Option in General Input Sheet"))) -> 0.6316903693 | AB34: 1960863 | AC34: 2279107 | AD34: 1439690
B35: R153 | C35: ALB-RI-006 | D35: Road Intersection Project | E35: 16 | F35: Sandgate Road/Albion Overpass Intersection | G35: 6 Lane Road / 4 Lane Road | H35: 0 | I35: Arterial / Suburban | J35: 150 | K35: 1279.22 | L35: 191883 | M35: 0 | N35: 686228 | O35: 2021 | P35: =IFERROR(('General Input Sheet'!$G$38/(VLOOKUP(O35,Histindex,3,FALSE))),1) -> 1 | Q35: Existing signallised Int | R35: =IFERROR(_xlfn.IFS(AND(Q35<>"New",D35<>"Road Bridge"),30%,AND(Q35<>"New",D35="Road Bridge"),10%),0) -> 0.3 | S35: 205868 | T35: 0.075 | U35: 63305 | V35: 157832 | W35: 0 | X35: 1113233 | Y35: 2024 | Z35: =(1+PPI)^('Future Trunk Assets - Roads'!Y35-YEAR) -> 1.055614607 | AA35: =IF(Y35<YEAR,1,IF('General Input Sheet'!$E$32="WACC1",1/(1+WACC1)^(Y35-YEAR), IF('General Input Sheet'!$E$32="WACC2",1/(1+WACC2)^(Y35-YEAR),"Check WACC Option in General Input Sheet"))) -> 0.8417615727 | AB35: 1305116 | AC35: 1378840 | AD35: 1160655
B36: R153 | C36: ALB-RI-007 | D36: Road Intersection Project | E36: 16 | F36: Sandgate Road/Collingwood Street Intersection | G36: 6 Lane Road / 4 Lane Road | H36: 0 | I36: Arterial / Suburban | J36: 150 | K36: 1404.44 | L36: 210666 | M36: 0 | N36: 596720 | O36: 2021 | P36: =IFERROR(('General Input Sheet'!$G$38/(VLOOKUP(O36,Histindex,3,FALSE))),1) -> 1 | Q36: Existing signallised Int | R36: =IFERROR(_xlfn.IFS(AND(Q36<>"New",D36<>"Road Bridge"),30%,AND(Q36<>"New",D36="Road Bridge"),10%),0) -> 0.3 | S36: 179016 | T36: 0.15 | U36: 110095 | V36: 137246 | W36: 0 | X36: 1023077 | Y36: 2029 | Z36: =(1+PPI)^('Future Trunk Assets - Roads'!Y36-YEAR) -> 1.155263475 | AA36: =IF(Y36<YEAR,1,IF('General Input Sheet'!$E$32="WACC1",1/(1+WACC1)^(Y36-YEAR), IF('General Input Sheet'!$E$32="WACC2",1/(1+WACC2)^(Y36-YEAR),"Check WACC Option in General Input Sheet"))) -> 0.6316903693 | AB36: 1233743 | AC36: 1428969 | AD36: 902666
B37: R233, R213 | C37: ANN-RC-002 | D37: Road Corridor Project | E37: 7 | F37: Ipswich Road (Annerley Road to Ekibin Road) | G37: 6 Lane Road | H37: 302 | I37: Arterial | J37: 97 | K37: 1026.505155 | L37: 99571 | M37: 3555.254967 | N37: 1073687 | O37: 2021 | P37: =IFERROR(('General Input Sheet'!$G$38/(VLOOKUP(O37,Histindex,3,FALSE))),1) -> 1 | Q37: Upgrade | R37: =IFERROR(_xlfn.IFS(AND(Q37<>"New",D37<>"Road Bridge"),30%,AND(Q37<>"New",D37="Road Bridge"),10%),0) -> 0.3 | S37: 322106 | T37: 0.2 | U37: 264127 | V37: 246948 | W37: 0 | X37: 1906868 | Y37: 2034 | Z37: =(1+PPI)^('Future Trunk Assets - Roads'!Y37-YEAR) -> 1.264319088 | AA37: =IF(Y37<YEAR,1,IF('General Input Sheet'!$E$32="WACC1",1/(1+WACC1)^(Y37-YEAR), IF('General Input Sheet'!$E$32="WACC2",1/(1+WACC2)^(Y37-YEAR),"Check WACC Option in General Input Sheet"))) -> 0.4740448311 | AB37: 2006439 | AC37: 2539879 | AD37: 1204017
B38: R213 | C38: ANN-RC-003 | D38: Road Corridor Project | E38: 7 | F38: Ipswich Road (Cornwall Street to Juliette Street) | G38: 6 Lane Road | H38: 301 | I38: Arterial | J38: 557 | K38: 2011.48474 | L38: 1120397 | M38: 3555.255814 | N38: 1070132 | O38: 2021 | P38: =IFERROR(('General Input Sheet'!$G$38/(VLOOKUP(O38,Histindex,3,FALSE))),1) -> 1 | Q38: Upgrade | R38: =IFERROR(_xlfn.IFS(AND(Q38<>"New",D38<>"Road Bridge"),30%,AND(Q38<>"New",D38="Road Bridge"),10%),0) -> 0.3 | S38: 321040 | T38: 0.15 | U38: 197439 | V38: 246130 | W38: 0 | X38: 1834741 | Y38: 2029 | Z38: =(1+PPI)^('Future Trunk Assets - Roads'!Y38-YEAR) -> 1.155263475 | AA38: =IF(Y38<YEAR,1,IF('General Input Sheet'!$E$32="WACC1",1/(1+WACC1)^(Y38-YEAR), IF('General Input Sheet'!$E$32="WACC2",1/(1+WACC2)^(Y38-YEAR),"Check WACC Option in General Input Sheet"))) -> 0.6316903693 | AB38: 2955138 | AC38: 3433485 | AD38: 2168899
B39: R213 | C39: ANN-RC-004 | D39: Road Corridor Project | E39: 7 | F39: Ipswich Road (Juliette Street to Annerley Road) | G39: 6 Lane Road | H39: 824 | I39: Arterial | J39: 501 | K39: 1295.51497 | L39: 649053 | M39: 3091.525485 | N39: 2547417 | O39: 2021 | P39: =IFERROR(('General Input Sheet'!$G$38/(VLOOKUP(O39,Histindex,3,FALSE))),1) -> 1 | Q39: Upgrade | R39: =IFERROR(_xlfn.IFS(AND(Q39<>"New",D39<>"Road Bridge"),30%,AND(Q39<>"New",D39="Road Bridge"),10%),0) -> 0.3 | S39: 764225 | T39: 0.2 | U39: 626665 | V39: 585906 | W39: 0 | X39: 4524213 | Y39: 2034 | Z39: =(1+PPI)^('Future Trunk Assets - Roads'!Y39-YEAR) -> 1.264319088 | AA39: =IF(Y39<YEAR,1,IF('General Input Sheet'!$E$32="WACC1",1/(1+WACC1)^(Y39-YEAR), IF('General Input Sheet'!$E$32="WACC2",1/(1+WACC2)^(Y39-YEAR),"Check WACC Option in General Input Sheet"))) -> 0.4740448311 | AB39: 5173266 | AC39: 6560866 | AD39: 3110145
B40: R233 | C40: ANN-RC-005 | D40: Road Corridor Project | E40: 7 | F40: Ipswich Road (Ekibin Road to Waterton Street) | G40: 6 Lane Road | H40: 157 | I40: Arterial | J40: 42 | K40: 1033.666667 | L40: 43414 | M40: 3939.070064 | N40: 618434 | O40: 2021 | P40: =IFERROR(('General Input Sheet'!$G$38/(VLOOKUP(O40,Histindex,3,FALSE))),1) -> 1 | Q40: Upgrade | R40: =IFERROR(_xlfn.IFS(AND(Q40<>"New",D40<>"Road Bridge"),30%,AND(Q40<>"New",D40="Road Bridge"),10%),0) -> 0.3 | S40: 185530 | T40: 0.2 | U40: 152135 | V40: 142240 | W40: 0 | X40: 1098339 | Y40: 2034 | Z40: =(1+PPI)^('Future Trunk Assets - Roads'!Y40-YEAR) -> 1.264319088 | AA40: =IF(Y40<YEAR,1,IF('General Input Sheet'!$E$32="WACC1",1/(1+WACC1)^(Y40-YEAR), IF('General Input Sheet'!$E$32="WACC2",1/(1+WACC2)^(Y40-YEAR),"Check WACC Option in General Input Sheet"))) -> 0.4740448311 | AB40: 1141753 | AC40: 1444892 | AD40: 684944
B41: R232, R233 | C41: ANN-RC-006 | D41: Road Corridor Project | E41: 7 | F41: Ipswich Road (Waterton Street to Cracknell Road) | G41: 6 Lane Road | H41: 547 | I41: Arterial | J41: 967 | K41: 526.4984488 | L41: 509124 | M41: 2936.948812 | N41: 1606511 | O41: 2021 | P41: =IFERROR(('General Input Sheet'!$G$38/(VLOOKUP(O41,Histindex,3,FALSE))),1) -> 1 | Q41: Upgrade | R41: =IFERROR(_xlfn.IFS(AND(Q41<>"New",D41<>"Road Bridge"),30%,AND(Q41<>"New",D41="Road Bridge"),10%),0) -> 0.3 | S41: 481953 | T41: 0.2 | U41: 395202 | V41: 369498 | W41: 0 | X41: 2853164 | Y41: 2034 | Z41: =(1+PPI)^('Future Trunk Assets - Roads'!Y41-YEAR) -> 1.264319088 | AA41: =IF(Y41<YEAR,1,IF('General Input Sheet'!$E$32="WACC1",1/(1+WACC1)^(Y41-YEAR), IF('General Input Sheet'!$E$32="WACC2",1/(1+WACC2)^(Y41-YEAR),"Check WACC Option in General Input Sheet"))) -> 0.4740448311 | AB41: 3362288 | AC41: 4266855 | AD41: 2022681
B42: R232 | C42: ANN-RC-007 | D42: Road Corridor Project | E42: 7 | F42: Ipswich Road (Cracknell Road to School Road) | G42: 6 Lane Road | H42: 588 | I42: Arterial | J42: 730 | K42: 1222.668493 | L42: 892548 | M42: 2936.94898 | N42: 1726926 | O42: 2021 | P42: =IFERROR(('General Input Sheet'!$G$38/(VLOOKUP(O42,Histindex,3,FALSE))),1) -> 1 | Q42: Upgrade | R42: =IFERROR(_xlfn.IFS(AND(Q42<>"New",D42<>"Road Bridge"),30%,AND(Q42<>"New",D42="Road Bridge"),10%),0) -> 0.3 | S42: 518078 | T42: 0.2 | U42: 424824 | V42: 397193 | W42: 0 | X42: 3067021 | Y42: 2034 | Z42: =(1+PPI)^('Future Trunk Assets - Roads'!Y42-YEAR) -> 1.264319088 | AA42: =IF(Y42<YEAR,1,IF('General Input Sheet'!$E$32="WACC1",1/(1+WACC1)^(Y42-YEAR), IF('General Input Sheet'!$E$32="WACC2",1/(1+WACC2)^(Y42-YEAR),"Check WACC Option in General Input Sheet"))) -> 0.4740448311 | AB42: 3959569 | AC42: 5033946 | AD42: 2386316
B43: R232 | C43: ANN-RI-002 | D43: Road Intersection Project | E43: 7 | F43: Ipswich Road/Cracknell Road/Villa Street Intersection | G43: 6 Lane Road / 2 Lane Road | H43: 0 | I43: Arterial / District | J43: 300 | K43: 1353.416667 | L43: 406025 | M43: 0 | N43: 570476 | O43: 2021 | P43: =IFERROR(('General Input Sheet'!$G$38/(VLOOKUP(O43,Histindex,3,FALSE))),1) -> 1 | Q43: Existing signallised Int | R43: =IFERROR(_xlfn.IFS(AND(Q43<>"New",D43<>"Road Bridge"),30%,AND(Q43<>"New",D43="Road Bridge"),10%),0) -> 0.3 | S43: 171143 | T43: 0.2 | U43: 140337 | V43: 131209 | W43: 0 | X43: 1013165 | Y43: 2034 | Z43: =(1+PPI)^('Future Trunk Assets - Roads'!Y43-YEAR) -> 1.264319088 | AA43: =IF(Y43<YEAR,1,IF('General Input Sheet'!$E$32="WACC1",1/(1+WACC1)^(Y43-YEAR), IF('General Input Sheet'!$E$32="WACC2",1/(1+WACC2)^(Y43-YEAR),"Check WACC Option in General Input Sheet"))) -> 0.4740448311 | AB43: 1419190 | AC43: 1806950 | AD43: 856575
B44: R233 | C44: ANN-RI-003 | D44: Road Intersection Project | E44: 7 | F44: Ipswich Road/Venner Road/Waterton Street Intersection | G44: 6 Lane Road / 2 Lane Road | H44: 0 | I44: Arterial / Suburban | J44: 300 | K44: 1438.696667 | L44: 431609 | M44: 0 | N44: 570476 | O44: 2021 | P44: =IFERROR(('General Input Sheet'!$G$38/(VLOOKUP(O44,Histindex,3,FALSE))),1) -> 1 | Q44: Existing signallised Int | R44: =IFERROR(_xlfn.IFS(AND(Q44<>"New",D44<>"Road Bridge"),30%,AND(Q44<>"New",D44="Road Bridge"),10%),0) -> 0.3 | S44: 171143 | T44: 0.075 | U44: 52626 | V44: 131209 | W44: 0 | X44: 925454 | Y44: 2024 | Z44: =(1+PPI)^('Future Trunk Assets - Roads'!Y44-YEAR) -> 1.055614607 | AA44: =IF(Y44<YEAR,1,IF('General Input Sheet'!$E$32="WACC1",1/(1+WACC1)^(Y44-YEAR), IF('General Input Sheet'!$E$32="WACC2",1/(1+WACC2)^(Y44-YEAR),"Check WACC Option in General Input Sheet"))) -> 0.8417615727 | AB44: 1357063 | AC44: 1435100 | AD44: 1208012
B45: R233 | C45: ANN-RI-004 | D45: Road Intersection Project | E45: 7 | F45: Lewisham Street/Ekibin Road Intersection | G45: 2 Lane Road / 2 Lane Road | H45: 0 | I45: Suburban / Suburban | J45: 150 | K45: 1692.04 | L45: 253806 | M45: 0 | N45: 430761 | O45: 2021 | P45: =IFERROR(('General Input Sheet'!$G$38/(VLOOKUP(O45,Histindex,3,FALSE))),1) -> 1 | Q45: Existing unsignallised Int | R45: =IFERROR(_xlfn.IFS(AND(Q45<>"New",D45<>"Road Bridge"),30%,AND(Q45<>"New",D45="Road Bridge"),10%),0) -> 0.3 | S45: 129228 | T45: 0.15 | U45: 79475 | V45: 99075 | W45: 0 | X45: 738539 | Y45: 2029 | Z45: =(1+PPI)^('Future Trunk Assets - Roads'!Y45-YEAR) -> 1.155263475 | AA45: =IF(Y45<YEAR,1,IF('General Input Sheet'!$E$32="WACC1",1/(1+WACC1)^(Y45-YEAR), IF('General Input Sheet'!$E$32="WACC2",1/(1+WACC2)^(Y45-YEAR),"Check WACC Option in General Input Sheet"))) -> 0.6316903693 | AB45: 992345 | AC45: 1150842 | AD45: 726976
B46: R170 | C46: ASH-RI-004 | D46: Road Intersection Project | E46: 12 | F46: Waterworks Road/Greenlanes Road Intersection | G46: 4 Lane Road / 2 Lane Road | H46: 0 | I46: Arterial / Local | J46: 450 | K46: 1475.053333 | L46: 663774 | M46: 0 | N46: 450026 | O46: 2021 | P46: =IFERROR(('General Input Sheet'!$G$38/(VLOOKUP(O46,Histindex,3,FALSE))),1) -> 1 | Q46: Existing signallised Int | R46: =IFERROR(_xlfn.IFS(AND(Q46<>"New",D46<>"Road Bridge"),30%,AND(Q46<>"New",D46="Road Bridge"),10%),0) -> 0.3 | S46: 135008 | T46: 0.2 | U46: 110706 | V46: 103506 | W46: 0 | X46: 799246 | Y46: 2034 | Z46: =(1+PPI)^('Future Trunk Assets - Roads'!Y46-YEAR) -> 1.264319088 | AA46: =IF(Y46<YEAR,1,IF('General Input Sheet'!$E$32="WACC1",1/(1+WACC1)^(Y46-YEAR), IF('General Input Sheet'!$E$32="WACC2",1/(1+WACC2)^(Y46-YEAR),"Check WACC Option in General Input Sheet"))) -> 0.4740448311 | AB46: 1463020 | AC46: 1870389 | AD46: 886648
B47: R171 | C47: ASH-RI-005 | D47: Road Intersection Project | E47: 12 | F47: Waterworks Road/Glenlyon Drive Intersection | G47: 6 Lane Road / 2 Lane Road | H47: 0 | I47: Arterial / District | J47: 150 | K47: 1475.053333 | L47: 221258 | M47: 0 | N47: 570476 | O47: 2021 | P47: =IFERROR(('General Input Sheet'!$G$38/(VLOOKUP(O47,Histindex,3,FALSE))),1) -> 1 | Q47: Existing signallised Int | R47: =IFERROR(_xlfn.IFS(AND(Q47<>"New",D47<>"Road Bridge"),30%,AND(Q47<>"New",D47="Road Bridge"),10%),0) -> 0.3 | S47: 171143 | T47: 0.2 | U47: 140337 | V47: 131209 | W47: 0 | X47: 1013165 | Y47: 2034 | Z47: =(1+PPI)^('Future Trunk Assets - Roads'!Y47-YEAR) -> 1.264319088 | AA47: =IF(Y47<YEAR,1,IF('General Input Sheet'!$E$32="WACC1",1/(1+WACC1)^(Y47-YEAR), IF('General Input Sheet'!$E$32="WACC2",1/(1+WACC2)^(Y47-YEAR),"Check WACC Option in General Input Sheet"))) -> 0.4740448311 | AB47: 1234423 | AC47: 1567593 | AD47: 743109
B48: R92 | C48: ASP-RI-001 | D48: Road Intersection Project | E48: 15 | F48: Ellison Road/Kirby Road Intersection | G48: 2 Lane Road / 2 Lane Road | H48: 0 | I48: District / District | J48: 0 | K48: 0 | L48: 0 | M48: 0 | N48: 430761 | O48: 2021 | P48: =IFERROR(('General Input Sheet'!$G$38/(VLOOKUP(O48,Histindex,3,FALSE))),1) -> 1 | Q48: Existing unsignallised Int | R48: =IFERROR(_xlfn.IFS(AND(Q48<>"New",D48<>"Road Bridge"),30%,AND(Q48<>"New",D48="Road Bridge"),10%),0) -> 0.3 | S48: 129228 | T48: 0.075 | U48: 39738 | V48: 99075 | W48: 0 | X48: 698802 | Y48: 2024 | Z48: =(1+PPI)^('Future Trunk Assets - Roads'!Y48-YEAR) -> 1.055614607 | AA48: =IF(Y48<YEAR,1,IF('General Input Sheet'!$E$32="WACC1",1/(1+WACC1)^(Y48-YEAR), IF('General Input Sheet'!$E$32="WACC2",1/(1+WACC2)^(Y48-YEAR),"Check WACC Option in General Input Sheet"))) -> 0.8417615727 | AB48: 698802 | AC48: 737666 | AD48: 620939
B49: R92 | C49: ASP-RI-002 | D49: Road Intersection Project | E49: 15 | F49: Robinson Road West/Kirby Road Intersection | G49: 6 Lane Road / 2 Lane Road | H49: 0 | I49: Arterial / District | J49: 150 | K49: =IFERROR(L49/J49,0) -> 850.92 | L49: 127638 | M49: =IFERROR(N49/H49,0) -> 0 | N49: 855714 | O49: 2021 | P49: =IFERROR(('General Input Sheet'!$G$38/(VLOOKUP(O49,Histindex,3,FALSE))),1) -> 1 | Q49: Existing unsignallised Int | R49: =IFERROR(_xlfn.IFS(AND(Q49<>"New",D49<>"Road Bridge"),30%,AND(Q49<>"New",D49="Road Bridge"),10%),0) -> 0.3 | S49: =ROUND(N49*R49,0) -> 256714 | T49: =IF(Y49="","",IF(Y49<=YEAR+5,0.075,IF(AND(Y49>YEAR+5,Y49<=YEAR+10),0.15,IF(AND(Y49>YEAR+10,Y49<=YEAR+20),0.2,IF(Y49>YEAR+20,0.25,""))))) -> 0.15 | U49: =ROUND((N49+V49)*T49,0) -> 157879 | V49: =ROUND((N49)*23%,0) -> 196814 | W49: 0 | X49: =ROUND(N49+S49+U49+V49,0) -> 1467121 | Y49: 2029 | Z49: =(1+PPI)^('Future Trunk Assets - Roads'!Y49-YEAR) -> 1.155263475 | AA49: =IF(Y49<YEAR,1,IF('General Input Sheet'!$E$32="WACC1",1/(1+WACC1)^(Y49-YEAR), IF('General Input Sheet'!$E$32="WACC2",1/(1+WACC2)^(Y49-YEAR),"Check WACC Option in General Input Sheet"))) -> 0.6316903693 | AB49: =ROUND(X49+L49-W49,0) -> 1594759 | AC49: =IFERROR(ROUND((X49*Z49)+((1+Landind)^(Y49-YEAR)*L49),0),0) -> 1844591 | AD49: =IFERROR(ROUND((AC49*AA49),0),0) -> 1165210
B50: R216 | C50: BEL-RC-002 | D50: Road Corridor Project | E50: 1 | F50: Meadowlands Road (Wright Street to Belmont Road) | G50: 4 Lane Road | H50: 400 | I50: Suburban | J50: 254 | K50: 849.523622 | L50: 215779 | M50: 2671.3575 | N50: 1068543 | O50: 2021 | P50: =IFERROR(('General Input Sheet'!$G$38/(VLOOKUP(O50,Histindex,3,FALSE))),1) -> 1 | Q50: Upgrade | R50: =IFERROR(_xlfn.IFS(AND(Q50<>"New",D50<>"Road Bridge"),30%,AND(Q50<>"New",D50="Road Bridge"),10%),0) -> 0.3 | S50: 320563 | T50: 0.075 | U50: 98573 | V50: 245765 | W50: 0 | X50: 1733444 | Y50: 2024 | Z50: =(1+PPI)^('Future Trunk Assets - Roads'!Y50-YEAR) -> 1.055614607 | AA50: =IF(Y50<YEAR,1,IF('General Input Sheet'!$E$32="WACC1",1/(1+WACC1)^(Y50-YEAR), IF('General Input Sheet'!$E$32="WACC2",1/(1+WACC2)^(Y50-YEAR),"Check WACC Option in General Input Sheet"))) -> 0.8417615727 | AB50: 1949223 | AC50: 2058911 | AD50: 1733112
B51: R216 | C51: BEL-RC-003 | D51: Road Corridor Project | E51: 1 | F51: Dairy Swamp Road Extension (Belmont Road to Formosa Road) | G51: 2 Lane Road | H51: 292 | I51: Suburban | J51: 0 | K51: 0 | L51: 0 | M51: 2746.506849 | N51: 801980 | O51: 2021 | P51: =IFERROR(('General Input Sheet'!$G$38/(VLOOKUP(O51,Histindex,3,FALSE))),1) -> 1 | Q51: New | R51: =IFERROR(_xlfn.IFS(AND(Q51<>"New",D51<>"Road Bridge"),30%,AND(Q51<>"New",D51="Road Bridge"),10%),0) -> 0 | S51: 0 | T51: 0.075 | U51: 73983 | V51: 184455 | W51: 0 | X51: 1060418 | Y51: 2024 | Z51: =(1+PPI)^('Future Trunk Assets - Roads'!Y51-YEAR) -> 1.055614607 | AA51: =IF(Y51<YEAR,1,IF('General Input Sheet'!$E$32="WACC1",1/(1+WACC1)^(Y51-YEAR), IF('General Input Sheet'!$E$32="WACC2",1/(1+WACC2)^(Y51-YEAR),"Check WACC Option in General Input Sheet"))) -> 0.8417615727 | AB51: 1060418 | AC51: 1119393 | AD51: 942262
B52: R216 | C52: BEL-RI-001 | D52: Road Intersection Project | E52: 1 | F52: Belmont Road/Meadowlands Road Intersection | G52: 4 Lane Road / 4 Lane Road | H52: 0 | I52: Suburban / Suburban | J52: 150 | K52: 266.08 | L52: 39912 | M52: 0 | N52: 590337 | O52: 2021 | P52: =IFERROR(('General Input Sheet'!$G$38/(VLOOKUP(O52,Histindex,3,FALSE))),1) -> 1 | Q52: Existing signallised Int | R52: =IFERROR(_xlfn.IFS(AND(Q52<>"New",D52<>"Road Bridge"),30%,AND(Q52<>"New",D52="Road Bridge"),10%),0) -> 0.3 | S52: 177101 | T52: 0.075 | U52: 54459 | V52: 135778 | W52: 0 | X52: 957675 | Y52: 2024 | Z52: =(1+PPI)^('Future Trunk Assets - Roads'!Y52-YEAR) -> 1.055614607 | AA52: =IF(Y52<YEAR,1,IF('General Input Sheet'!$E$32="WACC1",1/(1+WACC1)^(Y52-YEAR), IF('General Input Sheet'!$E$32="WACC2",1/(1+WACC2)^(Y52-YEAR),"Check WACC Option in General Input Sheet"))) -> 0.8417615727 | AB52: 997587 | AC52: 1053305 | AD52: 886632
B53: R216 | C53: BEL-RI-002 | D53: Road Intersection Project | E53: 1 | F53: Meadowlands Road/Wright Street Intersection | G53: 4 Lane Road / 4 Lane Road | H53: 0 | I53: Suburban / Suburban | J53: 0 | K53: 0 | L53: 0 | M53: 0 | N53: 516545 | O53: 2021 | P53: =IFERROR(('General Input Sheet'!$G$38/(VLOOKUP(O53,Histindex,3,FALSE))),1) -> 1 | Q53: Existing signallised Int | R53: =IFERROR(_xlfn.IFS(AND(Q53<>"New",D53<>"Road Bridge"),30%,AND(Q53<>"New",D53="Road Bridge"),10%),0) -> 0.3 | S53: 154964 | T53: 0.075 | U53: 47651 | V53: 118805 | W53: 0 | X53: 837965 | Y53: 2024 | Z53: =(1+PPI)^('Future Trunk Assets - Roads'!Y53-YEAR) -> 1.055614607 | AA53: =IF(Y53<YEAR,1,IF('General Input Sheet'!$E$32="WACC1",1/(1+WACC1)^(Y53-YEAR), IF('General Input Sheet'!$E$32="WACC2",1/(1+WACC2)^(Y53-YEAR),"Check WACC Option in General Input Sheet"))) -> 0.8417615727 | AB53: 837965 | AC53: 884568 | AD53: 744595
B54: R153 | C54: BOH-RC-001 | D54: Road Corridor Project | E54: 8 | F54: Abbotsford Road (Burrows Street to Allison Street) | G54: 6 Lane Road | H54: 355 | I54: Arterial | J54: 1809 | K54: 319.2714207 | L54: 577562 | M54: 3091.526761 | N54: 1097492 | O54: 2021 | P54: =IFERROR(('General Input Sheet'!$G$38/(VLOOKUP(O54,Histindex,3,FALSE))),1) -> 1 | Q54: Upgrade | R54: =IFERROR(_xlfn.IFS(AND(Q54<>"New",D54<>"Road Bridge"),30%,AND(Q54<>"New",D54="Road Bridge"),10%),0) -> 0.3 | S54: 329248 | T54: 0.15 | U54: 202487 | V54: 252423 | W54: 0 | X54: 1881650 | Y54: 2029 | Z54: =(1+PPI)^('Future Trunk Assets - Roads'!Y54-YEAR) -> 1.155263475 | AA54: =IF(Y54<YEAR,1,IF('General Input Sheet'!$E$32="WACC1",1/(1+WACC1)^(Y54-YEAR), IF('General Input Sheet'!$E$32="WACC2",1/(1+WACC2)^(Y54-YEAR),"Check WACC Option in General Input Sheet"))) -> 0.6316903693 | AB54: 2459212 | AC54: 2851101 | AD54: 1801013
B55: R153 | C55: BOH-RC-003 | D55: Road Corridor Project | E55: 8 | F55: Abbotsford Road (bridge over Breakfast Creek to Burrows Street) | G55: 6 Lane Road | H55: 367 | I55: Arterial | J55: 688 | K55: 309.9476744 | L55: 213244 | M55: 3091.525886 | N55: 1134590 | O55: 2021 | P55: =IFERROR(('General Input Sheet'!$G$38/(VLOOKUP(O55,Histindex,3,FALSE))),1) -> 1 | Q55: Upgrade | R55: =IFERROR(_xlfn.IFS(AND(Q55<>"New",D55<>"Road Bridge"),30%,AND(Q55<>"New",D55="Road Bridge"),10%),0) -> 0.3 | S55: 340377 | T55: 0.15 | U55: 209332 | V55: 260956 | W55: 0 | X55: 1945255 | Y55: 2029 | Z55: =(1+PPI)^('Future Trunk Assets - Roads'!Y55-YEAR) -> 1.155263475 | AA55: =IF(Y55<YEAR,1,IF('General Input Sheet'!$E$32="WACC1",1/(1+WACC1)^(Y55-YEAR), IF('General Input Sheet'!$E$32="WACC2",1/(1+WACC2)^(Y55-YEAR),"Check WACC Option in General Input Sheet"))) -> 0.6316903693 | AB55: 2158499 | AC55: 2497351 | AD55: 1577553
B56: R172 | C56: BOH-RI-002 | D56: Road Intersection Project | E56: 8 | F56: Bowen Bridge Road/O'Connell Terrace Intersection | G56: 6 Lane Road / 4 Lane Road | H56: 0 | I56: Arterial / Suburban | J56: 300 | K56: 1023.376667 | L56: 307013 | M56: 0 | N56: 596720 | O56: 2021 | P56: =IFERROR(('General Input Sheet'!$G$38/(VLOOKUP(O56,Histindex,3,FALSE))),1) -> 1 | Q56: Existing signallised Int | R56: =IFERROR(_xlfn.IFS(AND(Q56<>"New",D56<>"Road Bridge"),30%,AND(Q56<>"New",D56="Road Bridge"),10%),0) -> 0.3 | S56: 179016 | T56: 0.075 | U56: 55047 | V56: 137246 | W56: 0 | X56: 968029 | Y56: 2024 | Z56: =(1+PPI)^('Future Trunk Assets - Roads'!Y56-YEAR) -> 1.055614607 | AA56: =IF(Y56<YEAR,1,IF('General Input Sheet'!$E$32="WACC1",1/(1+WACC1)^(Y56-YEAR), IF('General Input Sheet'!$E$32="WACC2",1/(1+WACC2)^(Y56-YEAR),"Check WACC Option in General Input Sheet"))) -> 0.8417615727 | AB56: 1275042 | AC56: 1347777 | AD56: 1134507
B57: R173 | C57: BOH-RI-003 | D57: Road Intersection Project | E57: 8 | F57: St Pauls Terrace/Brookes Street Intersection | G57: 6 Lane Road / 4 Lane Road | H57: 0 | I57: Arterial / Suburban | J57: 0 | K57: 0 | L57: 0 | M57: 0 | N57: 681965 | O57: 2021 | P57: =IFERROR(('General Input Sheet'!$G$38/(VLOOKUP(O57,Histindex,3,FALSE))),1) -> 1 | Q57: Existing signallised Int | R57: =IFERROR(_xlfn.IFS(AND(Q57<>"New",D57<>"Road Bridge"),30%,AND(Q57<>"New",D57="Road Bridge"),10%),0) -> 0.3 | S57: 204590 | T57: 0.075 | U57: 62911 | V57: 156852 | W57: 0 | X57: 1106318 | Y57: 2024 | Z57: =(1+PPI)^('Future Trunk Assets - Roads'!Y57-YEAR) -> 1.055614607 | AA57: =IF(Y57<YEAR,1,IF('General Input Sheet'!$E$32="WACC1",1/(1+WACC1)^(Y57-YEAR), IF('General Input Sheet'!$E$32="WACC2",1/(1+WACC2)^(Y57-YEAR),"Check WACC Option in General Input Sheet"))) -> 0.8417615727 | AB57: 1106318 | AC57: 1167845 | AD57: 983047
B58: R72, R71 | C58: BRD-RC-002 | D58: Road Corridor Project | E58: 15 | F58: Beams Road (Bridgeman Road to Ridley Road) | G58: 4 Lane Road | H58: 793 | I58: Arterial | J58: 2166 | K58: 143.0987996 | L58: 309952 | M58: 2671.358134 | N58: 2118387 | O58: 2021 | P58: =IFERROR(('General Input Sheet'!$G$38/(VLOOKUP(O58,Histindex,3,FALSE))),1) -> 1 | Q58: Upgrade | R58: =IFERROR(_xlfn.IFS(AND(Q58<>"New",D58<>"Road Bridge"),30%,AND(Q58<>"New",D58="Road Bridge"),10%),0) -> 0.3 | S58: 635516 | T58: 0.15 | U58: 390842 | V58: 487229 | W58: 0 | X58: 3631974 | Y58: 2029 | Z58: =(1+PPI)^('Future Trunk Assets - Roads'!Y58-YEAR) -> 1.155263475 | AA58: =IF(Y58<YEAR,1,IF('General Input Sheet'!$E$32="WACC1",1/(1+WACC1)^(Y58-YEAR), IF('General Input Sheet'!$E$32="WACC2",1/(1+WACC2)^(Y58-YEAR),"Check WACC Option in General Input Sheet"))) -> 0.6316903693 | AB58: 3941926 | AC58: 4559364 | AD58: 2880106
B59: R92, R91 | C59: BRD-RC-003 | D59: Road Corridor Project | E59: 15 | F59: Graham Road (Stirling Street to Ridley Road) | G59: 2 Lane Road | H59: 513 | I59: District | J59: 0 | K59: 0 | L59: 0 | M59: 1468.990253 | N59: 753592 | O59: 2021 | P59: =IFERROR(('General Input Sheet'!$G$38/(VLOOKUP(O59,Histindex,3,FALSE))),1) -> 1 | Q59: Upgrade | R59: =IFERROR(_xlfn.IFS(AND(Q59<>"New",D59<>"Road Bridge"),30%,AND(Q59<>"New",D59="Road Bridge"),10%),0) -> 0.3 | S59: 226078 | T59: 0.15 | U59: 139038 | V59: 173326 | W59: 0 | X59: 1292034 | Y59: 2029 | Z59: =(1+PPI)^('Future Trunk Assets - Roads'!Y59-YEAR) -> 1.155263475 | AA59: =IF(Y59<YEAR,1,IF('General Input Sheet'!$E$32="WACC1",1/(1+WACC1)^(Y59-YEAR), IF('General Input Sheet'!$E$32="WACC2",1/(1+WACC2)^(Y59-YEAR),"Check WACC Option in General Input Sheet"))) -> 0.6316903693 | AB59: 1292034 | AC59: 1492640 | AD59: 942886
B60: R52 | C60: BRG-RC-006 | D60: Road Corridor Project | E60: 15 | F60: Hoyland Street (Kluver Street to Bracken Ridge Road) | G60: 4 Lane Road | H60: 1093 | I60: Arterial | J60: 0 | K60: 0 | L60: 0 | M60: 2671.357731 | N60: 2919794 | O60: 2021 | P60: =IFERROR(('General Input Sheet'!$G$38/(VLOOKUP(O60,Histindex,3,FALSE))),1) -> 1 | Q60: Upgrade | R60: =IFERROR(_xlfn.IFS(AND(Q60<>"New",D60<>"Road Bridge"),30%,AND(Q60<>"New",D60="Road Bridge"),10%),0) -> 0.3 | S60: 875938 | T60: 0.075 | U60: 269351 | V60: 671553 | W60: 0 | X60: 4736636 | Y60: 2024 | Z60: =(1+PPI)^('Future Trunk Assets - Roads'!Y60-YEAR) -> 1.055614607 | AA60: =IF(Y60<YEAR,1,IF('General Input Sheet'!$E$32="WACC1",1/(1+WACC1)^(Y60-YEAR), IF('General Input Sheet'!$E$32="WACC2",1/(1+WACC2)^(Y60-YEAR),"Check WACC Option in General Input Sheet"))) -> 0.8417615727 | AB60: 4736636 | AC60: 5000062 | AD60: 4208860
B61: R52 | C61: BRG-RI-004 | D61: Road Intersection Project | E61: 15 | F61: Norris Road/Pritchard Place Intersection | G61: 2 Lane Road / 2 Lane Road | H61: 0 | I61: Suburban / Local | J61: 0 | K61: 0 | L61: 0 | M61: 0 | N61: 430761 | O61: 2021 | P61: =IFERROR(('General Input Sheet'!$G$38/(VLOOKUP(O61,Histindex,3,FALSE))),1) -> 1 | Q61: Existing unsignallised Int | R61: =IFERROR(_xlfn.IFS(AND(Q61<>"New",D61<>"Road Bridge"),30%,AND(Q61<>"New",D61="Road Bridge"),10%),0) -> 0.3 | S61: 129228 | T61: 0.075 | U61: 39738 | V61: 99075 | W61: 0 | X61: 698802 | Y61: 2024 | Z61: =(1+PPI)^('Future Trunk Assets - Roads'!Y61-YEAR) -> 1.055614607 | AA61: =IF(Y61<YEAR,1,IF('General Input Sheet'!$E$32="WACC1",1/(1+WACC1)^(Y61-YEAR), IF('General Input Sheet'!$E$32="WACC2",1/(1+WACC2)^(Y61-YEAR),"Check WACC Option in General Input Sheet"))) -> 0.8417615727 | AB61: 698802 | AC61: 737666 | AD61: 620939
B62: R52 | C62: BRG-RI-005 | D62: Road Intersection Project | E62: 15 | F62: Norris Road/Barbour Road Intersection | G62: 4 Lane Road / 4 Lane Road | H62: 0 | I62: Suburban / District | J62: 0 | K62: 0 | L62: 0 | M62: 0 | N62: 885505 | O62: 2021 | P62: =IFERROR(('General Input Sheet'!$G$38/(VLOOKUP(O62,Histindex,3,FALSE))),1) -> 1 | Q62: Existing unsignallised Int | R62: =IFERROR(_xlfn.IFS(AND(Q62<>"New",D62<>"Road Bridge"),30%,AND(Q62<>"New",D62="Road Bridge"),10%),0) -> 0.3 | S62: 265652 | T62: 0.075 | U62: 81688 | V62: 203666 | W62: 0 | X62: 1436511 | Y62: 2024 | Z62: =(1+PPI)^('Future Trunk Assets - Roads'!Y62-YEAR) -> 1.055614607 | AA62: =IF(Y62<YEAR,1,IF('General Input Sheet'!$E$32="WACC1",1/(1+WACC1)^(Y62-YEAR), IF('General Input Sheet'!$E$32="WACC2",1/(1+WACC2)^(Y62-YEAR),"Check WACC Option in General Input Sheet"))) -> 0.8417615727 | AB62: 1436511 | AC62: 1516402 | AD62: 1276449
B63: R237 | C63: BUR-RI-001 | D63: Road Intersection Project | E63: 2 | F63: Tilley Road/Mount Gravatt Capalaba Road Intersection | G63: 4 Lane Road / 4 Lane Road | H63: 0 | I63: Arterial / Arterial | J63: 0 | K63: 0 | L63: 0 | M63: 0 | N63: 664129 | O63: 2021 | P63: =IFERROR(('General Input Sheet'!$G$38/(VLOOKUP(O63,Histindex,3,FALSE))),1) -> 1 | Q63: Existing unsignallised Int | R63: =IFERROR(_xlfn.IFS(AND(Q63<>"New",D63<>"Road Bridge"),30%,AND(Q63<>"New",D63="Road Bridge"),10%),0) -> 0.3 | S63: 199239 | T63: 0.2 | U63: 163376 | V63: 152750 | W63: 0 | X63: 1179494 | Y63: 2034 | Z63: =(1+PPI)^('Future Trunk Assets - Roads'!Y63-YEAR) -> 1.264319088 | AA63: =IF(Y63<YEAR,1,IF('General Input Sheet'!$E$32="WACC1",1/(1+WACC1)^(Y63-YEAR), IF('General Input Sheet'!$E$32="WACC2",1/(1+WACC2)^(Y63-YEAR),"Check WACC Option in General Input Sheet"))) -> 0.4740448311 | AB63: 1179494 | AC63: 1491257 | AD63: 706923
B64: R114 | C64: BYO-RC-001 | D64: Road Corridor Project | E64: 16 | F64: Nudgee Road (Raubers Road to Tufnell Road) | G64: 4 Lane Road | H64: 615 | I64: Suburban | J64: 1678 | K64: 265.1799762 | L64: 444972 | M64: 2671.357724 | N64: 1642885 | O64: 2021 | P64: =IFERROR(('General Input Sheet'!$G$38/(VLOOKUP(O64,Histindex,3,FALSE))),1) -> 1 | Q64: Upgrade | R64: =IFERROR(_xlfn.IFS(AND(Q64<>"New",D64<>"Road Bridge"),30%,AND(Q64<>"New",D64="Road Bridge"),10%),0) -> 0.3 | S64: 492866 | T64: 0.2 | U64: 404150 | V64: 377864 | W64: 0 | X64: 2917765 | Y64: 2034 | Z64: =(1+PPI)^('Future Trunk Assets - Roads'!Y64-YEAR) -> 1.264319088 | AA64: =IF(Y64<YEAR,1,IF('General Input Sheet'!$E$32="WACC1",1/(1+WACC1)^(Y64-YEAR), IF('General Input Sheet'!$E$32="WACC2",1/(1+WACC2)^(Y64-YEAR),"Check WACC Option in General Input Sheet"))) -> 0.4740448311 | AB64: 3362737 | AC64: 4265426 | AD64: 2022003
B65: R72 | C65: CDE-LC-001 | D65: Open Level Crossing | E65: 15 | F65: Beams Road Open Level Crossing | G65: 4 Lane Road | H65: 0 | I65: Suburban | J65: 0 | K65: 0 | L65: 34500000 | M65: 0 | N65: 141778394 | O65: 2021 | P65: =IFERROR(('General Input Sheet'!$G$38/(VLOOKUP(O65,Histindex,3,FALSE))),1) -> 1 | Q65: N/A | R65: =IFERROR(_xlfn.IFS(AND(Q65<>"New",D65<>"Road Bridge"),30%,AND(Q65<>"New",D65="Road Bridge"),10%),0) -> 0.3 | S65: 42533518 | T65: 0.075 | U65: 13079057 | V65: 32609031 | W65: 195500000 | X65: 230000000 | Y65: 2024 | Z65: =(1+PPI)^('Future Trunk Assets - Roads'!Y65-YEAR) -> 1.055614607 | AA65: =IF(Y65<YEAR,1,IF('General Input Sheet'!$E$32="WACC1",1/(1+WACC1)^(Y65-YEAR), IF('General Input Sheet'!$E$32="WACC2",1/(1+WACC2)^(Y65-YEAR),"Check WACC Option in General Input Sheet"))) -> 0.8417615727 | AB65: 69000000 | AC65: 279415081 | AD65: 235200878
B66: R72 | C66: CDE-RC-003 | D66: Road Corridor Project | E66: 15 | F66: Beams Road (Dorville Road to Balcara Avenue) | G66: 4 Lane Road | H66: 475 | I66: Suburban | J66: 12 | K66: 21.58333333 | L66: 259 | M66: 2671.357895 | N66: 1268895 | O66: 2021 | P66: =IFERROR(('General Input Sheet'!$G$38/(VLOOKUP(O66,Histindex,3,FALSE))),1) -> 1 | Q66: Upgrade | R66: =IFERROR(_xlfn.IFS(AND(Q66<>"New",D66<>"Road Bridge"),30%,AND(Q66<>"New",D66="Road Bridge"),10%),0) -> 0.3 | S66: 380669 | T66: 0.075 | U66: 117056 | V66: 291846 | W66: 0 | X66: 2058466 | Y66: 2024 | Z66: =(1+PPI)^('Future Trunk Assets - Roads'!Y66-YEAR) -> 1.055614607 | AA66: =IF(Y66<YEAR,1,IF('General Input Sheet'!$E$32="WACC1",1/(1+WACC1)^(Y66-YEAR), IF('General Input Sheet'!$E$32="WACC2",1/(1+WACC2)^(Y66-YEAR),"Check WACC Option in General Input Sheet"))) -> 0.8417615727 | AB66: 2058725 | AC66: 2173222 | AD66: 1829335
B67: R72 | C67: CDE-RC-004 | D67: Road Corridor Project | E67: 15 | F67: Beams Road (Gympie Road to Lacey Road) | G67: 4 Lane Road | H67: 145 | I67: Suburban | J67: 140 | K67: 0 | L67: 0 | M67: 2959.6 | N67: 429142 | O67: 2021 | P67: =IFERROR(('General Input Sheet'!$G$38/(VLOOKUP(O67,Histindex,3,FALSE))),1) -> 1 | Q67: Upgrade | R67: =IFERROR(_xlfn.IFS(AND(Q67<>"New",D67<>"Road Bridge"),30%,AND(Q67<>"New",D67="Road Bridge"),10%),0) -> 0.3 | S67: 128743 | T67: 0.075 | U67: 39588 | V67: 98703 | W67: 0 | X67: 696176 | Y67: 2024 | Z67: =(1+PPI)^('Future Trunk Assets - Roads'!Y67-YEAR) -> 1.055614607 | AA67: =IF(Y67<YEAR,1,IF('General Input Sheet'!$E$32="WACC1",1/(1+WACC1)^(Y67-YEAR), IF('General Input Sheet'!$E$32="WACC2",1/(1+WACC2)^(Y67-YEAR),"Check WACC Option in General Input Sheet"))) -> 0.8417615727 | AB67: 696176 | AC67: 734894 | AD67: 618606
B68: R72 | C68: CDE-RC-005 | D68: Road Corridor Project | E68: 15 | F68: Beams Road (Lacey Road to Cowie Road) | G68: 4 Lane Road | H68: 384 | I68: Suburban | J68: 1136 | K68: 612.9084507 | L68: 696264 | M68: 2671.356771 | N68: 1025801 | O68: 2021 | P68: =IFERROR(('General Input Sheet'!$G$38/(VLOOKUP(O68,Histindex,3,FALSE))),1) -> 1 | Q68: Upgrade | R68: =IFERROR(_xlfn.IFS(AND(Q68<>"New",D68<>"Road Bridge"),30%,AND(Q68<>"New",D68="Road Bridge"),10%),0) -> 0.3 | S68: 307740 | T68: 0.075 | U68: 94630 | V68: 235934 | W68: 0 | X68: 1664105 | Y68: 2024 | Z68: =(1+PPI)^('Future Trunk Assets - Roads'!Y68-YEAR) -> 1.055614607 | AA68: =IF(Y68<YEAR,1,IF('General Input Sheet'!$E$32="WACC1",1/(1+WACC1)^(Y68-YEAR), IF('General Input Sheet'!$E$32="WACC2",1/(1+WACC2)^(Y68-YEAR),"Check WACC Option in General Input Sheet"))) -> 0.8417615727 | AB68: 2360369 | AC68: 2495778 | AD68: 2100850
B69: R72 | C69: CDE-RC-006 | D69: Road Corridor Project | E69: 15 | F69: Beams Road (Cowie Road to Dorville Road) | G69: 4 Lane Road | H69: 383 | I69: Suburban | J69: 929 | K69: 827.1614639 | L69: 768433 | M69: 2671.357702 | N69: 1023130 | O69: 2021 | P69: =IFERROR(('General Input Sheet'!$G$38/(VLOOKUP(O69,Histindex,3,FALSE))),1) -> 1 | Q69: Upgrade | R69: =IFERROR(_xlfn.IFS(AND(Q69<>"New",D69<>"Road Bridge"),30%,AND(Q69<>"New",D69="Road Bridge"),10%),0) -> 0.3 | S69: 306939 | T69: 0.075 | U69: 94384 | V69: 235320 | W69: 0 | X69: 1659773 | Y69: 2024 | Z69: =(1+PPI)^('Future Trunk Assets - Roads'!Y69-YEAR) -> 1.055614607 | AA69: =IF(Y69<YEAR,1,IF('General Input Sheet'!$E$32="WACC1",1/(1+WACC1)^(Y69-YEAR), IF('General Input Sheet'!$E$32="WACC2",1/(1+WACC2)^(Y69-YEAR),"Check WACC Option in General Input Sheet"))) -> 0.8417615727 | AB69: 2428206 | AC69: 2567816 | AD69: 2161489
B70: R72 | C70: CDE-RC-007 | D70: Road Corridor Project | E70: 15 | F70: Beams Road (Ridley Road to Gympie Road) | G70: 4 Lane Road | H70: 509 | I70: Arterial | J70: 2113 | K70: 474.945575 | L70: 1003560 | M70: 2671.357564 | N70: 1359721 | O70: 2021 | P70: =IFERROR(('General Input Sheet'!$G$38/(VLOOKUP(O70,Histindex,3,FALSE))),1) -> 1 | Q70: Upgrade | R70: =IFERROR(_xlfn.IFS(AND(Q70<>"New",D70<>"Road Bridge"),30%,AND(Q70<>"New",D70="Road Bridge"),10%),0) -> 0.3 | S70: 407916 | T70: 0.15 | U70: 250869 | V70: 312736 | W70: 0 | X70: 2331242 | Y70: 2029 | Z70: =(1+PPI)^('Future Trunk Assets - Roads'!Y70-YEAR) -> 1.155263475 | AA70: =IF(Y70<YEAR,1,IF('General Input Sheet'!$E$32="WACC1",1/(1+WACC1)^(Y70-YEAR), IF('General Input Sheet'!$E$32="WACC2",1/(1+WACC2)^(Y70-YEAR),"Check WACC Option in General Input Sheet"))) -> 0.6316903693 | AB70: 3334802 | AC70: 3870061 | AD70: 2444680
B71: R72 | C71: CDE-RI-002 | D71: Road Intersection Project | E71: 15 | F71: Beams Road/Dorville Road Intersection | G71: 4 Lane Road / 2 Lane Road | H71: 0 | I71: Suburban / District | J71: 150 | K71: 0 | L71: 0 | M71: 0 | N71: 771474 | O71: 2021 | P71: =IFERROR(('General Input Sheet'!$G$38/(VLOOKUP(O71,Histindex,3,FALSE))),1) -> 1 | Q71: Existing unsignallised Int | R71: =IFERROR(_xlfn.IFS(AND(Q71<>"New",D71<>"Road Bridge"),30%,AND(Q71<>"New",D71="Road Bridge"),10%),0) -> 0.3 | S71: 231442 | T71: 0.075 | U71: 71168 | V71: 177439 | W71: 0 | X71: 1251523 | Y71: 2024 | Z71: =(1+PPI)^('Future Trunk Assets - Roads'!Y71-YEAR) -> 1.055614607 | AA71: =IF(Y71<YEAR,1,IF('General Input Sheet'!$E$32="WACC1",1/(1+WACC1)^(Y71-YEAR), IF('General Input Sheet'!$E$32="WACC2",1/(1+WACC2)^(Y71-YEAR),"Check WACC Option in General Input Sheet"))) -> 0.8417615727 | AB71: 1251523 | AC71: 1321126 | AD71: 1112073
B72: R72 | C72: CDE-RI-003 | D72: Road Intersection Project | E72: 15 | F72: Beams Road/Cowie Road Intersection | G72: 4 Lane Road / 2 Lane Road | H72: 0 | I72: Suburban / District | J72: 150 | K72: 307.0133333 | L72: 46052 | M72: 0 | N72: 578606 | O72: 2021 | P72: =IFERROR(('General Input Sheet'!$G$38/(VLOOKUP(O72,Histindex,3,FALSE))),1) -> 1 | Q72: Existing unsignallised Int | R72: =IFERROR(_xlfn.IFS(AND(Q72<>"New",D72<>"Road Bridge"),30%,AND(Q72<>"New",D72="Road Bridge"),10%),0) -> 0.3 | S72: 173582 | T72: 0.075 | U72: 53376 | V72: 133079 | W72: 0 | X72: 938643 | Y72: 2024 | Z72: =(1+PPI)^('Future Trunk Assets - Roads'!Y72-YEAR) -> 1.055614607 | AA72: =IF(Y72<YEAR,1,IF('General Input Sheet'!$E$32="WACC1",1/(1+WACC1)^(Y72-YEAR), IF('General Input Sheet'!$E$32="WACC2",1/(1+WACC2)^(Y72-YEAR),"Check WACC Option in General Input Sheet"))) -> 0.8417615727 | AB72: 984695 | AC72: 1039732 | AD72: 875206
B73: R72 | C73: CDE-RI-004 | D73: Road Intersection Project | E73: 15 | F73: Beams Road/Lacey Road Intersection | G73: 4 Lane Road / 2 Lane Road | H73: 0 | I73: Arterial / Suburban | J73: 150 | K73: 0 | L73: 0 | M73: 0 | N73: 450026 | O73: 2021 | P73: =IFERROR(('General Input Sheet'!$G$38/(VLOOKUP(O73,Histindex,3,FALSE))),1) -> 1 | Q73: Existing signallised Int | R73: =IFERROR(_xlfn.IFS(AND(Q73<>"New",D73<>"Road Bridge"),30%,AND(Q73<>"New",D73="Road Bridge"),10%),0) -> 0.3 | S73: 135008 | T73: 0.075 | U73: 41515 | V73: 103506 | W73: 0 | X73: 730055 | Y73: 2024 | Z73: =(1+PPI)^('Future Trunk Assets - Roads'!Y73-YEAR) -> 1.055614607 | AA73: =IF(Y73<YEAR,1,IF('General Input Sheet'!$E$32="WACC1",1/(1+WACC1)^(Y73-YEAR), IF('General Input Sheet'!$E$32="WACC2",1/(1+WACC2)^(Y73-YEAR),"Check WACC Option in General Input Sheet"))) -> 0.8417615727 | AB73: 730055 | AC73: 770657 | AD73: 648709
B74: R215 | C74: CDL-RB-002 | D74: Road Bridge | E74: 1, 5 | F74: Meadowlands Road Bridge (between Cadogan Street and Wright Street) | G74: 4 Lane Road | H74: 121 | I74: Suburban | J74: 82 | K74: 0 | L74: 0 | M74: 53448.8843 | N74: 6467315 | O74: 2021 | P74: =IFERROR(('General Input Sheet'!$G$38/(VLOOKUP(O74,Histindex,3,FALSE))),1) -> 1 | Q74: Upgrade | R74: =IFERROR(_xlfn.IFS(AND(Q74<>"New",D74<>"Road Bridge"),30%,AND(Q74<>"New",D74="Road Bridge"),10%),0) -> 0.1 | S74: 646732 | T74: 0.2 | U74: 1590959 | V74: 1487482 | W74: 0 | X74: 10192488 | Y74: 2034 | Z74: =(1+PPI)^('Future Trunk Assets - Roads'!Y74-YEAR) -> 1.264319088 | AA74: =IF(Y74<YEAR,1,IF('General Input Sheet'!$E$32="WACC1",1/(1+WACC1)^(Y74-YEAR), IF('General Input Sheet'!$E$32="WACC2",1/(1+WACC2)^(Y74-YEAR),"Check WACC Option in General Input Sheet"))) -> 0.4740448311 | AB74: 10192488 | AC74: 12886557 | AD74: 6108806
B75: R215 | C75: CDL-RC-002 | D75: Road Corridor Project | E75: 1, 4, 5 | F75: Meadowlands Road (Preston Road to bridge over Bulimba Creek) | G75: 4 Lane Road | H75: 455 | I75: Suburban | J75: 693 | K75: 1077.564214 | L75: 746752 | M75: 2671.358242 | N75: 1215468 | O75: 2021 | P75: =IFERROR(('General Input Sheet'!$G$38/(VLOOKUP(O75,Histindex,3,FALSE))),1) -> 1 | Q75: Upgrade | R75: =IFERROR(_xlfn.IFS(AND(Q75<>"New",D75<>"Road Bridge"),30%,AND(Q75<>"New",D75="Road Bridge"),10%),0) -> 0.3 | S75: 364640 | T75: 0.2 | U75: 299005 | V75: 279558 | W75: 0 | X75: 2158671 | Y75: 2034 | Z75: =(1+PPI)^('Future Trunk Assets - Roads'!Y75-YEAR) -> 1.264319088 | AA75: =IF(Y75<YEAR,1,IF('General Input Sheet'!$E$32="WACC1",1/(1+WACC1)^(Y75-YEAR), IF('General Input Sheet'!$E$32="WACC2",1/(1+WACC2)^(Y75-YEAR),"Check WACC Option in General Input Sheet"))) -> 0.4740448311 | AB75: 2905423 | AC75: 3696630 | AD75: 1752368
B76: R216, R215 | C76: CDL-RC-003 | D76: Road Corridor Project | E76: 1 | F76: Meadowlands Road (bridge over Bulimba Creek to Wright Street) | G76: 4 Lane Road | H76: 301 | I76: Suburban | J76: 115 | K76: 0 | L76: 0 | M76: 2671.358804 | N76: 804079 | O76: 2021 | P76: =IFERROR(('General Input Sheet'!$G$38/(VLOOKUP(O76,Histindex,3,FALSE))),1) -> 1 | Q76: Upgrade | R76: =IFERROR(_xlfn.IFS(AND(Q76<>"New",D76<>"Road Bridge"),30%,AND(Q76<>"New",D76="Road Bridge"),10%),0) -> 0.3 | S76: 241224 | T76: 0.2 | U76: 197803 | V76: 184938 | W76: 0 | X76: 1428044 | Y76: 2034 | Z76: =(1+PPI)^('Future Trunk Assets - Roads'!Y76-YEAR) -> 1.264319088 | AA76: =IF(Y76<YEAR,1,IF('General Input Sheet'!$E$32="WACC1",1/(1+WACC1)^(Y76-YEAR), IF('General Input Sheet'!$E$32="WACC2",1/(1+WACC2)^(Y76-YEAR),"Check WACC Option in General Input Sheet"))) -> 0.4740448311 | AB76: 1428044 | AC76: 1805503 | AD76: 855889
B77: R215 | C77: CDL-RC-004 | D77: Road Corridor Project | E77: 1, 2 | F77: Old Cleveland Road (Scrub Road to Adley Street) | G77: 6 Lane Road | H77: 365 | I77: Arterial | J77: 255 | K77: 251.3254902 | L77: 64088 | M77: 2936.947945 | N77: 1071986 | O77: 2021 | P77: =IFERROR(('General Input Sheet'!$G$38/(VLOOKUP(O77,Histindex,3,FALSE))),1) -> 1 | Q77: Upgrade | R77: =IFERROR(_xlfn.IFS(AND(Q77<>"New",D77<>"Road Bridge"),30%,AND(Q77<>"New",D77="Road Bridge"),10%),0) -> 0.3 | S77: 321596 | T77: 0.15 | U77: 197781 | V77: 246557 | W77: 0 | X77: 1837920 | Y77: 2029 | Z77: =(1+PPI)^('Future Trunk Assets - Roads'!Y77-YEAR) -> 1.155263475 | AA77: =IF(Y77<YEAR,1,IF('General Input Sheet'!$E$32="WACC1",1/(1+WACC1)^(Y77-YEAR), IF('General Input Sheet'!$E$32="WACC2",1/(1+WACC2)^(Y77-YEAR),"Check WACC Option in General Input Sheet"))) -> 0.6316903693 | AB77: 1902008 | AC77: 2198437 | AD77: 1388731
B78: R113 | C78: CHE-RC-009 | D78: Road Corridor Project | E78: 14 | F78: Hamilton Road (Kittyhawk Drive to Pfingst Road) | G78: 4 Lane Road | H78: 792 | I78: Suburban | J78: 2709 | K78: 814.5337763 | L78: 2206572 | M78: 2671.357323 | N78: 2115715 | O78: 2021 | P78: =IFERROR(('General Input Sheet'!$G$38/(VLOOKUP(O78,Histindex,3,FALSE))),1) -> 1 | Q78: Upgrade | R78: =IFERROR(_xlfn.IFS(AND(Q78<>"New",D78<>"Road Bridge"),30%,AND(Q78<>"New",D78="Road Bridge"),10%),0) -> 0.3 | S78: 634715 | T78: 0.15 | U78: 390349 | V78: 486614 | W78: 0 | X78: 3627393 | Y78: 2029 | Z78: =(1+PPI)^('Future Trunk Assets - Roads'!Y78-YEAR) -> 1.155263475 | AA78: =IF(Y78<YEAR,1,IF('General Input Sheet'!$E$32="WACC1",1/(1+WACC1)^(Y78-YEAR), IF('General Input Sheet'!$E$32="WACC2",1/(1+WACC2)^(Y78-YEAR),"Check WACC Option in General Input Sheet"))) -> 0.6316903693 | AB78: 5833965 | AC78: 6778214 | AD78: 4281733
B79: R113 | C79: CHE-RC-010 | D79: Road Corridor Project | E79: 14 | F79: Hamilton Road (Gympie Road to Kingsmill Street) | G79: 4 Lane Road | H79: 322 | I79: Suburban | J79: 111 | K79: 920.6576577 | L79: 102193 | M79: 3233.748447 | N79: 1041267 | O79: 2021 | P79: =IFERROR(('General Input Sheet'!$G$38/(VLOOKUP(O79,Histindex,3,FALSE))),1) -> 1 | Q79: Upgrade | R79: =IFERROR(_xlfn.IFS(AND(Q79<>"New",D79<>"Road Bridge"),30%,AND(Q79<>"New",D79="Road Bridge"),10%),0) -> 0.3 | S79: 312380 | T79: 0.15 | U79: 192114 | V79: 239491 | W79: 0 | X79: 1785252 | Y79: 2029 | Z79: =(1+PPI)^('Future Trunk Assets - Roads'!Y79-YEAR) -> 1.155263475 | AA79: =IF(Y79<YEAR,1,IF('General Input Sheet'!$E$32="WACC1",1/(1+WACC1)^(Y79-YEAR), IF('General Input Sheet'!$E$32="WACC2",1/(1+WACC2)^(Y79-YEAR),"Check WACC Option in General Input Sheet"))) -> 0.6316903693 | AB79: 1887445 | AC79: 2182277 | AD79: 1378523
B80: R113 | C80: CHE-RC-011 | D80: Road Corridor Project | E80: 14 | F80: Hamilton Road (Pfingst Road to Newman Road) | G80: 4 Lane Road | H80: 145 | I80: Suburban | J80: 553 | K80: 1062.289331 | L80: 587446 | M80: 2959.6 | N80: 429142 | O80: 2021 | P80: =IFERROR(('General Input Sheet'!$G$38/(VLOOKUP(O80,Histindex,3,FALSE))),1) -> 1 | Q80: Upgrade | R80: =IFERROR(_xlfn.IFS(AND(Q80<>"New",D80<>"Road Bridge"),30%,AND(Q80<>"New",D80="Road Bridge"),10%),0) -> 0.3 | S80: =ROUND(N80*R80,0) -> 128743 | T80: =IF(Y80="","",IF(Y80<=YEAR+5,0.075,IF(AND(Y80>YEAR+5,Y80<=YEAR+10),0.15,IF(AND(Y80>YEAR+10,Y80<=YEAR+20),0.2,IF(Y80>YEAR+20,0.25,""))))) -> 0.2 | U80: =ROUND((N80+V80)*T80,0) -> 105569 | V80: =ROUND((N80)*23%,0) -> 98703 | W80: 0 | X80: =ROUND(N80+S80+U80+V80,0) -> 762157 | Y80: 2034 | Z80: =(1+PPI)^('Future Trunk Assets - Roads'!Y80-YEAR) -> 1.264319088 | AA80: =IF(Y80<YEAR,1,IF('General Input Sheet'!$E$32="WACC1",1/(1+WACC1)^(Y80-YEAR), IF('General Input Sheet'!$E$32="WACC2",1/(1+WACC2)^(Y80-YEAR),"Check WACC Option in General Input Sheet"))) -> 0.4740448311 | AB80: =ROUND(X80+L80-W80,0) -> 1349603 | AC80: =IFERROR(ROUND((X80*Z80)+((1+Landind)^(Y80-YEAR)*L80),0),0) -> 1724618 | AD80: =IFERROR(ROUND((AC80*AA80),0),0) -> 817546
B81: R112 | C81: CHE-RC-012 | D81: Road Corridor Project | E81: 14, 15 | F81: Hamilton Road (Webster Road to Farnell Street) | G81: 4 Lane Road | H81: 521 | I81: Arterial | J81: 1908 | K81: =IFERROR(L81/J81,0) -> 750.5980084 | L81: 1432141 | M81: =IFERROR(N81/H81,0) -> 2671.357006 | N81: 1391777 | O81: 2021 | P81: =IFERROR(('General Input Sheet'!$G$38/(VLOOKUP(O81,Histindex,3,FALSE))),1) -> 1 | Q81: Upgrade | R81: =IFERROR(_xlfn.IFS(AND(Q81<>"New",D81<>"Road Bridge"),30%,AND(Q81<>"New",D81="Road Bridge"),10%),0) -> 0.3 | S81: 417533 | T81: 0.075 | U81: 128391 | V81: 320109 | W81: 0 | X81: 2257810 | Y81: 2024 | Z81: =(1+PPI)^('Future Trunk Assets - Roads'!Y81-YEAR) -> 1.055614607 | AA81: =IF(Y81<YEAR,1,IF('General Input Sheet'!$E$32="WACC1",1/(1+WACC1)^(Y81-YEAR), IF('General Input Sheet'!$E$32="WACC2",1/(1+WACC2)^(Y81-YEAR),"Check WACC Option in General Input Sheet"))) -> 0.8417615727 | AB81: 3689951 | AC81: 3903677 | AD81: 3285965
B82: R112, R113 | C82: CHE-RC-013 | D82: Road Corridor Project | E82: 14 | F82: Hamilton Road (Farnell Street to Gympie Road) | G82: 4 Lane Road | H82: 393 | I82: Arterial | J82: 1526 | K82: 1039.358453 | L82: 1586061 | M82: 2671.358779 | N82: 1049844 | O82: 2021 | P82: =IFERROR(('General Input Sheet'!$G$38/(VLOOKUP(O82,Histindex,3,FALSE))),1) -> 1 | Q82: Upgrade | R82: =IFERROR(_xlfn.IFS(AND(Q82<>"New",D82<>"Road Bridge"),30%,AND(Q82<>"New",D82="Road Bridge"),10%),0) -> 0.3 | S82: 314953 | T82: 0.15 | U82: 193696 | V82: 241464 | W82: 0 | X82: 1799957 | Y82: 2029 | Z82: =(1+PPI)^('Future Trunk Assets - Roads'!Y82-YEAR) -> 1.155263475 | AA82: =IF(Y82<YEAR,1,IF('General Input Sheet'!$E$32="WACC1",1/(1+WACC1)^(Y82-YEAR), IF('General Input Sheet'!$E$32="WACC2",1/(1+WACC2)^(Y82-YEAR),"Check WACC Option in General Input Sheet"))) -> 0.6316903693 | AB82: 3386018 | AC82: 3939379 | AD82: 2488468
B83: R113 | C83: CHE-RI-006 | D83: Road Intersection Project | E83: 14 | F83: Hamilton Road/Kittyhawk Drive Intersection | G83: 4 Lane Road / 2 Lane Road | H83: 0 | I83: Suburban / District | J83: 150 | K83: 1194.6 | L83: 179190 | M83: 0 | N83: 514316 | O83: 2021 | P83: =IFERROR(('General Input Sheet'!$G$38/(VLOOKUP(O83,Histindex,3,FALSE))),1) -> 1 | Q83: Existing signallised Int | R83: =IFERROR(_xlfn.IFS(AND(Q83<>"New",D83<>"Road Bridge"),30%,AND(Q83<>"New",D83="Road Bridge"),10%),0) -> 0.3 | S83: 154295 | T83: 0.15 | U83: 94891 | V83: 118293 | W83: 0 | X83: 881795 | Y83: 2029 | Z83: =(1+PPI)^('Future Trunk Assets - Roads'!Y83-YEAR) -> 1.155263475 | AA83: =IF(Y83<YEAR,1,IF('General Input Sheet'!$E$32="WACC1",1/(1+WACC1)^(Y83-YEAR), IF('General Input Sheet'!$E$32="WACC2",1/(1+WACC2)^(Y83-YEAR),"Check WACC Option in General Input Sheet"))) -> 0.6316903693 | AB83: 1060985 | AC83: 1228839 | AD83: 776246
B84: R113 | C84: CHE-RI-007 | D84: Road Intersection Project | E84: 14 | F84: Hamilton Road/Pfingst Road Intersection | G84: 4 Lane Road / 2 Lane Road | H84: 0 | I84: Suburban / District | J84: 0 | K84: 0 | L84: 0 | M84: 0 | N84: 450026 | O84: 2021 | P84: =IFERROR(('General Input Sheet'!$G$38/(VLOOKUP(O84,Histindex,3,FALSE))),1) -> 1 | Q84: Existing signallised Int | R84: =IFERROR(_xlfn.IFS(AND(Q84<>"New",D84<>"Road Bridge"),30%,AND(Q84<>"New",D84="Road Bridge"),10%),0) -> 0.3 | S84: 135008 | T84: 0.2 | U84: 110706 | V84: 103506 | W84: 0 | X84: 799246 | Y84: 2034 | Z84: =(1+PPI)^('Future Trunk Assets - Roads'!Y84-YEAR) -> 1.264319088 | AA84: =IF(Y84<YEAR,1,IF('General Input Sheet'!$E$32="WACC1",1/(1+WACC1)^(Y84-YEAR), IF('General Input Sheet'!$E$32="WACC2",1/(1+WACC2)^(Y84-YEAR),"Check WACC Option in General Input Sheet"))) -> 0.4740448311 | AB84: 799246 | AC84: 1010502 | AD84: 479023
B85: R112 | C85: CHE-RI-008 | D85: Road Intersection Project | E85: 14, 15 | F85: Hamilton Road/Webster Road Intersection | G85: 4 Lane Road / 4 Lane Road | H85: 0 | I85: Arterial / Suburban | J85: 0 | K85: 0 | L85: 0 | M85: 0 | N85: 885505 | O85: 2021 | P85: =IFERROR(('General Input Sheet'!$G$38/(VLOOKUP(O85,Histindex,3,FALSE))),1) -> 1 | Q85: Existing unsignallised Int | R85: =IFERROR(_xlfn.IFS(AND(Q85<>"New",D85<>"Road Bridge"),30%,AND(Q85<>"New",D85="Road Bridge"),10%),0) -> 0.3 | S85: 265652 | T85: 0.075 | U85: 81688 | V85: 203666 | W85: 0 | X85: 1436511 | Y85: 2024 | Z85: =(1+PPI)^('Future Trunk Assets - Roads'!Y85-YEAR) -> 1.055614607 | AA85: =IF(Y85<YEAR,1,IF('General Input Sheet'!$E$32="WACC1",1/(1+WACC1)^(Y85-YEAR), IF('General Input Sheet'!$E$32="WACC2",1/(1+WACC2)^(Y85-YEAR),"Check WACC Option in General Input Sheet"))) -> 0.8417615727 | AB85: 1436511 | AC85: 1516402 | AD85: 1276449
B86: R230 | C86: CHL-RC-001 | D86: Road Corridor Project | E86: 11 | F86: Fig Tree Pocket Road (Centenary Motorway on-ramp to Winking Street) | G86: 4 Lane Road | H86: 352 | I86: Suburban | J86: 788 | K86: 687.7741117 | L86: 541966 | M86: 2671.357955 | N86: 940318 | O86: 2021 | P86: =IFERROR(('General Input Sheet'!$G$38/(VLOOKUP(O86,Histindex,3,FALSE))),1) -> 1 | Q86: Upgrade | R86: =IFERROR(_xlfn.IFS(AND(Q86<>"New",D86<>"Road Bridge"),30%,AND(Q86<>"New",D86="Road Bridge"),10%),0) -> 0.3 | S86: 282095 | T86: 0.2 | U86: 231318 | V86: 216273 | W86: 0 | X86: 1670004 | Y86: 2034 | Z86: =(1+PPI)^('Future Trunk Assets - Roads'!Y86-YEAR) -> 1.264319088 | AA86: =IF(Y86<YEAR,1,IF('General Input Sheet'!$E$32="WACC1",1/(1+WACC1)^(Y86-YEAR), IF('General Input Sheet'!$E$32="WACC2",1/(1+WACC2)^(Y86-YEAR),"Check WACC Option in General Input Sheet"))) -> 0.4740448311 | AB86: 2211970 | AC86: 2813509 | AD86: 1333729
B87: R112 | C87: CHW-RC-003 | D87: Road Corridor Project | E87: 14 | F87: Rode Road (Maundrell Terrace to bridge over Downfall Creek) | G87: 4 Lane Road | H87: 584 | I87: Suburban | J87: 2088 | K87: 888.0862069 | L87: 1854324 | M87: 2671.357877 | N87: 1560073 | O87: 2021 | P87: =IFERROR(('General Input Sheet'!$G$38/(VLOOKUP(O87,Histindex,3,FALSE))),1) -> 1 | Q87: Upgrade | R87: =IFERROR(_xlfn.IFS(AND(Q87<>"New",D87<>"Road Bridge"),30%,AND(Q87<>"New",D87="Road Bridge"),10%),0) -> 0.3 | S87: 468022 | T87: 0.2 | U87: 383778 | V87: 358817 | W87: 0 | X87: 2770690 | Y87: 2034 | Z87: =(1+PPI)^('Future Trunk Assets - Roads'!Y87-YEAR) -> 1.264319088 | AA87: =IF(Y87<YEAR,1,IF('General Input Sheet'!$E$32="WACC1",1/(1+WACC1)^(Y87-YEAR), IF('General Input Sheet'!$E$32="WACC2",1/(1+WACC2)^(Y87-YEAR),"Check WACC Option in General Input Sheet"))) -> 0.4740448311 | AB87: 4625014 | AC87: 5905224 | AD87: 2799341
B88: R112 | C88: CHW-RC-004 | D88: Road Corridor Project | E88: 14 | F88: Rode Road (Maundrell Terrace to Webster Road) | G88: 4 Lane Road | H88: 375 | I88: Suburban | J88: 232 | K88: 1079.021552 | L88: 250333 | M88: 2671.357333 | N88: 1001759 | O88: 2021 | P88: =IFERROR(('General Input Sheet'!$G$38/(VLOOKUP(O88,Histindex,3,FALSE))),1) -> 1 | Q88: Upgrade | R88: =IFERROR(_xlfn.IFS(AND(Q88<>"New",D88<>"Road Bridge"),30%,AND(Q88<>"New",D88="Road Bridge"),10%),0) -> 0.3 | S88: 300528 | T88: 0.15 | U88: 184825 | V88: 230405 | W88: 0 | X88: 1717517 | Y88: 2029 | Z88: =(1+PPI)^('Future Trunk Assets - Roads'!Y88-YEAR) -> 1.155263475 | AA88: =IF(Y88<YEAR,1,IF('General Input Sheet'!$E$32="WACC1",1/(1+WACC1)^(Y88-YEAR), IF('General Input Sheet'!$E$32="WACC2",1/(1+WACC2)^(Y88-YEAR),"Check WACC Option in General Input Sheet"))) -> 0.6316903693 | AB88: 1967850 | AC88: 2277747 | AD88: 1438831
B89: R112 | C89: CHW-RC-005 | D89: Road Corridor Project | E89: 14 | F89: Rode Road (Maundrell Terrace to Webster Road) | G89: 4 Lane Road | H89: 102 | I89: Suburban | J89: 0 | K89: 0 | L89: 0 | M89: 3582.666667 | N89: 365432 | O89: 2021 | P89: =IFERROR(('General Input Sheet'!$G$38/(VLOOKUP(O89,Histindex,3,FALSE))),1) -> 1 | Q89: Upgrade | R89: =IFERROR(_xlfn.IFS(AND(Q89<>"New",D89<>"Road Bridge"),30%,AND(Q89<>"New",D89="Road Bridge"),10%),0) -> 0.3 | S89: 109630 | T89: 0.2 | U89: 89896 | V89: 84049 | W89: 0 | X89: 649007 | Y89: 2034 | Z89: =(1+PPI)^('Future Trunk Assets - Roads'!Y89-YEAR) -> 1.264319088 | AA89: =IF(Y89<YEAR,1,IF('General Input Sheet'!$E$32="WACC1",1/(1+WACC1)^(Y89-YEAR), IF('General Input Sheet'!$E$32="WACC2",1/(1+WACC2)^(Y89-YEAR),"Check WACC Option in General Input Sheet"))) -> 0.4740448311 | AB89: 649007 | AC89: 820552 | AD89: 388978
B90: R112 | C90: CHW-RI-002 | D90: Road Intersection Project | E90: 14 | F90: Rode Road/Webster Road Intersection | G90: 4 Lane Road / 4 Lane Road | H90: 0 | I90: Suburban / Suburban | J90: 150 | K90: 255.8466667 | L90: 38377 | M90: 0 | N90: 590337 | O90: 2021 | P90: =IFERROR(('General Input Sheet'!$G$38/(VLOOKUP(O90,Histindex,3,FALSE))),1) -> 1 | Q90: Existing signallised Int | R90: =IFERROR(_xlfn.IFS(AND(Q90<>"New",D90<>"Road Bridge"),30%,AND(Q90<>"New",D90="Road Bridge"),10%),0) -> 0.3 | S90: 177101 | T90: 0.15 | U90: 108917 | V90: 135778 | W90: 0 | X90: 1012133 | Y90: 2029 | Z90: =(1+PPI)^('Future Trunk Assets - Roads'!Y90-YEAR) -> 1.155263475 | AA90: =IF(Y90<YEAR,1,IF('General Input Sheet'!$E$32="WACC1",1/(1+WACC1)^(Y90-YEAR), IF('General Input Sheet'!$E$32="WACC2",1/(1+WACC2)^(Y90-YEAR),"Check WACC Option in General Input Sheet"))) -> 0.6316903693 | AB90: 1050510 | AC90: 1214285 | AD90: 767052
B91: R112 | C91: CHW-RI-003 | D91: Road Intersection Project | E91: 14 | F91: Rode Road/Maundrell Terrace Intersection | G91: 4 Lane Road / 4 Lane Road | H91: 0 | I91: Suburban / Suburban | J91: 450 | K91: 0 | L91: 0 | M91: 0 | N91: 714619 | O91: 2021 | P91: =IFERROR(('General Input Sheet'!$G$38/(VLOOKUP(O91,Histindex,3,FALSE))),1) -> 1 | Q91: Existing signallised Int | R91: =IFERROR(_xlfn.IFS(AND(Q91<>"New",D91<>"Road Bridge"),30%,AND(Q91<>"New",D91="Road Bridge"),10%),0) -> 0.3 | S91: 214386 | T91: 0.2 | U91: 175796 | V91: 164362 | W91: 0 | X91: 1269163 | Y91: 2034 | Z91: =(1+PPI)^('Future Trunk Assets - Roads'!Y91-YEAR) -> 1.264319088 | AA91: =IF(Y91<YEAR,1,IF('General Input Sheet'!$E$32="WACC1",1/(1+WACC1)^(Y91-YEAR), IF('General Input Sheet'!$E$32="WACC2",1/(1+WACC2)^(Y91-YEAR),"Check WACC Option in General Input Sheet"))) -> 0.4740448311 | AB91: 1269163 | AC91: 1604627 | AD91: 760665
B92: R133 | C92: CLF-RI-002 | D92: Road Intersection Project | E92: 16 | F92: Sandgate Road/Bayview Terrace Intersection | G92: 4 Lane Road / 2 Lane Road | H92: 0 | I92: Arterial / District | J92: 0 | K92: 0 | L92: 0 | M92: 0 | N92: 514316 | O92: 2021 | P92: =IFERROR(('General Input Sheet'!$G$38/(VLOOKUP(O92,Histindex,3,FALSE))),1) -> 1 | Q92: Existing signallised Int | R92: =IFERROR(_xlfn.IFS(AND(Q92<>"New",D92<>"Road Bridge"),30%,AND(Q92<>"New",D92="Road Bridge"),10%),0) -> 0.3 | S92: 154295 | T92: 0.2 | U92: 126522 | V92: 118293 | W92: 0 | X92: 913426 | Y92: 2034 | Z92: =(1+PPI)^('Future Trunk Assets - Roads'!Y92-YEAR) -> 1.264319088 | AA92: =IF(Y92<YEAR,1,IF('General Input Sheet'!$E$32="WACC1",1/(1+WACC1)^(Y92-YEAR), IF('General Input Sheet'!$E$32="WACC2",1/(1+WACC2)^(Y92-YEAR),"Check WACC Option in General Input Sheet"))) -> 0.4740448311 | AB92: 913426 | AC92: 1154862 | AD92: 547456
B93: R153 | C93: CLF-RI-003 | D93: Road Intersection Project | E93: 16 | F93: Sandgate Road/Oriel Road Intersection | G93: 6 Lane Road / 4 Lane Road | H93: 0 | I93: Arterial / District | J93: 150 | K93: 1171.766667 | L93: 175765 | M93: 0 | N93: 566884 | O93: 2021 | P93: =IFERROR(('General Input Sheet'!$G$38/(VLOOKUP(O93,Histindex,3,FALSE))),1) -> 1 | Q93: Existing signallised Int | R93: =IFERROR(_xlfn.IFS(AND(Q93<>"New",D93<>"Road Bridge"),30%,AND(Q93<>"New",D93="Road Bridge"),10%),0) -> 0.3 | S93: 170065 | T93: 0.2 | U93: 139453 | V93: 130383 | W93: 0 | X93: 1006785 | Y93: 2034 | Z93: =(1+PPI)^('Future Trunk Assets - Roads'!Y93-YEAR) -> 1.264319088 | AA93: =IF(Y93<YEAR,1,IF('General Input Sheet'!$E$32="WACC1",1/(1+WACC1)^(Y93-YEAR), IF('General Input Sheet'!$E$32="WACC2",1/(1+WACC2)^(Y93-YEAR),"Check WACC Option in General Input Sheet"))) -> 0.4740448311 | AB93: 1182550 | AC93: 1500593 | AD93: 711348
B94: R195 | C94: CLL-RC-004 | D94: Road Corridor Project | E94: 5 | F94: Wynnum Road (Southgate Avenue to Creek Road) | G94: 6 Lane Road | H94: 275 | I94: Arterial | J94: 2 | K94: 465.5 | L94: 931 | M94: 3555.254545 | N94: 977695 | O94: 2021 | P94: =IFERROR(('General Input Sheet'!$G$38/(VLOOKUP(O94,Histindex,3,FALSE))),1) -> 1 | Q94: Upgrade | R94: =IFERROR(_xlfn.IFS(AND(Q94<>"New",D94<>"Road Bridge"),30%,AND(Q94<>"New",D94="Road Bridge"),10%),0) -> 0.3 | S94: 293309 | T94: 0.075 | U94: 90192 | V94: 224870 | W94: 0 | X94: 1586066 | Y94: 2024 | Z94: =(1+PPI)^('Future Trunk Assets - Roads'!Y94-YEAR) -> 1.055614607 | AA94: =IF(Y94<YEAR,1,IF('General Input Sheet'!$E$32="WACC1",1/(1+WACC1)^(Y94-YEAR), IF('General Input Sheet'!$E$32="WACC2",1/(1+WACC2)^(Y94-YEAR),"Check WACC Option in General Input Sheet"))) -> 0.8417615727 | AB94: 1586997 | AC94: 1675263 | AD94: 1410172
B95: R195 | C95: CLL-RI-003 | D95: Road Intersection Project | E95: 5 | F95: Wynnum Road/Creek Road Intersection | G95: 6 Lane Road / 6 Lane Road | H95: 0 | I95: Arterial / Arterial | J95: 300 | K95: 767.53 | L95: 230259 | M95: 0 | N95: 827532 | O95: 2021 | P95: =IFERROR(('General Input Sheet'!$G$38/(VLOOKUP(O95,Histindex,3,FALSE))),1) -> 1 | Q95: Existing signallised Int | R95: =IFERROR(_xlfn.IFS(AND(Q95<>"New",D95<>"Road Bridge"),30%,AND(Q95<>"New",D95="Road Bridge"),10%),0) -> 0.3 | S95: 248260 | T95: 0.2 | U95: 203573 | V95: 190332 | W95: 0 | X95: 1469697 | Y95: 2034 | Z95: =(1+PPI)^('Future Trunk Assets - Roads'!Y95-YEAR) -> 1.264319088 | AA95: =IF(Y95<YEAR,1,IF('General Input Sheet'!$E$32="WACC1",1/(1+WACC1)^(Y95-YEAR), IF('General Input Sheet'!$E$32="WACC2",1/(1+WACC2)^(Y95-YEAR),"Check WACC Option in General Input Sheet"))) -> 0.4740448311 | AB95: 1699956 | AC95: 2156455 | AD95: 1022256
B96: R195 | C96: CLL-RI-004 | D96: Road Intersection Project | E96: 5 | F96: Wynnum Road/Southgate Avenue/Cannondale Street Intersection | G96: 6 Lane Road / 2 Lane Road | H96: 0 | I96: Arterial / District | J96: 0 | K96: 0 | L96: 0 | M96: 0 | N96: 690577 | O96: 2021 | P96: =IFERROR(('General Input Sheet'!$G$38/(VLOOKUP(O96,Histindex,3,FALSE))),1) -> 1 | Q96: Existing signallised Int | R96: =IFERROR(_xlfn.IFS(AND(Q96<>"New",D96<>"Road Bridge"),30%,AND(Q96<>"New",D96="Road Bridge"),10%),0) -> 0.3 | S96: 207173 | T96: 0.075 | U96: 63706 | V96: 158833 | W96: 0 | X96: 1120289 | Y96: 2024 | Z96: =(1+PPI)^('Future Trunk Assets - Roads'!Y96-YEAR) -> 1.055614607 | AA96: =IF(Y96<YEAR,1,IF('General Input Sheet'!$E$32="WACC1",1/(1+WACC1)^(Y96-YEAR), IF('General Input Sheet'!$E$32="WACC2",1/(1+WACC2)^(Y96-YEAR),"Check WACC Option in General Input Sheet"))) -> 0.8417615727 | AB96: 1120289 | AC96: 1182593 | AD96: 995461
B97: R213 | C97: COO-LC-001 | D97: Open Level Crossing | E97: 4 | F97: Cavendish Road Open Level Crossing | G97: 4 Lane Road | H97: 0 | I97: Suburban | J97: 0 | K97: 0 | L97: 51000000 | M97: 0 | N97: 198308545 | O97: 2021 | P97: =IFERROR(('General Input Sheet'!$G$38/(VLOOKUP(O97,Histindex,3,FALSE))),1) -> 1 | Q97: N/A | R97: =IFERROR(_xlfn.IFS(AND(Q97<>"New",D97<>"Road Bridge"),30%,AND(Q97<>"New",D97="Road Bridge"),10%),0) -> 0.3 | S97: 59492564 | T97: 0.15 | U97: 36587927 | V97: 45610965 | W97: 289000001 | X97: 340000001 | Y97: 2029 | Z97: =(1+PPI)^('Future Trunk Assets - Roads'!Y97-YEAR) -> 1.155263475 | AA97: =IF(Y97<YEAR,1,IF('General Input Sheet'!$E$32="WACC1",1/(1+WACC1)^(Y97-YEAR), IF('General Input Sheet'!$E$32="WACC2",1/(1+WACC2)^(Y97-YEAR),"Check WACC Option in General Input Sheet"))) -> 0.6316903693 | AB97: 102000000 | AC97: 452596653 | AD97: 285900947
B98: R213 | C98: COO-RC-005 | D98: Road Corridor Project | E98: 4 | F98: Cavendish Road (Holdsworth Street to Wakefield Street) | G98: 4 Lane Road | H98: 159 | I98: Suburban | J98: 462 | K98: 777.1861472 | L98: 359060 | M98: 3582.666667 | N98: 569644 | O98: 2021 | P98: =IFERROR(('General Input Sheet'!$G$38/(VLOOKUP(O98,Histindex,3,FALSE))),1) -> 1 | Q98: Upgrade | R98: =IFERROR(_xlfn.IFS(AND(Q98<>"New",D98<>"Road Bridge"),30%,AND(Q98<>"New",D98="Road Bridge"),10%),0) -> 0.3 | S98: 170893 | T98: 0.15 | U98: 105099 | V98: 131018 | W98: 0 | X98: 976654 | Y98: 2029 | Z98: =(1+PPI)^('Future Trunk Assets - Roads'!Y98-YEAR) -> 1.155263475 | AA98: =IF(Y98<YEAR,1,IF('General Input Sheet'!$E$32="WACC1",1/(1+WACC1)^(Y98-YEAR), IF('General Input Sheet'!$E$32="WACC2",1/(1+WACC2)^(Y98-YEAR),"Check WACC Option in General Input Sheet"))) -> 0.6316903693 | AB98: 1335714 | AC98: 1549358 | AD98: 978715
B99: R213, R193 | C99: COO-RC-006 | D99: Road Corridor Project | E99: 4 | F99: Cavendish Road (Wakefield Street to Stanley Street East) | G99: 4 Lane Road | H99: 620 | I99: Suburban | J99: 2012 | K99: 956.4189861 | L99: 1924315 | M99: 2811.954839 | N99: 1743412 | O99: 2021 | P99: =IFERROR(('General Input Sheet'!$G$38/(VLOOKUP(O99,Histindex,3,FALSE))),1) -> 1 | Q99: Upgrade | R99: =IFERROR(_xlfn.IFS(AND(Q99<>"New",D99<>"Road Bridge"),30%,AND(Q99<>"New",D99="Road Bridge"),10%),0) -> 0.3 | S99: 523024 | T99: 0.15 | U99: 321660 | V99: 400985 | W99: 0 | X99: 2989081 | Y99: 2029 | Z99: =(1+PPI)^('Future Trunk Assets - Roads'!Y99-YEAR) -> 1.155263475 | AA99: =IF(Y99<YEAR,1,IF('General Input Sheet'!$E$32="WACC1",1/(1+WACC1)^(Y99-YEAR), IF('General Input Sheet'!$E$32="WACC2",1/(1+WACC2)^(Y99-YEAR),"Check WACC Option in General Input Sheet"))) -> 0.6316903693 | AB99: 4913396 | AC99: 5709797 | AD99: 3606824
B100: R193 | C100: COO-RC-007 | D100: Road Corridor Project | E100: 8, 4 | F100: Stanley Street East (Cavendish Road to bridge over Norman Creek) | G100: 4 Lane Road | H100: 350 | I100: Suburban | J100: 655 | K100: 20.63969466 | L100: 13519 | M100: 2811.954286 | N100: 984184 | O100: 2021 | P100: =IFERROR(('General Input Sheet'!$G$38/(VLOOKUP(O100,Histindex,3,FALSE))),1) -> 1 | Q100: Upgrade | R100: =IFERROR(_xlfn.IFS(AND(Q100<>"New",D100<>"Road Bridge"),30%,AND(Q100<>"New",D100="Road Bridge"),10%),0) -> 0.3 | S100: 295255 | T100: 0.15 | U100: 181582 | V100: 226362 | W100: 0 | X100: 1687383 | Y100: 2029 | Z100: =(1+PPI)^('Future Trunk Assets - Roads'!Y100-YEAR) -> 1.155263475 | AA100: =IF(Y100<YEAR,1,IF('General Input Sheet'!$E$32="WACC1",1/(1+WACC1)^(Y100-YEAR), IF('General Input Sheet'!$E$32="WACC2",1/(1+WACC2)^(Y100-YEAR),"Check WACC Option in General Input Sheet"))) -> 0.6316903693 | AB100: 1700902 | AC100: 1965226 | AD100: 1241414
B101: R213 | C101: COO-RC-008 | D101: Road Corridor Project | E101: 4 | F101: Cavendish Road (Old Cleveland Road to Holdsworth Street) | G101: 4 Lane Road | H101: 76 | I101: Suburban | J101: 90 | K101: 1137.033333 | L101: 102333 | M101: 4370.236842 | N101: 332138 | O101: 2021 | P101: =IFERROR(('General Input Sheet'!$G$38/(VLOOKUP(O101,Histindex,3,FALSE))),1) -> 1 | Q101: Upgrade | R101: =IFERROR(_xlfn.IFS(AND(Q101<>"New",D101<>"Road Bridge"),30%,AND(Q101<>"New",D101="Road Bridge"),10%),0) -> 0.3 | S101: 99641 | T101: 0.15 | U101: 61280 | V101: 76392 | W101: 0 | X101: 569451 | Y101: 2029 | Z101: =(1+PPI)^('Future Trunk Assets - Roads'!Y101-YEAR) -> 1.155263475 | AA101: =IF(Y101<YEAR,1,IF('General Input Sheet'!$E$32="WACC1",1/(1+WACC1)^(Y101-YEAR), IF('General Input Sheet'!$E$32="WACC2",1/(1+WACC2)^(Y101-YEAR),"Check WACC Option in General Input Sheet"))) -> 0.6316903693 | AB101: 671784 | AC101: 777871 | AD101: 491374
B102: R213, R214 | C102: COO-RC-009 | D102: Road Corridor Project | E102: 4 | F102: Cavendish Road (Old Cleveland Road to York Street) | G102: 4 Lane Road | H102: 618 | I102: Suburban | J102: 2371 | K102: 1082.209194 | L102: 2565918 | M102: 2671.357605 | N102: 1650899 | O102: 2021 | P102: =IFERROR(('General Input Sheet'!$G$38/(VLOOKUP(O102,Histindex,3,FALSE))),1) -> 1 | Q102: Upgrade | R102: =IFERROR(_xlfn.IFS(AND(Q102<>"New",D102<>"Road Bridge"),30%,AND(Q102<>"New",D102="Road Bridge"),10%),0) -> 0.3 | S102: 495270 | T102: 0.15 | U102: 304591 | V102: 379707 | W102: 0 | X102: 2830467 | Y102: 2029 | Z102: =(1+PPI)^('Future Trunk Assets - Roads'!Y102-YEAR) -> 1.155263475 | AA102: =IF(Y102<YEAR,1,IF('General Input Sheet'!$E$32="WACC1",1/(1+WACC1)^(Y102-YEAR), IF('General Input Sheet'!$E$32="WACC2",1/(1+WACC2)^(Y102-YEAR),"Check WACC Option in General Input Sheet"))) -> 0.6316903693 | AB102: 5396385 | AC102: 6278955 | AD102: 3966355
B103: R193 | C103: COO-RI-001 | D103: Road Intersection Project | E103: 4 | F103: Cavendish Road/Stanley Street East Intersection | G103: 4 Lane Road / 4 Lane Road | H103: 0 | I103: Suburban / Suburban | J103: 0 | K103: 0 | L103: 0 | M103: 0 | N103: 621407 | O103: 2021 | P103: =IFERROR(('General Input Sheet'!$G$38/(VLOOKUP(O103,Histindex,3,FALSE))),1) -> 1 | Q103: Existing signallised Int | R103: =IFERROR(_xlfn.IFS(AND(Q103<>"New",D103<>"Road Bridge"),30%,AND(Q103<>"New",D103="Road Bridge"),10%),0) -> 0.3 | S103: 186422 | T103: 0.15 | U103: 114650 | V103: 142924 | W103: 0 | X103: 1065403 | Y103: 2029 | Z103: =(1+PPI)^('Future Trunk Assets - Roads'!Y103-YEAR) -> 1.155263475 | AA103: =IF(Y103<YEAR,1,IF('General Input Sheet'!$E$32="WACC1",1/(1+WACC1)^(Y103-YEAR), IF('General Input Sheet'!$E$32="WACC2",1/(1+WACC2)^(Y103-YEAR),"Check WACC Option in General Input Sheet"))) -> 0.6316903693 | AB103: 1065403 | AC103: 1230821 | AD103: 777498
B104: R213 | C104: COO-RI-002 | D104: Road Intersection Project | E104: 4 | F104: Cavendish Road/Holdsworth Street Intersection | G104: 4 Lane Road / 4 Lane Road | H104: 0 | I104: Suburban / Suburban | J104: 150 | K104: 1023.373333 | L104: 153506 | M104: 0 | N104: 803946 | O104: 2021 | P104: =IFERROR(('General Input Sheet'!$G$38/(VLOOKUP(O104,Histindex,3,FALSE))),1) -> 1 | Q104: Existing unsignallised Int | R104: =IFERROR(_xlfn.IFS(AND(Q104<>"New",D104<>"Road Bridge"),30%,AND(Q104<>"New",D104="Road Bridge"),10%),0) -> 0.3 | S104: 241184 | T104: 0.075 | U104: 74164 | V104: 184908 | W104: 0 | X104: 1304202 | Y104: 2024 | Z104: =(1+PPI)^('Future Trunk Assets - Roads'!Y104-YEAR) -> 1.055614607 | AA104: =IF(Y104<YEAR,1,IF('General Input Sheet'!$E$32="WACC1",1/(1+WACC1)^(Y104-YEAR), IF('General Input Sheet'!$E$32="WACC2",1/(1+WACC2)^(Y104-YEAR),"Check WACC Option in General Input Sheet"))) -> 0.8417615727 | AB104: 1457708 | AC104: 1539690 | AD104: 1296052
B105: R214 | C105: COO-RI-003 | D105: Road Intersection Project | E105: 4 | F105: Cavendish Road/Chatsworth Road Intersection | G105: 4 Lane Road / 4 Lane Road | H105: 0 | I105: Suburban / Suburban | J105: 150 | K105: 1171.766667 | L105: 175765 | M105: 0 | N105: 590337 | O105: 2021 | P105: =IFERROR(('General Input Sheet'!$G$38/(VLOOKUP(O105,Histindex,3,FALSE))),1) -> 1 | Q105: Existing signallised Int | R105: =IFERROR(_xlfn.IFS(AND(Q105<>"New",D105<>"Road Bridge"),30%,AND(Q105<>"New",D105="Road Bridge"),10%),0) -> 0.3 | S105: 177101 | T105: 0.2 | U105: 145223 | V105: 135778 | W105: 0 | X105: 1048439 | Y105: 2034 | Z105: =(1+PPI)^('Future Trunk Assets - Roads'!Y105-YEAR) -> 1.264319088 | AA105: =IF(Y105<YEAR,1,IF('General Input Sheet'!$E$32="WACC1",1/(1+WACC1)^(Y105-YEAR), IF('General Input Sheet'!$E$32="WACC2",1/(1+WACC2)^(Y105-YEAR),"Check WACC Option in General Input Sheet"))) -> 0.4740448311 | AB105: 1224204 | AC105: 1553257 | AD105: 736313
B106: R213 | C106: COO-RI-005 | D106: Road Intersection Project | E106: 4 | F106: Old Cleveland Road/Cavendish Road Intersection | G106: 6 Lane Road / 4 Lane Road | H106: 0 | I106: Arterial / Suburban | J106: 300 | K106: 869.87 | L106: 260961 | M106: 0 | N106: 784259 | O106: 2021 | P106: =IFERROR(('General Input Sheet'!$G$38/(VLOOKUP(O106,Histindex,3,FALSE))),1) -> 1 | Q106: Existing signallised Int | R106: =IFERROR(_xlfn.IFS(AND(Q106<>"New",D106<>"Road Bridge"),30%,AND(Q106<>"New",D106="Road Bridge"),10%),0) -> 0.3 | S106: 235278 | T106: 0.15 | U106: 144696 | V106: 180380 | W106: 0 | X106: 1344613 | Y106: 2029 | Z106: =(1+PPI)^('Future Trunk Assets - Roads'!Y106-YEAR) -> 1.155263475 | AA106: =IF(Y106<YEAR,1,IF('General Input Sheet'!$E$32="WACC1",1/(1+WACC1)^(Y106-YEAR), IF('General Input Sheet'!$E$32="WACC2",1/(1+WACC2)^(Y106-YEAR),"Check WACC Option in General Input Sheet"))) -> 0.6316903693 | AB106: 1605574 | AC106: 1859408 | AD106: 1174570
B107: R273 | C107: COP-LC-001 | D107: Open Level Crossing | E107: 7 | F107: Boundary Road Open Level Crossing | G107: 4 Lane Road | H107: 0 | I107: Suburban | J107: 0 | K107: 0 | L107: 48000000 | M107: 0 | N107: 197256896 | O107: 2021 | P107: =IFERROR(('General Input Sheet'!$G$38/(VLOOKUP(O107,Histindex,3,FALSE))),1) -> 1 | Q107: N/A | R107: =IFERROR(_xlfn.IFS(AND(Q107<>"New",D107<>"Road Bridge"),30%,AND(Q107<>"New",D107="Road Bridge"),10%),0) -> 0.3 | S107: 59177069 | T107: 0.075 | U107: 18196949 | V107: 45369086 | W107: 272000000 | X107: 320000000 | Y107: 2024 | Z107: =(1+PPI)^('Future Trunk Assets - Roads'!Y107-YEAR) -> 1.055614607 | AA107: =IF(Y107<YEAR,1,IF('General Input Sheet'!$E$32="WACC1",1/(1+WACC1)^(Y107-YEAR), IF('General Input Sheet'!$E$32="WACC2",1/(1+WACC2)^(Y107-YEAR),"Check WACC Option in General Input Sheet"))) -> 0.8417615727 | AB107: 96000000 | AC107: 388751418 | AD107: 327236005
B108: R273 | C108: COP-RC-001 | D108: Road Corridor Project | E108: 6, 7 | F108: Boundary Road (Troughton Road to Babbidge Street) | G108: 4 Lane Road | H108: 931 | I108: Suburban | J108: 2503 | K108: 737.4063124 | L108: 1845728 | M108: 2671.35768 | N108: 2487034 | O108: 2021 | P108: =IFERROR(('General Input Sheet'!$G$38/(VLOOKUP(O108,Histindex,3,FALSE))),1) -> 1 | Q108: Upgrade | R108: =IFERROR(_xlfn.IFS(AND(Q108<>"New",D108<>"Road Bridge"),30%,AND(Q108<>"New",D108="Road Bridge"),10%),0) -> 0.3 | S108: 746110 | T108: 0.075 | U108: 229429 | V108: 572018 | W108: 0 | X108: 4034591 | Y108: 2024 | Z108: =(1+PPI)^('Future Trunk Assets - Roads'!Y108-YEAR) -> 1.055614607 | AA108: =IF(Y108<YEAR,1,IF('General Input Sheet'!$E$32="WACC1",1/(1+WACC1)^(Y108-YEAR), IF('General Input Sheet'!$E$32="WACC2",1/(1+WACC2)^(Y108-YEAR),"Check WACC Option in General Input Sheet"))) -> 0.8417615727 | AB108: 5880319 | AC108: 6218319 | AD108: 5234342
B109: R313 | C109: CVE-RC-002 | D109: Road Corridor Project | E109: 6 | F109: Ormskirk Street (Benhiam Street to Hamish Street) | G109: 2 Lane Road | H109: 372 | I109: District | J109: 3497 | K109: 60.95739205 | L109: 213168 | M109: 2746.505376 | N109: 1021700 | O109: 2021 | P109: =IFERROR(('General Input Sheet'!$G$38/(VLOOKUP(O109,Histindex,3,FALSE))),1) -> 1 | Q109: New | R109: =IFERROR(_xlfn.IFS(AND(Q109<>"New",D109<>"Road Bridge"),30%,AND(Q109<>"New",D109="Road Bridge"),10%),0) -> 0 | S109: 0 | T109: 0.075 | U109: 94252 | V109: 234991 | W109: 0 | X109: 1350943 | Y109: 2024 | Z109: =(1+PPI)^('Future Trunk Assets - Roads'!Y109-YEAR) -> 1.055614607 | AA109: =IF(Y109<YEAR,1,IF('General Input Sheet'!$E$32="WACC1",1/(1+WACC1)^(Y109-YEAR), IF('General Input Sheet'!$E$32="WACC2",1/(1+WACC2)^(Y109-YEAR),"Check WACC Option in General Input Sheet"))) -> 0.8417615727 | AB109: 1564111 | AC109: 1652365 | AD109: 1390897
B110: R333 | C110: CVE-RC-010 | D110: Road Corridor Project | E110: 6 | F110: Nottingham Road (Benhiam Street to Appleby Street) | G110: 4 Lane Road | H110: 403 | I110: Suburban | J110: 793 | K110: 266.1614124 | L110: 211066 | M110: 2671.35732 | N110: 1076557 | O110: 2021 | P110: =IFERROR(('General Input Sheet'!$G$38/(VLOOKUP(O110,Histindex,3,FALSE))),1) -> 1 | Q110: Upgrade | R110: =IFERROR(_xlfn.IFS(AND(Q110<>"New",D110<>"Road Bridge"),30%,AND(Q110<>"New",D110="Road Bridge"),10%),0) -> 0.3 | S110: 322967 | T110: 0.075 | U110: 99312 | V110: 247608 | W110: 0 | X110: 1746444 | Y110: 2024 | Z110: =(1+PPI)^('Future Trunk Assets - Roads'!Y110-YEAR) -> 1.055614607 | AA110: =IF(Y110<YEAR,1,IF('General Input Sheet'!$E$32="WACC1",1/(1+WACC1)^(Y110-YEAR), IF('General Input Sheet'!$E$32="WACC2",1/(1+WACC2)^(Y110-YEAR),"Check WACC Option in General Input Sheet"))) -> 0.8417615727 | AB110: 1957510 | AC110: 2067630 | AD110: 1740451
B111: R333 | C111: CVE-RC-011 | D111: Road Corridor Project | E111: 6 | F111: Nottingham Road (Menser Street to Benhiam Street) | G111: 4 Lane Road | H111: 399 | I111: Suburban | J111: 596 | K111: 304.7432886 | L111: 181627 | M111: 2671.358396 | N111: 1065872 | O111: 2021 | P111: =IFERROR(('General Input Sheet'!$G$38/(VLOOKUP(O111,Histindex,3,FALSE))),1) -> 1 | Q111: Upgrade | R111: =IFERROR(_xlfn.IFS(AND(Q111<>"New",D111<>"Road Bridge"),30%,AND(Q111<>"New",D111="Road Bridge"),10%),0) -> 0.3 | S111: 319762 | T111: 0.075 | U111: 98327 | V111: 245151 | W111: 0 | X111: 1729112 | Y111: 2024 | Z111: =(1+PPI)^('Future Trunk Assets - Roads'!Y111-YEAR) -> 1.055614607 | AA111: =IF(Y111<YEAR,1,IF('General Input Sheet'!$E$32="WACC1",1/(1+WACC1)^(Y111-YEAR), IF('General Input Sheet'!$E$32="WACC2",1/(1+WACC2)^(Y111-YEAR),"Check WACC Option in General Input Sheet"))) -> 0.8417615727 | AB111: 1910739 | AC111: 2018083 | AD111: 1698745
B112: R333 | C112: CVE-RI-001 | D112: Road Intersection Project | E112: 6 | F112: Nottingham Road/Benhiam Street Intersection | G112: 4 Lane Road / 2 Lane Road | H112: 0 | I112: Suburban / District | J112: 300 | K112: 266.08 | L112: 79824 | M112: 0 | N112: 450026 | O112: 2021 | P112: =IFERROR(('General Input Sheet'!$G$38/(VLOOKUP(O112,Histindex,3,FALSE))),1) -> 1 | Q112: Existing signallised Int | R112: =IFERROR(_xlfn.IFS(AND(Q112<>"New",D112<>"Road Bridge"),30%,AND(Q112<>"New",D112="Road Bridge"),10%),0) -> 0.3 | S112: 135008 | T112: 0.075 | U112: 41515 | V112: 103506 | W112: 0 | X112: 730055 | Y112: 2024 | Z112: =(1+PPI)^('Future Trunk Assets - Roads'!Y112-YEAR) -> 1.055614607 | AA112: =IF(Y112<YEAR,1,IF('General Input Sheet'!$E$32="WACC1",1/(1+WACC1)^(Y112-YEAR), IF('General Input Sheet'!$E$32="WACC2",1/(1+WACC2)^(Y112-YEAR),"Check WACC Option in General Input Sheet"))) -> 0.8417615727 | AB112: 809879 | AC112: 855394 | AD112: 720038
B113: R270 | C113: DAR-RC-009 | D113: Road Corridor Project | E113: 10 | F113: Boundary Road (Archerfield Road to Acanthus Street) | G113: 4 Lane Road | H113: 589 | I113: Suburban | J113: 1245 | K113: 223.7598394 | L113: 278581 | M113: 2671.358234 | N113: 1573430 | O113: 2021 | P113: =IFERROR(('General Input Sheet'!$G$38/(VLOOKUP(O113,Histindex,3,FALSE))),1) -> 1 | Q113: Upgrade | R113: =IFERROR(_xlfn.IFS(AND(Q113<>"New",D113<>"Road Bridge"),30%,AND(Q113<>"New",D113="Road Bridge"),10%),0) -> 0.3 | S113: 472029 | T113: 0.2 | U113: 387064 | V113: 361889 | W113: 0 | X113: 2794412 | Y113: 2034 | Z113: =(1+PPI)^('Future Trunk Assets - Roads'!Y113-YEAR) -> 1.264319088 | AA113: =IF(Y113<YEAR,1,IF('General Input Sheet'!$E$32="WACC1",1/(1+WACC1)^(Y113-YEAR), IF('General Input Sheet'!$E$32="WACC2",1/(1+WACC2)^(Y113-YEAR),"Check WACC Option in General Input Sheet"))) -> 0.4740448311 | AB113: 3072993 | AC113: 3893917 | AD113: 1845891
B114: R270 | C114: DAR-RC-010 | D114: Road Corridor Project | E114: 10 | F114: Dowding Street (Englefield Road to Valance Street) | G114: 2 Lane Road | H114: 497 | I114: District | J114: 7061 | K114: 49.52981164 | L114: 349730 | M114: 2746.50503 | N114: 1365013 | O114: 2021 | P114: =IFERROR(('General Input Sheet'!$G$38/(VLOOKUP(O114,Histindex,3,FALSE))),1) -> 1 | Q114: New | R114: =IFERROR(_xlfn.IFS(AND(Q114<>"New",D114<>"Road Bridge"),30%,AND(Q114<>"New",D114="Road Bridge"),10%),0) -> 0 | S114: 0 | T114: 0.2 | U114: 335793 | V114: 313953 | W114: 0 | X114: 2014759 | Y114: 2034 | Z114: =(1+PPI)^('Future Trunk Assets - Roads'!Y114-YEAR) -> 1.264319088 | AA114: =IF(Y114<YEAR,1,IF('General Input Sheet'!$E$32="WACC1",1/(1+WACC1)^(Y114-YEAR), IF('General Input Sheet'!$E$32="WACC2",1/(1+WACC2)^(Y114-YEAR),"Check WACC Option in General Input Sheet"))) -> 0.4740448311 | AB114: 2364489 | AC114: 3000357 | AD114: 1422304
B115: R270 | C115: DAR-RI-005 | D115: Road Intersection Project | E115: 10 | F115: Monier Road/Bellwood Street Intersection | G115: 4 Lane Road / 2 Lane Road | H115: 0 | I115: Suburban / District | J115: 150 | K115: 0 | L115: 0 | M115: 0 | N115: 771474 | O115: 2021 | P115: =IFERROR(('General Input Sheet'!$G$38/(VLOOKUP(O115,Histindex,3,FALSE))),1) -> 1 | Q115: Existing unsignallised Int | R115: =IFERROR(_xlfn.IFS(AND(Q115<>"New",D115<>"Road Bridge"),30%,AND(Q115<>"New",D115="Road Bridge"),10%),0) -> 0.3 | S115: 231442 | T115: 0.075 | U115: 71168 | V115: 177439 | W115: 0 | X115: 1251523 | Y115: 2024 | Z115: =(1+PPI)^('Future Trunk Assets - Roads'!Y115-YEAR) -> 1.055614607 | AA115: =IF(Y115<YEAR,1,IF('General Input Sheet'!$E$32="WACC1",1/(1+WACC1)^(Y115-YEAR), IF('General Input Sheet'!$E$32="WACC2",1/(1+WACC2)^(Y115-YEAR),"Check WACC Option in General Input Sheet"))) -> 0.8417615727 | AB115: 1251523 | AC115: 1321126 | AD115: 1112073
B116: R291 | C116: DUR-RC-002 | D116: Road Corridor Project | E116: 9 | F116: King Avenue (Inala Avenue to bridge over Bullockhead Creek) | G116: 6 Lane Road | H116: 300 | I116: Arterial | J116: 353 | K116: 50.0509915 | L116: 17668 | M116: 2936.95 | N116: 881085 | O116: 2021 | P116: =IFERROR(('General Input Sheet'!$G$38/(VLOOKUP(O116,Histindex,3,FALSE))),1) -> 1 | Q116: Upgrade | R116: =IFERROR(_xlfn.IFS(AND(Q116<>"New",D116<>"Road Bridge"),30%,AND(Q116<>"New",D116="Road Bridge"),10%),0) -> 0.3 | S116: 264326 | T116: 0.075 | U116: 81280 | V116: 202650 | W116: 0 | X116: 1429341 | Y116: 2024 | Z116: =(1+PPI)^('Future Trunk Assets - Roads'!Y116-YEAR) -> 1.055614607 | AA116: =IF(Y116<YEAR,1,IF('General Input Sheet'!$E$32="WACC1",1/(1+WACC1)^(Y116-YEAR), IF('General Input Sheet'!$E$32="WACC2",1/(1+WACC2)^(Y116-YEAR),"Check WACC Option in General Input Sheet"))) -> 0.8417615727 | AB116: 1447009 | AC116: 1527589 | AD116: 1285866
B117: R291 | C117: DUR-RC-005 | D117: Road Corridor Project | E117: 9 | F117: Inala Avenue (Blunder Road to King Avenue) | G117: 4 Lane Road | H117: 632 | I117: Arterial | J117: 0 | K117: 0 | L117: 0 | M117: 2671.357595 | N117: 1688298 | O117: 2021 | P117: =IFERROR(('General Input Sheet'!$G$38/(VLOOKUP(O117,Histindex,3,FALSE))),1) -> 1 | Q117: Upgrade | R117: =IFERROR(_xlfn.IFS(AND(Q117<>"New",D117<>"Road Bridge"),30%,AND(Q117<>"New",D117="Road Bridge"),10%),0) -> 0.3 | S117: 506489 | T117: 0.075 | U117: 155746 | V117: 388309 | W117: 0 | X117: 2738842 | Y117: 2024 | Z117: =(1+PPI)^('Future Trunk Assets - Roads'!Y117-YEAR) -> 1.055614607 | AA117: =IF(Y117<YEAR,1,IF('General Input Sheet'!$E$32="WACC1",1/(1+WACC1)^(Y117-YEAR), IF('General Input Sheet'!$E$32="WACC2",1/(1+WACC2)^(Y117-YEAR),"Check WACC Option in General Input Sheet"))) -> 0.8417615727 | AB117: 2738842 | AC117: 2891162 | AD117: 2433669
B118: R291 | C118: DUR-RI-001 | D118: Road Intersection Project | E118: 9 | F118: King Avenue/Inala Avenue Intersection | G118: 6 Lane Road / 2 Lane Road | H118: 0 | I118: Arterial / District | J118: 0 | K118: 0 | L118: 0 | M118: 0 | N118: 641786 | O118: 2021 | P118: =IFERROR(('General Input Sheet'!$G$38/(VLOOKUP(O118,Histindex,3,FALSE))),1) -> 1 | Q118: Existing unsignallised Int | R118: =IFERROR(_xlfn.IFS(AND(Q118<>"New",D118<>"Road Bridge"),30%,AND(Q118<>"New",D118="Road Bridge"),10%),0) -> 0.3 | S118: 192536 | T118: 0.075 | U118: 59205 | V118: 147611 | W118: 0 | X118: 1041138 | Y118: 2024 | Z118: =(1+PPI)^('Future Trunk Assets - Roads'!Y118-YEAR) -> 1.055614607 | AA118: =IF(Y118<YEAR,1,IF('General Input Sheet'!$E$32="WACC1",1/(1+WACC1)^(Y118-YEAR), IF('General Input Sheet'!$E$32="WACC2",1/(1+WACC2)^(Y118-YEAR),"Check WACC Option in General Input Sheet"))) -> 0.8417615727 | AB118: 1041138 | AC118: 1099040 | AD118: 925130
B119: R193, R213 | C119: EAB-RC-006 | D119: Road Corridor Project | E119: 8 | F119: Stanley Street East (Caswell Street to Lisburn Street) | G119: 4 Lane Road | H119: 790 | I119: Suburban | J119: 2877 | K119: 1554.874174 | L119: 4473373 | M119: 2811.955696 | N119: 2221445 | O119: 2021 | P119: =IFERROR(('General Input Sheet'!$G$38/(VLOOKUP(O119,Histindex,3,FALSE))),1) -> 1 | Q119: Upgrade | R119: =IFERROR(_xlfn.IFS(AND(Q119<>"New",D119<>"Road Bridge"),30%,AND(Q119<>"New",D119="Road Bridge"),10%),0) -> 0.3 | S119: 666434 | T119: 0.15 | U119: 409857 | V119: 510932 | W119: 0 | X119: 3808668 | Y119: 2029 | Z119: =(1+PPI)^('Future Trunk Assets - Roads'!Y119-YEAR) -> 1.155263475 | AA119: =IF(Y119<YEAR,1,IF('General Input Sheet'!$E$32="WACC1",1/(1+WACC1)^(Y119-YEAR), IF('General Input Sheet'!$E$32="WACC2",1/(1+WACC2)^(Y119-YEAR),"Check WACC Option in General Input Sheet"))) -> 0.6316903693 | AB119: 8282041 | AC119: 9645884 | AD119: 6093212
B120: R193 | C120: EAB-RC-007 | D120: Road Corridor Project | E120: 8 | F120: Stanley Street East (Lisburn Street to Wellington Road) | G120: 6 Lane Road | H120: 193 | I120: Arterial | J120: 1809 | K120: 1886.85738 | L120: 3413325 | M120: 3425.274611 | N120: 661078 | O120: 2021 | P120: =IFERROR(('General Input Sheet'!$G$38/(VLOOKUP(O120,Histindex,3,FALSE))),1) -> 1 | Q120: Upgrade | R120: =IFERROR(_xlfn.IFS(AND(Q120<>"New",D120<>"Road Bridge"),30%,AND(Q120<>"New",D120="Road Bridge"),10%),0) -> 0.3 | S120: 198323 | T120: 0.15 | U120: 121969 | V120: 152048 | W120: 0 | X120: 1133418 | Y120: 2029 | Z120: =(1+PPI)^('Future Trunk Assets - Roads'!Y120-YEAR) -> 1.155263475 | AA120: =IF(Y120<YEAR,1,IF('General Input Sheet'!$E$32="WACC1",1/(1+WACC1)^(Y120-YEAR), IF('General Input Sheet'!$E$32="WACC2",1/(1+WACC2)^(Y120-YEAR),"Check WACC Option in General Input Sheet"))) -> 0.6316903693 | AB120: 4546743 | AC120: 5312160 | AD120: 3355640
B121: R193 | C121: EAB-RC-011 | D121: Road Corridor Project | E121: 8 | F121: Stanley Street East (Vulture Street East to bridge over Norman Creek) | G121: 4 Lane Road | H121: 100 | I121: Suburban | J121: 475 | K121: 130.1221053 | L121: 61808 | M121: 3800.2 | N121: 380020 | O121: 2021 | P121: =IFERROR(('General Input Sheet'!$G$38/(VLOOKUP(O121,Histindex,3,FALSE))),1) -> 1 | Q121: Upgrade | R121: =IFERROR(_xlfn.IFS(AND(Q121<>"New",D121<>"Road Bridge"),30%,AND(Q121<>"New",D121="Road Bridge"),10%),0) -> 0.3 | S121: 114006 | T121: 0.075 | U121: 35057 | V121: 87405 | W121: 0 | X121: 616488 | Y121: 2024 | Z121: =(1+PPI)^('Future Trunk Assets - Roads'!Y121-YEAR) -> 1.055614607 | AA121: =IF(Y121<YEAR,1,IF('General Input Sheet'!$E$32="WACC1",1/(1+WACC1)^(Y121-YEAR), IF('General Input Sheet'!$E$32="WACC2",1/(1+WACC2)^(Y121-YEAR),"Check WACC Option in General Input Sheet"))) -> 0.8417615727 | AB121: 678296 | AC121: 716386 | AD121: 603026
B122: R193 | C122: EAB-RC-012 | D122: Road Corridor Project | E122: 8 | F122: Vulture Street East (Kingfisher Lane to Stanley Street East) | G122: 4 Lane Road | H122: 918 | I122: Arterial | J122: 2978 | K122: 1849.203156 | L122: 5506927 | M122: 2811.955338 | N122: 2581375 | O122: 2021 | P122: =IFERROR(('General Input Sheet'!$G$38/(VLOOKUP(O122,Histindex,3,FALSE))),1) -> 1 | Q122: Upgrade | R122: =IFERROR(_xlfn.IFS(AND(Q122<>"New",D122<>"Road Bridge"),30%,AND(Q122<>"New",D122="Road Bridge"),10%),0) -> 0.3 | S122: 774413 | T122: 0.075 | U122: 238132 | V122: 593716 | W122: 0 | X122: 4187636 | Y122: 2024 | Z122: =(1+PPI)^('Future Trunk Assets - Roads'!Y122-YEAR) -> 1.055614607 | AA122: =IF(Y122<YEAR,1,IF('General Input Sheet'!$E$32="WACC1",1/(1+WACC1)^(Y122-YEAR), IF('General Input Sheet'!$E$32="WACC2",1/(1+WACC2)^(Y122-YEAR),"Check WACC Option in General Input Sheet"))) -> 0.8417615727 | AB122: 9694563 | AC122: 10266447 | AD122: 8641901
B123: R193 | C123: EAB-RI-004 | D123: Road Intersection Project | E123: 8 | F123: Stanley Street East/Lisburn Street Intersection | G123: 6 Lane Road / 4 Lane Road | H123: 0 | I123: Arterial / Suburban | J123: 150 | K123: 1535.066667 | L123: 230260 | M123: 0 | N123: 681965 | O123: 2021 | P123: =IFERROR(('General Input Sheet'!$G$38/(VLOOKUP(O123,Histindex,3,FALSE))),1) -> 1 | Q123: Existing signallised Int | R123: =IFERROR(_xlfn.IFS(AND(Q123<>"New",D123<>"Road Bridge"),30%,AND(Q123<>"New",D123="Road Bridge"),10%),0) -> 0.3 | S123: 204590 | T123: 0.15 | U123: 125823 | V123: 156852 | W123: 0 | X123: 1169230 | Y123: 2029 | Z123: =(1+PPI)^('Future Trunk Assets - Roads'!Y123-YEAR) -> 1.155263475 | AA123: =IF(Y123<YEAR,1,IF('General Input Sheet'!$E$32="WACC1",1/(1+WACC1)^(Y123-YEAR), IF('General Input Sheet'!$E$32="WACC2",1/(1+WACC2)^(Y123-YEAR),"Check WACC Option in General Input Sheet"))) -> 0.6316903693 | AB123: 1399490 | AC123: 1620792 | AD123: 1023839
B124: R309 | C124: ELG-RC-002 | D124: Road Corridor Project | E124: 10 | F124: Boundary Road (Skepper Street to Formation Street) | G124: 4 Lane Road | H124: 936 | I124: Suburban | J124: 2240 | K124: 361.7575893 | L124: 810337 | M124: 2671.357906 | N124: 2500391 | O124: 2021 | P124: =IFERROR(('General Input Sheet'!$G$38/(VLOOKUP(O124,Histindex,3,FALSE))),1) -> 1 | Q124: Upgrade | R124: =IFERROR(_xlfn.IFS(AND(Q124<>"New",D124<>"Road Bridge"),30%,AND(Q124<>"New",D124="Road Bridge"),10%),0) -> 0.3 | S124: 750117 | T124: 0.15 | U124: 461322 | V124: 575090 | W124: 0 | X124: 4286920 | Y124: 2029 | Z124: =(1+PPI)^('Future Trunk Assets - Roads'!Y124-YEAR) -> 1.155263475 | AA124: =IF(Y124<YEAR,1,IF('General Input Sheet'!$E$32="WACC1",1/(1+WACC1)^(Y124-YEAR), IF('General Input Sheet'!$E$32="WACC2",1/(1+WACC2)^(Y124-YEAR),"Check WACC Option in General Input Sheet"))) -> 0.6316903693 | AB124: 5097257 | AC124: 5902794 | AD124: 3728738
B125: R309 | C125: ELG-RI-001 | D125: Road Intersection Project | E125: 10 | F125: Boundary Road/Skepper Street Intersection | G125: 4 Lane Road / 2 Lane Road | H125: 0 | I125: Suburban / District | J125: 0 | K125: 0 | L125: 0 | M125: 0 | N125: 578606 | O125: 2021 | P125: =IFERROR(('General Input Sheet'!$G$38/(VLOOKUP(O125,Histindex,3,FALSE))),1) -> 1 | Q125: Existing unsignallised Int | R125: =IFERROR(_xlfn.IFS(AND(Q125<>"New",D125<>"Road Bridge"),30%,AND(Q125<>"New",D125="Road Bridge"),10%),0) -> 0.3 | S125: 173582 | T125: 0.075 | U125: 53376 | V125: 133079 | W125: 0 | X125: 938643 | Y125: 2024 | Z125: =(1+PPI)^('Future Trunk Assets - Roads'!Y125-YEAR) -> 1.055614607 | AA125: =IF(Y125<YEAR,1,IF('General Input Sheet'!$E$32="WACC1",1/(1+WACC1)^(Y125-YEAR), IF('General Input Sheet'!$E$32="WACC2",1/(1+WACC2)^(Y125-YEAR),"Check WACC Option in General Input Sheet"))) -> 0.8417615727 | AB125: 938643 | AC125: 990845 | AD125: 834055
B126: R275 | C126: EMP-RC-002 | D126: Road Corridor Project | E126: 3 | F126: Miles Platting Road (Lilywood Street to Holmead Road) | G126: 4 Lane Road | H126: 248 | I126: Suburban | J126: 0 | K126: 0 | L126: 0 | M126: 2959.596774 | N126: 733980 | O126: 2021 | P126: =IFERROR(('General Input Sheet'!$G$38/(VLOOKUP(O126,Histindex,3,FALSE))),1) -> 1 | Q126: Upgrade | R126: =IFERROR(_xlfn.IFS(AND(Q126<>"New",D126<>"Road Bridge"),30%,AND(Q126<>"New",D126="Road Bridge"),10%),0) -> 0.3 | S126: 220194 | T126: 0.15 | U126: 135419 | V126: 168815 | W126: 0 | X126: 1258408 | Y126: 2029 | Z126: =(1+PPI)^('Future Trunk Assets - Roads'!Y126-YEAR) -> 1.155263475 | AA126: =IF(Y126<YEAR,1,IF('General Input Sheet'!$E$32="WACC1",1/(1+WACC1)^(Y126-YEAR), IF('General Input Sheet'!$E$32="WACC2",1/(1+WACC2)^(Y126-YEAR),"Check WACC Option in General Input Sheet"))) -> 0.6316903693 | AB126: 1258408 | AC126: 1453793 | AD126: 918347
B127: R274, R275 | C127: EMP-RC-003 | D127: Road Corridor Project | E127: 6 | F127: Padstow Road (Logan Road to Warrigal Road) | G127: 6 Lane Road | H127: 342 | I127: Suburban | J127: 1484 | K127: 223.2843666 | L127: 331354 | M127: 2936.950292 | N127: 1004437 | O127: 2021 | P127: =IFERROR(('General Input Sheet'!$G$38/(VLOOKUP(O127,Histindex,3,FALSE))),1) -> 1 | Q127: Upgrade | R127: =IFERROR(_xlfn.IFS(AND(Q127<>"New",D127<>"Road Bridge"),30%,AND(Q127<>"New",D127="Road Bridge"),10%),0) -> 0.3 | S127: 301331 | T127: 0.15 | U127: 185319 | V127: 231021 | W127: 0 | X127: 1722108 | Y127: 2029 | Z127: =(1+PPI)^('Future Trunk Assets - Roads'!Y127-YEAR) -> 1.155263475 | AA127: =IF(Y127<YEAR,1,IF('General Input Sheet'!$E$32="WACC1",1/(1+WACC1)^(Y127-YEAR), IF('General Input Sheet'!$E$32="WACC2",1/(1+WACC2)^(Y127-YEAR),"Check WACC Option in General Input Sheet"))) -> 0.6316903693 | AB127: 2053462 | AC127: 2378063 | AD127: 1502199
B128: R294, R295 | C128: EMP-RC-005 | D128: Road Corridor Project | E128: 6 | F128: Underwood Road (Warrigal Road to Gaskell Street) | G128: 4 Lane Road | H128: 830 | I128: Suburban | J128: 1684 | K128: 860.3016627 | L128: 1448748 | M128: 2671.357831 | N128: 2217227 | O128: 2021 | P128: =IFERROR(('General Input Sheet'!$G$38/(VLOOKUP(O128,Histindex,3,FALSE))),1) -> 1 | Q128: Upgrade | R128: =IFERROR(_xlfn.IFS(AND(Q128<>"New",D128<>"Road Bridge"),30%,AND(Q128<>"New",D128="Road Bridge"),10%),0) -> 0.3 | S128: 665168 | T128: 0.2 | U128: 545438 | V128: 509962 | W128: 0 | X128: 3937795 | Y128: 2034 | Z128: =(1+PPI)^('Future Trunk Assets - Roads'!Y128-YEAR) -> 1.264319088 | AA128: =IF(Y128<YEAR,1,IF('General Input Sheet'!$E$32="WACC1",1/(1+WACC1)^(Y128-YEAR), IF('General Input Sheet'!$E$32="WACC2",1/(1+WACC2)^(Y128-YEAR),"Check WACC Option in General Input Sheet"))) -> 0.4740448311 | AB128: 5386543 | AC128: 6855413 | AD128: 3249773
B129: R295 | C129: EMP-RC-006 | D129: Road Corridor Project | E129: 6 | F129: Underwood Road (Gaskell Street to Levington Road) | G129: 4 Lane Road | H129: 939 | I129: Suburban | J129: 1538 | K129: 221.6144343 | L129: 340843 | M129: 2671.357827 | N129: 2508405 | O129: 2021 | P129: =IFERROR(('General Input Sheet'!$G$38/(VLOOKUP(O129,Histindex,3,FALSE))),1) -> 1 | Q129: Upgrade | R129: =IFERROR(_xlfn.IFS(AND(Q129<>"New",D129<>"Road Bridge"),30%,AND(Q129<>"New",D129="Road Bridge"),10%),0) -> 0.3 | S129: 752522 | T129: 0.075 | U129: 231400 | V129: 576933 | W129: 0 | X129: 4069260 | Y129: 2024 | Z129: =(1+PPI)^('Future Trunk Assets - Roads'!Y129-YEAR) -> 1.055614607 | AA129: =IF(Y129<YEAR,1,IF('General Input Sheet'!$E$32="WACC1",1/(1+WACC1)^(Y129-YEAR), IF('General Input Sheet'!$E$32="WACC2",1/(1+WACC2)^(Y129-YEAR),"Check WACC Option in General Input Sheet"))) -> 0.8417615727 | AB129: 4410103 | AC129: 4657395 | AD129: 3920416
B130: R295 | C130: EMP-RC-007 | D130: Road Corridor Project | E130: 6 | F130: Underwood Road (Levington Road to Millers Road) | G130: 4 Lane Road | H130: 570 | I130: Suburban | J130: 1545 | K130: 286.033657 | L130: 441922 | M130: 2671.357895 | N130: 1522674 | O130: 2021 | P130: =IFERROR(('General Input Sheet'!$G$38/(VLOOKUP(O130,Histindex,3,FALSE))),1) -> 1 | Q130: Upgrade | R130: =IFERROR(_xlfn.IFS(AND(Q130<>"New",D130<>"Road Bridge"),30%,AND(Q130<>"New",D130="Road Bridge"),10%),0) -> 0.3 | S130: 456802 | T130: 0.075 | U130: 140467 | V130: 350215 | W130: 0 | X130: 2470158 | Y130: 2024 | Z130: =(1+PPI)^('Future Trunk Assets - Roads'!Y130-YEAR) -> 1.055614607 | AA130: =IF(Y130<YEAR,1,IF('General Input Sheet'!$E$32="WACC1",1/(1+WACC1)^(Y130-YEAR), IF('General Input Sheet'!$E$32="WACC2",1/(1+WACC2)^(Y130-YEAR),"Check WACC Option in General Input Sheet"))) -> 0.8417615727 | AB130: 2912080 | AC130: 3076660 | AD130: 2589814
B131: R275 | C131: EMP-RC-008 | D131: Road Corridor Project | E131: 6 | F131: Miles Platting Road (McKechnie Drive to Pacific Motorway) | G131: 4 Lane Road | H131: 351 | I131: Suburban | J131: 42 | K131: 528.2857143 | L131: 22188 | M131: 2671.358974 | N131: 937647 | O131: 2021 | P131: =IFERROR(('General Input Sheet'!$G$38/(VLOOKUP(O131,Histindex,3,FALSE))),1) -> 1 | Q131: Upgrade | R131: =IFERROR(_xlfn.IFS(AND(Q131<>"New",D131<>"Road Bridge"),30%,AND(Q131<>"New",D131="Road Bridge"),10%),0) -> 0.3 | S131: 281294 | T131: 0.075 | U131: 86498 | V131: 215659 | W131: 0 | X131: 1521098 | Y131: 2024 | Z131: =(1+PPI)^('Future Trunk Assets - Roads'!Y131-YEAR) -> 1.055614607 | AA131: =IF(Y131<YEAR,1,IF('General Input Sheet'!$E$32="WACC1",1/(1+WACC1)^(Y131-YEAR), IF('General Input Sheet'!$E$32="WACC2",1/(1+WACC2)^(Y131-YEAR),"Check WACC Option in General Input Sheet"))) -> 0.8417615727 | AB131: 1543286 | AC131: 1629247 | AD131: 1371438
B132: R294, R274 | C132: EMP-RC-004 | D132: Road Corridor Project | E132: 6 | F132: Warrigal Road (Daw Road to Padstow Road) | G132: 4 Lane Road | H132: 1636 | I132: Suburban | J132: 7327 | K132: 789.9672444 | L132: 5788090 | M132: 2671.357579 | N132: 4370341 | O132: 2021 | P132: =IFERROR(('General Input Sheet'!$G$38/(VLOOKUP(O132,Histindex,3,FALSE))),1) -> 1 | Q132: Upgrade | R132: =IFERROR(_xlfn.IFS(AND(Q132<>"New",D132<>"Road Bridge"),30%,AND(Q132<>"New",D132="Road Bridge"),10%),0) -> 0.3 | S132: 1311102 | T132: 0.15 | U132: 806328 | V132: 1005178 | W132: 0 | X132: 7492949 | Y132: 2029 | Z132: =(1+PPI)^('Future Trunk Assets - Roads'!Y132-YEAR) -> 1.155263475 | AA132: =IF(Y132<YEAR,1,IF('General Input Sheet'!$E$32="WACC1",1/(1+WACC1)^(Y132-YEAR), IF('General Input Sheet'!$E$32="WACC2",1/(1+WACC2)^(Y132-YEAR),"Check WACC Option in General Input Sheet"))) -> 0.6316903693 | AB132: 13281039 | AC132: 15443952 | AD132: 9755796
B133: R295 | C133: EMP-RI-001 | D133: Road Intersection Project | E133: 6 | F133: Underwood Road/Levington Road Intersection | G133: 4 Lane Road / 2 Lane Road | H133: 0 | I133: Suburban / District | J133: 150 | K133: 266.08 | L133: 39912 | M133: 0 | N133: 578606 | O133: 2021 | P133: =IFERROR(('General Input Sheet'!$G$38/(VLOOKUP(O133,Histindex,3,FALSE))),1) -> 1 | Q133: Existing unsignallised Int | R133: =IFERROR(_xlfn.IFS(AND(Q133<>"New",D133<>"Road Bridge"),30%,AND(Q133<>"New",D133="Road Bridge"),10%),0) -> 0.3 | S133: 173582 | T133: 0.15 | U133: 106753 | V133: 133079 | W133: 0 | X133: 992020 | Y133: 2029 | Z133: =(1+PPI)^('Future Trunk Assets - Roads'!Y133-YEAR) -> 1.155263475 | AA133: =IF(Y133<YEAR,1,IF('General Input Sheet'!$E$32="WACC1",1/(1+WACC1)^(Y133-YEAR), IF('General Input Sheet'!$E$32="WACC2",1/(1+WACC2)^(Y133-YEAR),"Check WACC Option in General Input Sheet"))) -> 0.6316903693 | AB133: 1031932 | AC133: 1192849 | AD133: 753511
B134: R295 | C134: EMP-RI-002 | D134: Road Intersection Project | E134: 6 | F134: Underwood Road/Gaskell Street Intersection | G134: 4 Lane Road / 2 Lane Road | H134: 0 | I134: Suburban / District | J134: 0 | K134: 0 | L134: 0 | M134: 0 | N134: 578606 | O134: 2021 | P134: =IFERROR(('General Input Sheet'!$G$38/(VLOOKUP(O134,Histindex,3,FALSE))),1) -> 1 | Q134: Existing unsignallised Int | R134: =IFERROR(_xlfn.IFS(AND(Q134<>"New",D134<>"Road Bridge"),30%,AND(Q134<>"New",D134="Road Bridge"),10%),0) -> 0.3 | S134: 173582 | T134: 0.075 | U134: 53376 | V134: 133079 | W134: 0 | X134: 938643 | Y134: 2024 | Z134: =(1+PPI)^('Future Trunk Assets - Roads'!Y134-YEAR) -> 1.055614607 | AA134: =IF(Y134<YEAR,1,IF('General Input Sheet'!$E$32="WACC1",1/(1+WACC1)^(Y134-YEAR), IF('General Input Sheet'!$E$32="WACC2",1/(1+WACC2)^(Y134-YEAR),"Check WACC Option in General Input Sheet"))) -> 0.8417615727 | AB134: 938643 | AC134: 990845 | AD134: 834055
B135: R131 | C135: EVP-RB-001 | D135: Road Bridge | E135: 13, 14 | F135: Osborne Road Bridge (over Kedron Brook) | G135: 4 Lane Road | H135: 49 | I135: Suburban | J135: 110 | K135: 15.01818182 | L135: 1652 | M135: 151162.9184 | N135: 7406983 | O135: 2021 | P135: =IFERROR(('General Input Sheet'!$G$38/(VLOOKUP(O135,Histindex,3,FALSE))),1) -> 1 | Q135: Upgrade | R135: =IFERROR(_xlfn.IFS(AND(Q135<>"New",D135<>"Road Bridge"),30%,AND(Q135<>"New",D135="Road Bridge"),10%),0) -> 0.1 | S135: 740698 | T135: 0.2 | U135: 1822118 | V135: 1703606 | W135: 0 | X135: 11673405 | Y135: 2034 | Z135: =(1+PPI)^('Future Trunk Assets - Roads'!Y135-YEAR) -> 1.264319088 | AA135: =IF(Y135<YEAR,1,IF('General Input Sheet'!$E$32="WACC1",1/(1+WACC1)^(Y135-YEAR), IF('General Input Sheet'!$E$32="WACC2",1/(1+WACC2)^(Y135-YEAR),"Check WACC Option in General Input Sheet"))) -> 0.4740448311 | AB135: 11675057 | AC135: 14761049 | AD135: 6997399
B136: R131 | C136: EVP-RC-001 | D136: Road Corridor Project | E136: 14 | F136: Osborne Road (bridge over Kedron Brook to Pullen Road) | G136: 4 Lane Road | H136: 376 | I136: Suburban | J136: 1333 | K136: 0 | L136: 0 | M136: 2671.356383 | N136: 1004430 | O136: 2021 | P136: =IFERROR(('General Input Sheet'!$G$38/(VLOOKUP(O136,Histindex,3,FALSE))),1) -> 1 | Q136: Upgrade | R136: =IFERROR(_xlfn.IFS(AND(Q136<>"New",D136<>"Road Bridge"),30%,AND(Q136<>"New",D136="Road Bridge"),10%),0) -> 0.3 | S136: 301329 | T136: 0.2 | U136: 247090 | V136: 231019 | W136: 0 | X136: 1783868 | Y136: 2034 | Z136: =(1+PPI)^('Future Trunk Assets - Roads'!Y136-YEAR) -> 1.264319088 | AA136: =IF(Y136<YEAR,1,IF('General Input Sheet'!$E$32="WACC1",1/(1+WACC1)^(Y136-YEAR), IF('General Input Sheet'!$E$32="WACC2",1/(1+WACC2)^(Y136-YEAR),"Check WACC Option in General Input Sheet"))) -> 0.4740448311 | AB136: 1783868 | AC136: 2255378 | AD136: 1069150
B137: R131 | C137: EVP-RI-001 | D137: Road Intersection Project | E137: 14 | F137: Osborne Road/Pullen Road Intersection | G137: 4 Lane Road / 4 Lane Road | H137: 0 | I137: Suburban / Suburban | J137: 0 | K137: 0 | L137: 0 | M137: 0 | N137: 664129 | O137: 2021 | P137: =IFERROR(('General Input Sheet'!$G$38/(VLOOKUP(O137,Histindex,3,FALSE))),1) -> 1 | Q137: Existing unsignallised Int | R137: =IFERROR(_xlfn.IFS(AND(Q137<>"New",D137<>"Road Bridge"),30%,AND(Q137<>"New",D137="Road Bridge"),10%),0) -> 0.3 | S137: 199239 | T137: 0.2 | U137: 163376 | V137: 152750 | W137: 0 | X137: 1179494 | Y137: 2034 | Z137: =(1+PPI)^('Future Trunk Assets - Roads'!Y137-YEAR) -> 1.264319088 | AA137: =IF(Y137<YEAR,1,IF('General Input Sheet'!$E$32="WACC1",1/(1+WACC1)^(Y137-YEAR), IF('General Input Sheet'!$E$32="WACC2",1/(1+WACC2)^(Y137-YEAR),"Check WACC Option in General Input Sheet"))) -> 0.4740448311 | AB137: 1179494 | AC137: 1491257 | AD137: 706923
B138: R212 | C138: FFD-RI-001 | D138: Road Intersection Project | E138: 7, 8 | F138: Annerley Road/Cornwall Street/Noble Street Intersection | G138: 6 Lane Road / 4 Lane Road | H138: 0 | I138: Arterial / Arterial | J138: 0 | K138: 0 | L138: 0 | M138: 0 | N138: 681965 | O138: 2021 | P138: =IFERROR(('General Input Sheet'!$G$38/(VLOOKUP(O138,Histindex,3,FALSE))),1) -> 1 | Q138: Existing signallised Int | R138: =IFERROR(_xlfn.IFS(AND(Q138<>"New",D138<>"Road Bridge"),30%,AND(Q138<>"New",D138="Road Bridge"),10%),0) -> 0.3 | S138: 204590 | T138: 0.075 | U138: 62911 | V138: 156852 | W138: 0 | X138: 1106318 | Y138: 2024 | Z138: =(1+PPI)^('Future Trunk Assets - Roads'!Y138-YEAR) -> 1.055614607 | AA138: =IF(Y138<YEAR,1,IF('General Input Sheet'!$E$32="WACC1",1/(1+WACC1)^(Y138-YEAR), IF('General Input Sheet'!$E$32="WACC2",1/(1+WACC2)^(Y138-YEAR),"Check WACC Option in General Input Sheet"))) -> 0.8417615727 | AB138: 1106318 | AC138: 1167845 | AD138: 983047
B139: R129 | C139: FGR-RB-001 | D139: Road Bridge | E139: 13 | F139: Upper Kedron Road Bridge (between Nelson Place and Hogarth Road) | G139: 4 Lane Road | H139: 51 | I139: Suburban | J139: 185 | K139: 3.243243243 | L139: 600 | M139: 53438.62745 | N139: 2725370 | O139: 2021 | P139: =IFERROR(('General Input Sheet'!$G$38/(VLOOKUP(O139,Histindex,3,FALSE))),1) -> 1 | Q139: Upgrade | R139: =IFERROR(_xlfn.IFS(AND(Q139<>"New",D139<>"Road Bridge"),30%,AND(Q139<>"New",D139="Road Bridge"),10%),0) -> 0.1 | S139: 272537 | T139: 0.075 | U139: 251415 | V139: 626835 | W139: 0 | X139: 3876157 | Y139: 2024 | Z139: =(1+PPI)^('Future Trunk Assets - Roads'!Y139-YEAR) -> 1.055614607 | AA139: =IF(Y139<YEAR,1,IF('General Input Sheet'!$E$32="WACC1",1/(1+WACC1)^(Y139-YEAR), IF('General Input Sheet'!$E$32="WACC2",1/(1+WACC2)^(Y139-YEAR),"Check WACC Option in General Input Sheet"))) -> 0.8417615727 | AB139: 3876757 | AC139: 4092365 | AD139: 3444796
B140: R129 | C140: FGR-RC-003 | D140: Road Corridor Project | E140: 13 | F140: Upper Kedron Road (Nelson Place to bridge over Cedar Creek) | G140: 4 Lane Road | H140: 116 | I140: Suburban | J140: 69 | K140: 28.20289855 | L140: 1946 | M140: 2959.594828 | N140: 343313 | O140: 2021 | P140: =IFERROR(('General Input Sheet'!$G$38/(VLOOKUP(O140,Histindex,3,FALSE))),1) -> 1 | Q140: Upgrade | R140: =IFERROR(_xlfn.IFS(AND(Q140<>"New",D140<>"Road Bridge"),30%,AND(Q140<>"New",D140="Road Bridge"),10%),0) -> 0.3 | S140: 102994 | T140: 0.075 | U140: 31671 | V140: 78962 | W140: 0 | X140: 556940 | Y140: 2024 | Z140: =(1+PPI)^('Future Trunk Assets - Roads'!Y140-YEAR) -> 1.055614607 | AA140: =IF(Y140<YEAR,1,IF('General Input Sheet'!$E$32="WACC1",1/(1+WACC1)^(Y140-YEAR), IF('General Input Sheet'!$E$32="WACC2",1/(1+WACC2)^(Y140-YEAR),"Check WACC Option in General Input Sheet"))) -> 0.8417615727 | AB140: 558886 | AC140: 589980 | AD140: 496622
B141: R330 | C141: FLK-RI-001 | D141: Road Intersection Project | E141: 10 | F141: Johnson Road/Woogaroo Street Intersection | G141: 4 Lane Road / 4 Lane Road | H141: 0 | I141: Suburban / Suburban | J141: 150 | K141: 332.6 | L141: 49890 | M141: 0 | N141: 885505 | O141: 2021 | P141: =IFERROR(('General Input Sheet'!$G$38/(VLOOKUP(O141,Histindex,3,FALSE))),1) -> 1 | Q141: Existing unsignallised Int | R141: =IFERROR(_xlfn.IFS(AND(Q141<>"New",D141<>"Road Bridge"),30%,AND(Q141<>"New",D141="Road Bridge"),10%),0) -> 0.3 | S141: 265652 | T141: 0.075 | U141: 81688 | V141: 203666 | W141: 0 | X141: 1436511 | Y141: 2024 | Z141: =(1+PPI)^('Future Trunk Assets - Roads'!Y141-YEAR) -> 1.055614607 | AA141: =IF(Y141<YEAR,1,IF('General Input Sheet'!$E$32="WACC1",1/(1+WACC1)^(Y141-YEAR), IF('General Input Sheet'!$E$32="WACC2",1/(1+WACC2)^(Y141-YEAR),"Check WACC Option in General Input Sheet"))) -> 0.8417615727 | AB141: 1486401 | AC141: 1569363 | AD141: 1321029
B142: R330 | C142: FLK-RI-002 | D142: Road Intersection Project | E142: 10 | F142: Woogaroo Street/Roxwell Street Intersection | G142: 2 Lane Road / 2 Lane Road | H142: 0 | I142: Suburban / District | J142: 150 | K142: 51.16666667 | L142: 7675 | M142: 0 | N142: 574347 | O142: 2021 | P142: =IFERROR(('General Input Sheet'!$G$38/(VLOOKUP(O142,Histindex,3,FALSE))),1) -> 1 | Q142: Existing unsignallised Int | R142: =IFERROR(_xlfn.IFS(AND(Q142<>"New",D142<>"Road Bridge"),30%,AND(Q142<>"New",D142="Road Bridge"),10%),0) -> 0.3 | S142: 172304 | T142: 0.2 | U142: 141289 | V142: 132100 | W142: 0 | X142: 1020040 | Y142: 2034 | Z142: =(1+PPI)^('Future Trunk Assets - Roads'!Y142-YEAR) -> 1.264319088 | AA142: =IF(Y142<YEAR,1,IF('General Input Sheet'!$E$32="WACC1",1/(1+WACC1)^(Y142-YEAR), IF('General Input Sheet'!$E$32="WACC2",1/(1+WACC2)^(Y142-YEAR),"Check WACC Option in General Input Sheet"))) -> 0.4740448311 | AB142: 1027715 | AC142: 1299599 | AD142: 616068
B143: R230 | C143: FTP-RI-005 | D143: Road Intersection Project | E143: 11 | F143: Fig Tree Pocket Road/Kenmore Road Intersection | G143: 4 Lane Road / 2 Lane Road | H143: 0 | I143: Suburban / Local | J143: 150 | K143: 972.2066667 | L143: 145831 | M143: 0 | N143: 771474 | O143: 2021 | P143: =IFERROR(('General Input Sheet'!$G$38/(VLOOKUP(O143,Histindex,3,FALSE))),1) -> 1 | Q143: Existing unsignallised Int | R143: =IFERROR(_xlfn.IFS(AND(Q143<>"New",D143<>"Road Bridge"),30%,AND(Q143<>"New",D143="Road Bridge"),10%),0) -> 0.3 | S143: =ROUND(N143*R143,0) -> 231442 | T143: =IF(Y143="","",IF(Y143<=YEAR+5,0.075,IF(AND(Y143>YEAR+5,Y143<=YEAR+10),0.15,IF(AND(Y143>YEAR+10,Y143<=YEAR+20),0.2,IF(Y143>YEAR+20,0.25,""))))) -> 0.075 | U143: =ROUND((N143+V143)*T143,0) -> 71168 | V143: =ROUND((N143)*23%,0) -> 177439 | W143: 0 | X143: =ROUND(N143+S143+U143+V143,0) -> 1251523 | Y143: 2024 | Z143: =(1+PPI)^('Future Trunk Assets - Roads'!Y143-YEAR) -> 1.055614607 | AA143: =IF(Y143<YEAR,1,IF('General Input Sheet'!$E$32="WACC1",1/(1+WACC1)^(Y143-YEAR), IF('General Input Sheet'!$E$32="WACC2",1/(1+WACC2)^(Y143-YEAR),"Check WACC Option in General Input Sheet"))) -> 0.8417615727 | AB143: =ROUND(X143+L143-W143,0) -> 1397354 | AC143: =IFERROR(ROUND((X143*Z143)+((1+Landind)^(Y143-YEAR)*L143),0),0) -> 1475934 | AD143: =IFERROR(ROUND((AC143*AA143),0),0) -> 1242385
B144: R73 | C144: FTZ-RC-005 | D144: Road Corridor Project | E144: 15 | F144: Beams Road (Carselgrove Avenue to Handford Road) | G144: 4 Lane Road | H144: 782 | I144: Suburban | J144: 1143 | K144: =IFERROR(L144/J144,0) -> 63.28171479 | L144: 72331 | M144: =IFERROR(N144/H144,0) -> 2671.358056 | N144: 2089002 | O144: 2021 | P144: =IFERROR(('General Input Sheet'!$G$38/(VLOOKUP(O144,Histindex,3,FALSE))),1) -> 1 | Q144: Upgrade | R144: =IFERROR(_xlfn.IFS(AND(Q144<>"New",D144<>"Road Bridge"),30%,AND(Q144<>"New",D144="Road Bridge"),10%),0) -> 0.3 | S144: 626701 | T144: 0.075 | U144: 192710 | V144: 480470 | W144: 0 | X144: 3388883 | Y144: 2024 | Z144: =(1+PPI)^('Future Trunk Assets - Roads'!Y144-YEAR) -> 1.055614607 | AA144: =IF(Y144<YEAR,1,IF('General Input Sheet'!$E$32="WACC1",1/(1+WACC1)^(Y144-YEAR), IF('General Input Sheet'!$E$32="WACC2",1/(1+WACC2)^(Y144-YEAR),"Check WACC Option in General Input Sheet"))) -> 0.8417615727 | AB144: 3461214 | AC144: 3654138 | AD144: 3075913
B145: R73 | C145: FTZ-RI-003 | D145: Road Intersection Project | E145: 15 | F145: Beams Road/Carselgrove Avenue Intersection | G145: 4 Lane Road / 2 Lane Road | H145: 0 | I145: Suburban / District | J145: 300 | K145: 266.08 | L145: 79824 | M145: 0 | N145: 514316 | O145: 2021 | P145: =IFERROR(('General Input Sheet'!$G$38/(VLOOKUP(O145,Histindex,3,FALSE))),1) -> 1 | Q145: Existing signallised Int | R145: =IFERROR(_xlfn.IFS(AND(Q145<>"New",D145<>"Road Bridge"),30%,AND(Q145<>"New",D145="Road Bridge"),10%),0) -> 0.3 | S145: 154295 | T145: 0.075 | U145: 47446 | V145: 118293 | W145: 0 | X145: 834350 | Y145: 2024 | Z145: =(1+PPI)^('Future Trunk Assets - Roads'!Y145-YEAR) -> 1.055614607 | AA145: =IF(Y145<YEAR,1,IF('General Input Sheet'!$E$32="WACC1",1/(1+WACC1)^(Y145-YEAR), IF('General Input Sheet'!$E$32="WACC2",1/(1+WACC2)^(Y145-YEAR),"Check WACC Option in General Input Sheet"))) -> 0.8417615727 | AB145: 914174 | AC145: 965490 | AD145: 812712
B146: R150 | C146: GAP-RC-001 | D146: Road Corridor Project | E146: 12 | F146: Settlement Road (Waterworks Road to Bromwich Street) | G146: 4 Lane Road | H146: 311 | I146: Suburban | J146: 220 | K146: 726.6454545 | L146: 159862 | M146: 2671.356913 | N146: 830792 | O146: 2021 | P146: =IFERROR(('General Input Sheet'!$G$38/(VLOOKUP(O146,Histindex,3,FALSE))),1) -> 1 | Q146: Upgrade | R146: =IFERROR(_xlfn.IFS(AND(Q146<>"New",D146<>"Road Bridge"),30%,AND(Q146<>"New",D146="Road Bridge"),10%),0) -> 0.3 | S146: 249238 | T146: 0.15 | U146: 153281 | V146: 191082 | W146: 0 | X146: 1424393 | Y146: 2029 | Z146: =(1+PPI)^('Future Trunk Assets - Roads'!Y146-YEAR) -> 1.155263475 | AA146: =IF(Y146<YEAR,1,IF('General Input Sheet'!$E$32="WACC1",1/(1+WACC1)^(Y146-YEAR), IF('General Input Sheet'!$E$32="WACC2",1/(1+WACC2)^(Y146-YEAR),"Check WACC Option in General Input Sheet"))) -> 0.6316903693 | AB146: 1584255 | AC146: 1833017 | AD146: 1157899
B147: R170 | C147: GAP-RI-002 | D147: Road Intersection Project | E147: 12 | F147: Waterworks Road/Settlement Road Intersection | G147: 6 Lane Road / 4 Lane Road | H147: 0 | I147: Arterial / Suburban | J147: 0 | K147: 0 | L147: 0 | M147: 0 | N147: 647867 | O147: 2021 | P147: =IFERROR(('General Input Sheet'!$G$38/(VLOOKUP(O147,Histindex,3,FALSE))),1) -> 1 | Q147: Existing signallised Int | R147: =IFERROR(_xlfn.IFS(AND(Q147<>"New",D147<>"Road Bridge"),30%,AND(Q147<>"New",D147="Road Bridge"),10%),0) -> 0.3 | S147: 194360 | T147: 0.2 | U147: 159375 | V147: 149009 | W147: 0 | X147: 1150611 | Y147: 2034 | Z147: =(1+PPI)^('Future Trunk Assets - Roads'!Y147-YEAR) -> 1.264319088 | AA147: =IF(Y147<YEAR,1,IF('General Input Sheet'!$E$32="WACC1",1/(1+WACC1)^(Y147-YEAR), IF('General Input Sheet'!$E$32="WACC2",1/(1+WACC2)^(Y147-YEAR),"Check WACC Option in General Input Sheet"))) -> 0.4740448311 | AB147: 1150611 | AC147: 1454739 | AD147: 689612
B148: R93 | C148: GEE-RI-002 | D148: Road Intersection Project | E148: 15 | F148: Robinson Road West/Murphy Road Intersection | G148: 6 Lane Road / 4 Lane Road | H148: 0 | I148: Arterial / Suburban | J148: 450 | K148: 990.5733333 | L148: 445758 | M148: 0 | N148: 647867 | O148: 2021 | P148: =IFERROR(('General Input Sheet'!$G$38/(VLOOKUP(O148,Histindex,3,FALSE))),1) -> 1 | Q148: Existing signallised Int | R148: =IFERROR(_xlfn.IFS(AND(Q148<>"New",D148<>"Road Bridge"),30%,AND(Q148<>"New",D148="Road Bridge"),10%),0) -> 0.3 | S148: 194360 | T148: 0.15 | U148: 119531 | V148: 149009 | W148: 0 | X148: 1110767 | Y148: 2029 | Z148: =(1+PPI)^('Future Trunk Assets - Roads'!Y148-YEAR) -> 1.155263475 | AA148: =IF(Y148<YEAR,1,IF('General Input Sheet'!$E$32="WACC1",1/(1+WACC1)^(Y148-YEAR), IF('General Input Sheet'!$E$32="WACC2",1/(1+WACC2)^(Y148-YEAR),"Check WACC Option in General Input Sheet"))) -> 0.6316903693 | AB148: 1556525 | AC148: 1805963 | AD148: 1140809
B149: R93 | C149: GEE-RI-003 | D149: Road Intersection Project | E149: 15 | F149: Robinson Road East/Bilsen Road Intersection | G149: 6 Lane Road / 2 Lane Road | H149: 0 | I149: Arterial / District | J149: 450 | K149: 520.2177778 | L149: 234098 | M149: 0 | N149: 855714 | O149: 2021 | P149: =IFERROR(('General Input Sheet'!$G$38/(VLOOKUP(O149,Histindex,3,FALSE))),1) -> 1 | Q149: Existing unsignallised Int | R149: =IFERROR(_xlfn.IFS(AND(Q149<>"New",D149<>"Road Bridge"),30%,AND(Q149<>"New",D149="Road Bridge"),10%),0) -> 0.3 | S149: 256714 | T149: 0.15 | U149: 157879 | V149: 196814 | W149: 0 | X149: 1467121 | Y149: 2029 | Z149: =(1+PPI)^('Future Trunk Assets - Roads'!Y149-YEAR) -> 1.155263475 | AA149: =IF(Y149<YEAR,1,IF('General Input Sheet'!$E$32="WACC1",1/(1+WACC1)^(Y149-YEAR), IF('General Input Sheet'!$E$32="WACC2",1/(1+WACC2)^(Y149-YEAR),"Check WACC Option in General Input Sheet"))) -> 0.6316903693 | AB149: 1701219 | AC149: 1969435 | AD149: 1244073
B150: R231 | C150: GRA-RC-001 | D150: Road Corridor Project | E150: 9 | F150: Oxley Road (Long Street East to Graceville Avenue) | G150: 4 Lane Road | H150: 416 | I150: Arterial | J150: 1385 | K150: 1046.393502 | L150: 1449255 | M150: 2671.358173 | N150: 1111285 | O150: 2021 | P150: =IFERROR(('General Input Sheet'!$G$38/(VLOOKUP(O150,Histindex,3,FALSE))),1) -> 1 | Q150: Upgrade | R150: =IFERROR(_xlfn.IFS(AND(Q150<>"New",D150<>"Road Bridge"),30%,AND(Q150<>"New",D150="Road Bridge"),10%),0) -> 0.3 | S150: 333386 | T150: 0.15 | U150: 205032 | V150: 255596 | W150: 0 | X150: 1905299 | Y150: 2029 | Z150: =(1+PPI)^('Future Trunk Assets - Roads'!Y150-YEAR) -> 1.155263475 | AA150: =IF(Y150<YEAR,1,IF('General Input Sheet'!$E$32="WACC1",1/(1+WACC1)^(Y150-YEAR), IF('General Input Sheet'!$E$32="WACC2",1/(1+WACC2)^(Y150-YEAR),"Check WACC Option in General Input Sheet"))) -> 0.6316903693 | AB150: 3354554 | AC150: 3900646 | AD150: 2464001
B151: R231 | C151: GRA-RI-001 | D151: Road Intersection Project | E151: 9 | F151: Oxley Road/Long Street East Intersection | G151: 6 Lane Road / 4 Lane Road | H151: 0 | I151: Arterial / Suburban | J151: 150 | K151: 1023.373333 | L151: 153506 | M151: 0 | N151: 784259 | O151: 2021 | P151: =IFERROR(('General Input Sheet'!$G$38/(VLOOKUP(O151,Histindex,3,FALSE))),1) -> 1 | Q151: Existing signallised Int | R151: =IFERROR(_xlfn.IFS(AND(Q151<>"New",D151<>"Road Bridge"),30%,AND(Q151<>"New",D151="Road Bridge"),10%),0) -> 0.3 | S151: 235278 | T151: 0.075 | U151: 72348 | V151: 180380 | W151: 0 | X151: 1272265 | Y151: 2024 | Z151: =(1+PPI)^('Future Trunk Assets - Roads'!Y151-YEAR) -> 1.055614607 | AA151: =IF(Y151<YEAR,1,IF('General Input Sheet'!$E$32="WACC1",1/(1+WACC1)^(Y151-YEAR), IF('General Input Sheet'!$E$32="WACC2",1/(1+WACC2)^(Y151-YEAR),"Check WACC Option in General Input Sheet"))) -> 0.8417615727 | AB151: 1425771 | AC151: 1505977 | AD151: 1267674
B152: R213 | C152: GRE-RI-001 | D152: Road Intersection Project | E152: 4 | F152: Juliette Street/Marquis Street Intersection | G152: 6 Lane Road / 2 Lane Road | H152: 0 | I152: Arterial / Local | J152: 150 | K152: 2207.86 | L152: 331179 | M152: 0 | N152: 600501 | O152: 2021 | P152: =IFERROR(('General Input Sheet'!$G$38/(VLOOKUP(O152,Histindex,3,FALSE))),1) -> 1 | Q152: Existing signallised Int | R152: =IFERROR(_xlfn.IFS(AND(Q152<>"New",D152<>"Road Bridge"),30%,AND(Q152<>"New",D152="Road Bridge"),10%),0) -> 0.3 | S152: 180150 | T152: 0.15 | U152: 110792 | V152: 138115 | W152: 0 | X152: 1029558 | Y152: 2029 | Z152: =(1+PPI)^('Future Trunk Assets - Roads'!Y152-YEAR) -> 1.155263475 | AA152: =IF(Y152<YEAR,1,IF('General Input Sheet'!$E$32="WACC1",1/(1+WACC1)^(Y152-YEAR), IF('General Input Sheet'!$E$32="WACC2",1/(1+WACC2)^(Y152-YEAR),"Check WACC Option in General Input Sheet"))) -> 0.6316903693 | AB152: 1360737 | AC152: 1577780 | AD152: 996668
B153: R213 | C153: GRE-RI-002 | D153: Road Intersection Project | E153: 4 | F153: Juliette Street/Earl Street Intersection | G153: 6 Lane Road / 4 Lane Road | H153: 0 | I153: Arterial / Suburban | J153: 150 | K153: 1692.04 | L153: 253806 | M153: 0 | N153: 681965 | O153: 2021 | P153: =IFERROR(('General Input Sheet'!$G$38/(VLOOKUP(O153,Histindex,3,FALSE))),1) -> 1 | Q153: Existing signallised Int | R153: =IFERROR(_xlfn.IFS(AND(Q153<>"New",D153<>"Road Bridge"),30%,AND(Q153<>"New",D153="Road Bridge"),10%),0) -> 0.3 | S153: 204590 | T153: 0.15 | U153: 125823 | V153: 156852 | W153: 0 | X153: 1169230 | Y153: 2029 | Z153: =(1+PPI)^('Future Trunk Assets - Roads'!Y153-YEAR) -> 1.155263475 | AA153: =IF(Y153<YEAR,1,IF('General Input Sheet'!$E$32="WACC1",1/(1+WACC1)^(Y153-YEAR), IF('General Input Sheet'!$E$32="WACC2",1/(1+WACC2)^(Y153-YEAR),"Check WACC Option in General Input Sheet"))) -> 0.6316903693 | AB153: 1423036 | AC153: 1648404 | AD153: 1041281
B154: R217 | C154: GUM-RC-004 | D154: Road Corridor Project | E154: 1 | F154: New Cleveland Road (Green Camp Road to Grassdale Road) | G154: 4 Lane Road | H154: 1283 | I154: Arterial | J154: 1130 | K154: 20.23982301 | L154: 22871 | M154: 2671.357755 | N154: 3427352 | O154: 2021 | P154: =IFERROR(('General Input Sheet'!$G$38/(VLOOKUP(O154,Histindex,3,FALSE))),1) -> 1 | Q154: Upgrade | R154: =IFERROR(_xlfn.IFS(AND(Q154<>"New",D154<>"Road Bridge"),30%,AND(Q154<>"New",D154="Road Bridge"),10%),0) -> 0.3 | S154: 1028206 | T154: 0.2 | U154: 843129 | V154: 788291 | W154: 0 | X154: 6086978 | Y154: 2034 | Z154: =(1+PPI)^('Future Trunk Assets - Roads'!Y154-YEAR) -> 1.264319088 | AA154: =IF(Y154<YEAR,1,IF('General Input Sheet'!$E$32="WACC1",1/(1+WACC1)^(Y154-YEAR), IF('General Input Sheet'!$E$32="WACC2",1/(1+WACC2)^(Y154-YEAR),"Check WACC Option in General Input Sheet"))) -> 0.4740448311 | AB154: 6109849 | AC154: 7725511 | AD154: 3662239
B155: R217 | C155: GUM-RC-005 | D155: Road Corridor Project | E155: 1 | F155: New Cleveland Road (Grassdale Road to Chelsea Road) | G155: 4 Lane Road | H155: 467 | I155: Arterial | J155: 814 | K155: 4.144963145 | L155: 3374 | M155: 2671.357602 | N155: 1247524 | O155: 2021 | P155: =IFERROR(('General Input Sheet'!$G$38/(VLOOKUP(O155,Histindex,3,FALSE))),1) -> 1 | Q155: Upgrade | R155: =IFERROR(_xlfn.IFS(AND(Q155<>"New",D155<>"Road Bridge"),30%,AND(Q155<>"New",D155="Road Bridge"),10%),0) -> 0.3 | S155: 374257 | T155: 0.2 | U155: 306891 | V155: 286931 | W155: 0 | X155: 2215603 | Y155: 2034 | Z155: =(1+PPI)^('Future Trunk Assets - Roads'!Y155-YEAR) -> 1.264319088 | AA155: =IF(Y155<YEAR,1,IF('General Input Sheet'!$E$32="WACC1",1/(1+WACC1)^(Y155-YEAR), IF('General Input Sheet'!$E$32="WACC2",1/(1+WACC2)^(Y155-YEAR),"Check WACC Option in General Input Sheet"))) -> 0.4740448311 | AB155: 2218977 | AC155: 2805600 | AD155: 1329980
B156: R217 | C156: GUM-RI-001 | D156: Road Intersection Project | E156: 1 | F156: Green Camp Road/New Cleveland Road Intersection | G156: 6 Lane Road / 2 Lane Road | H156: 0 | I156: Arterial / District | J156: 600 | K156: 104.895 | L156: 62937 | M156: 0 | N156: 855714 | O156: 2021 | P156: =IFERROR(('General Input Sheet'!$G$38/(VLOOKUP(O156,Histindex,3,FALSE))),1) -> 1 | Q156: Existing unsignallised Int | R156: =IFERROR(_xlfn.IFS(AND(Q156<>"New",D156<>"Road Bridge"),30%,AND(Q156<>"New",D156="Road Bridge"),10%),0) -> 0.3 | S156: 256714 | T156: 0.2 | U156: 210506 | V156: 196814 | W156: 0 | X156: 1519748 | Y156: 2034 | Z156: =(1+PPI)^('Future Trunk Assets - Roads'!Y156-YEAR) -> 1.264319088 | AA156: =IF(Y156<YEAR,1,IF('General Input Sheet'!$E$32="WACC1",1/(1+WACC1)^(Y156-YEAR), IF('General Input Sheet'!$E$32="WACC2",1/(1+WACC2)^(Y156-YEAR),"Check WACC Option in General Input Sheet"))) -> 0.4740448311 | AB156: 1582685 | AC156: 2002978 | AD156: 949501
B157: R217 | C157: GUM-RI-003 | D157: Road Intersection Project | E157: 1 | F157: New Cleveland Road/Chelsea Road Intersection | G157: 4 Lane Road / 2 Lane Road | H157: 0 | I157: Arterial / District | J157: 300 | K157: 10.23333333 | L157: 3070 | M157: 0 | N157: 578606 | O157: 2021 | P157: =IFERROR(('General Input Sheet'!$G$38/(VLOOKUP(O157,Histindex,3,FALSE))),1) -> 1 | Q157: Existing unsignallised Int | R157: =IFERROR(_xlfn.IFS(AND(Q157<>"New",D157<>"Road Bridge"),30%,AND(Q157<>"New",D157="Road Bridge"),10%),0) -> 0.3 | S157: 173582 | T157: 0.2 | U157: 142337 | V157: 133079 | W157: 0 | X157: 1027604 | Y157: 2034 | Z157: =(1+PPI)^('Future Trunk Assets - Roads'!Y157-YEAR) -> 1.264319088 | AA157: =IF(Y157<YEAR,1,IF('General Input Sheet'!$E$32="WACC1",1/(1+WACC1)^(Y157-YEAR), IF('General Input Sheet'!$E$32="WACC2",1/(1+WACC2)^(Y157-YEAR),"Check WACC Option in General Input Sheet"))) -> 0.4740448311 | AB157: 1030674 | AC157: 1303196 | AD157: 617773
B158: R174 | C158: HAW-RI-002 | D158: Road Intersection Project | E158: 5 | F158: Riding Road/Pashen Street Intersection | G158: 2 Lane Road / 2 Lane Road | H158: 0 | I158: District / District | J158: 0 | K158: 0 | L158: 0 | M158: 0 | N158: 453432 | O158: 2021 | P158: =IFERROR(('General Input Sheet'!$G$38/(VLOOKUP(O158,Histindex,3,FALSE))),1) -> 1 | Q158: Existing unsignallised Int | R158: =IFERROR(_xlfn.IFS(AND(Q158<>"New",D158<>"Road Bridge"),30%,AND(Q158<>"New",D158="Road Bridge"),10%),0) -> 0.3 | S158: 136030 | T158: 0.075 | U158: 41829 | V158: 104289 | W158: 0 | X158: 735580 | Y158: 2024 | Z158: =(1+PPI)^('Future Trunk Assets - Roads'!Y158-YEAR) -> 1.055614607 | AA158: =IF(Y158<YEAR,1,IF('General Input Sheet'!$E$32="WACC1",1/(1+WACC1)^(Y158-YEAR), IF('General Input Sheet'!$E$32="WACC2",1/(1+WACC2)^(Y158-YEAR),"Check WACC Option in General Input Sheet"))) -> 0.8417615727 | AB158: 735580 | AC158: 776489 | AD158: 653619
B159: R173 | C159: HAW-RI-003 | D159: Road Intersection Project | E159: 5 | F159: Hawthorne Road/Orchard Street Intersection | G159: 2 Lane Road / 2 Lane Road | H159: 0 | I159: District / Local | J159: 0 | K159: 0 | L159: 0 | M159: 0 | N159: 453432 | O159: 2021 | P159: =IFERROR(('General Input Sheet'!$G$38/(VLOOKUP(O159,Histindex,3,FALSE))),1) -> 1 | Q159: Existing unsignallised Int | R159: =IFERROR(_xlfn.IFS(AND(Q159<>"New",D159<>"Road Bridge"),30%,AND(Q159<>"New",D159="Road Bridge"),10%),0) -> 0.3 | S159: 136030 | T159: 0.15 | U159: 83658 | V159: 104289 | W159: 0 | X159: 777409 | Y159: 2029 | Z159: =(1+PPI)^('Future Trunk Assets - Roads'!Y159-YEAR) -> 1.155263475 | AA159: =IF(Y159<YEAR,1,IF('General Input Sheet'!$E$32="WACC1",1/(1+WACC1)^(Y159-YEAR), IF('General Input Sheet'!$E$32="WACC2",1/(1+WACC2)^(Y159-YEAR),"Check WACC Option in General Input Sheet"))) -> 0.6316903693 | AB159: 777409 | AC159: 898112 | AD159: 567329
B160: R331 | C160: HEA-RC-002 | D160: Road Corridor Project | E160: 9 | F160: Wadeville Street (Blunder Road to Stapylton Road) | G160: 4 Lane Road | H160: 790 | I160: Suburban | J160: 1393 | K160: 104.638191 | L160: 145761 | M160: 2671.358228 | N160: 2110373 | O160: 2021 | P160: =IFERROR(('General Input Sheet'!$G$38/(VLOOKUP(O160,Histindex,3,FALSE))),1) -> 1 | Q160: Upgrade | R160: =IFERROR(_xlfn.IFS(AND(Q160<>"New",D160<>"Road Bridge"),30%,AND(Q160<>"New",D160="Road Bridge"),10%),0) -> 0.3 | S160: 633112 | T160: 0.075 | U160: 194682 | V160: 485386 | W160: 0 | X160: 3423553 | Y160: 2024 | Z160: =(1+PPI)^('Future Trunk Assets - Roads'!Y160-YEAR) -> 1.055614607 | AA160: =IF(Y160<YEAR,1,IF('General Input Sheet'!$E$32="WACC1",1/(1+WACC1)^(Y160-YEAR), IF('General Input Sheet'!$E$32="WACC2",1/(1+WACC2)^(Y160-YEAR),"Check WACC Option in General Input Sheet"))) -> 0.8417615727 | AB160: 3569314 | AC160: 3768686 | AD160: 3172335
B161: R331 | C161: HEA-RC-009 | D161: Road Corridor Project | E161: 9 | F161: Wadeville Street (Stapylton Road to Parkwood Drive) | G161: 4 Lane Road | H161: 230 | I161: Suburban | J161: 243 | K161: 266.3497942 | L161: 64723 | M161: 2959.595652 | N161: 680707 | O161: 2021 | P161: =IFERROR(('General Input Sheet'!$G$38/(VLOOKUP(O161,Histindex,3,FALSE))),1) -> 1 | Q161: Upgrade | R161: =IFERROR(_xlfn.IFS(AND(Q161<>"New",D161<>"Road Bridge"),30%,AND(Q161<>"New",D161="Road Bridge"),10%),0) -> 0.3 | S161: 204212 | T161: 0.075 | U161: 62795 | V161: 156563 | W161: 0 | X161: 1104277 | Y161: 2024 | Z161: =(1+PPI)^('Future Trunk Assets - Roads'!Y161-YEAR) -> 1.055614607 | AA161: =IF(Y161<YEAR,1,IF('General Input Sheet'!$E$32="WACC1",1/(1+WACC1)^(Y161-YEAR), IF('General Input Sheet'!$E$32="WACC2",1/(1+WACC2)^(Y161-YEAR),"Check WACC Option in General Input Sheet"))) -> 0.8417615727 | AB161: 1169000 | AC161: 1234398 | AD161: 1039069
B162: R331 | C162: HEA-RC-010 | D162: Road Corridor Project | E162: 9 | F162: Wadeville Street (Parkwood Drive to Ritchie Road) | G162: 4 Lane Road | H162: 253 | I162: Suburban | J162: 0 | K162: 0 | L162: 0 | M162: 2671.355731 | N162: 675853 | O162: 2021 | P162: =IFERROR(('General Input Sheet'!$G$38/(VLOOKUP(O162,Histindex,3,FALSE))),1) -> 1 | Q162: Upgrade | R162: =IFERROR(_xlfn.IFS(AND(Q162<>"New",D162<>"Road Bridge"),30%,AND(Q162<>"New",D162="Road Bridge"),10%),0) -> 0.3 | S162: 202756 | T162: 0.075 | U162: 62347 | V162: 155446 | W162: 0 | X162: 1096402 | Y162: 2024 | Z162: =(1+PPI)^('Future Trunk Assets - Roads'!Y162-YEAR) -> 1.055614607 | AA162: =IF(Y162<YEAR,1,IF('General Input Sheet'!$E$32="WACC1",1/(1+WACC1)^(Y162-YEAR), IF('General Input Sheet'!$E$32="WACC2",1/(1+WACC2)^(Y162-YEAR),"Check WACC Option in General Input Sheet"))) -> 0.8417615727 | AB162: 1096402 | AC162: 1157378 | AD162: 974236
B163: R331 | C163: HEA-RI-003 | D163: Road Intersection Project | E163: 9 | F163: Wadeville Street/Parkwood Drive Intersection | G163: 4 Lane Road / 2 Lane Road | H163: 0 | I163: Suburban / Local | J163: 0 | K163: 0 | L163: 0 | M163: 0 | N163: 771474 | O163: 2021 | P163: =IFERROR(('General Input Sheet'!$G$38/(VLOOKUP(O163,Histindex,3,FALSE))),1) -> 1 | Q163: Part New Int | R163: =IFERROR(_xlfn.IFS(AND(Q163<>"New",D163<>"Road Bridge"),30%,AND(Q163<>"New",D163="Road Bridge"),10%),0) -> 0.3 | S163: 231442 | T163: 0.075 | U163: 71168 | V163: 177439 | W163: 0 | X163: 1251523 | Y163: 2024 | Z163: =(1+PPI)^('Future Trunk Assets - Roads'!Y163-YEAR) -> 1.055614607 | AA163: =IF(Y163<YEAR,1,IF('General Input Sheet'!$E$32="WACC1",1/(1+WACC1)^(Y163-YEAR), IF('General Input Sheet'!$E$32="WACC2",1/(1+WACC2)^(Y163-YEAR),"Check WACC Option in General Input Sheet"))) -> 0.8417615727 | AB163: 1251523 | AC163: 1321126 | AD163: 1112073
B164: R176 | C164: HEM-RC-007 | D164: Road Corridor Project | E164: 1 | F164: Hemmant Tingalpa Road (Oswald Street to Youngs Road) | G164: 2 Lane Road | H164: 853 | I164: District | J164: 446 | K164: 76.09641256 | L164: 33939 | M164: 1468.989449 | N164: 1253048 | O164: 2021 | P164: =IFERROR(('General Input Sheet'!$G$38/(VLOOKUP(O164,Histindex,3,FALSE))),1) -> 1 | Q164: Upgrade | R164: =IFERROR(_xlfn.IFS(AND(Q164<>"New",D164<>"Road Bridge"),30%,AND(Q164<>"New",D164="Road Bridge"),10%),0) -> 0.3 | S164: 375914 | T164: 0.2 | U164: 308250 | V164: 288201 | W164: 0 | X164: 2225413 | Y164: 2034 | Z164: =(1+PPI)^('Future Trunk Assets - Roads'!Y164-YEAR) -> 1.264319088 | AA164: =IF(Y164<YEAR,1,IF('General Input Sheet'!$E$32="WACC1",1/(1+WACC1)^(Y164-YEAR), IF('General Input Sheet'!$E$32="WACC2",1/(1+WACC2)^(Y164-YEAR),"Check WACC Option in General Input Sheet"))) -> 0.4740448311 | AB164: 2259352 | AC164: 2857598 | AD164: 1354630
B165: R176 | C165: HEM-RI-007 | D165: Road Intersection Project | E165: 1 | F165: Hemmant Tingalpa Road/Fleming Road Intersection | G165: 2 Lane Road / 2 Lane Road | H165: 0 | I165: District / Local | J165: 150 | K165: 266.08 | L165: 39912 | M165: 0 | N165: 336403 | O165: 2021 | P165: =IFERROR(('General Input Sheet'!$G$38/(VLOOKUP(O165,Histindex,3,FALSE))),1) -> 1 | Q165: Existing unsignallised Int | R165: =IFERROR(_xlfn.IFS(AND(Q165<>"New",D165<>"Road Bridge"),30%,AND(Q165<>"New",D165="Road Bridge"),10%),0) -> 0.3 | S165: 100921 | T165: 0.2 | U165: 82755 | V165: 77373 | W165: 0 | X165: 597452 | Y165: 2034 | Z165: =(1+PPI)^('Future Trunk Assets - Roads'!Y165-YEAR) -> 1.264319088 | AA165: =IF(Y165<YEAR,1,IF('General Input Sheet'!$E$32="WACC1",1/(1+WACC1)^(Y165-YEAR), IF('General Input Sheet'!$E$32="WACC2",1/(1+WACC2)^(Y165-YEAR),"Check WACC Option in General Input Sheet"))) -> 0.4740448311 | AB165: 637364 | AC165: 807074 | AD165: 382589
B166: R172 | C166: HER-RI-001 | D166: Road Intersection Project | E166: 8 | F166: Bowen Bridge Road/Gilchrist Avenue/Herston Road Intersection | G166: 6 Lane Road / 6 Lane Road | H166: 0 | I166: Arterial / Suburban | J166: 0 | K166: 0 | L166: 0 | M166: 0 | N166: 629644 | O166: 2021 | P166: =IFERROR(('General Input Sheet'!$G$38/(VLOOKUP(O166,Histindex,3,FALSE))),1) -> 1 | Q166: Existing signallised Int | R166: =IFERROR(_xlfn.IFS(AND(Q166<>"New",D166<>"Road Bridge"),30%,AND(Q166<>"New",D166="Road Bridge"),10%),0) -> 0.3 | S166: 188893 | T166: 0.075 | U166: 58085 | V166: 144818 | W166: 0 | X166: 1021440 | Y166: 2024 | Z166: =(1+PPI)^('Future Trunk Assets - Roads'!Y166-YEAR) -> 1.055614607 | AA166: =IF(Y166<YEAR,1,IF('General Input Sheet'!$E$32="WACC1",1/(1+WACC1)^(Y166-YEAR), IF('General Input Sheet'!$E$32="WACC2",1/(1+WACC2)^(Y166-YEAR),"Check WACC Option in General Input Sheet"))) -> 0.8417615727 | AB166: 1021440 | AC166: 1078247 | AD166: 907627
B167: R172 | C167: HER-RI-002 | D167: Road Intersection Project | E167: 8 | F167: Bowen Bridge Road/Butterfield Street Intersection | G167: 6 Lane Road / 4 Lane Road | H167: 0 | I167: Arterial / Local | J167: 0 | K167: 0 | L167: 0 | M167: 0 | N167: 596720 | O167: 2021 | P167: =IFERROR(('General Input Sheet'!$G$38/(VLOOKUP(O167,Histindex,3,FALSE))),1) -> 1 | Q167: Existing signallised Int | R167: =IFERROR(_xlfn.IFS(AND(Q167<>"New",D167<>"Road Bridge"),30%,AND(Q167<>"New",D167="Road Bridge"),10%),0) -> 0.3 | S167: 179016 | T167: 0.15 | U167: 110095 | V167: 137246 | W167: 0 | X167: 1023077 | Y167: 2029 | Z167: =(1+PPI)^('Future Trunk Assets - Roads'!Y167-YEAR) -> 1.155263475 | AA167: =IF(Y167<YEAR,1,IF('General Input Sheet'!$E$32="WACC1",1/(1+WACC1)^(Y167-YEAR), IF('General Input Sheet'!$E$32="WACC2",1/(1+WACC2)^(Y167-YEAR),"Check WACC Option in General Input Sheet"))) -> 0.6316903693 | AB167: 1023077 | AC167: 1181923 | AD167: 746609
B168: R234 | C168: HPW-RI-001 | D168: Road Intersection Project | E168: 3 | F168: Logan Road/Nursery Road Intersection | G168: 6 Lane Road / 4 Lane Road | H168: 0 | I168: Arterial / Suburban | J168: 300 | K168: 1790.906667 | L168: 537272 | M168: 0 | N168: 784259 | O168: 2021 | P168: =IFERROR(('General Input Sheet'!$G$38/(VLOOKUP(O168,Histindex,3,FALSE))),1) -> 1 | Q168: Existing signallised Int | R168: =IFERROR(_xlfn.IFS(AND(Q168<>"New",D168<>"Road Bridge"),30%,AND(Q168<>"New",D168="Road Bridge"),10%),0) -> 0.3 | S168: 235278 | T168: 0.2 | U168: 192928 | V168: 180380 | W168: 0 | X168: 1392845 | Y168: 2034 | Z168: =(1+PPI)^('Future Trunk Assets - Roads'!Y168-YEAR) -> 1.264319088 | AA168: =IF(Y168<YEAR,1,IF('General Input Sheet'!$E$32="WACC1",1/(1+WACC1)^(Y168-YEAR), IF('General Input Sheet'!$E$32="WACC2",1/(1+WACC2)^(Y168-YEAR),"Check WACC Option in General Input Sheet"))) -> 0.4740448311 | AB168: 1930117 | AC168: 2457011 | AD168: 1164733
B169: R233 | C169: HPW-RI-002 | D169: Road Intersection Project | E169: 4 | F169: Birdwood Road/Esher Street Intersection | G169: 2 Lane Road / 2 Lane Road | H169: 0 | I169: Suburban / Suburban | J169: 0 | K169: 0 | L169: 0 | M169: 0 | N169: 430761 | O169: 2021 | P169: =IFERROR(('General Input Sheet'!$G$38/(VLOOKUP(O169,Histindex,3,FALSE))),1) -> 1 | Q169: Existing unsignallised Int | R169: =IFERROR(_xlfn.IFS(AND(Q169<>"New",D169<>"Road Bridge"),30%,AND(Q169<>"New",D169="Road Bridge"),10%),0) -> 0.3 | S169: 129228 | T169: 0.075 | U169: 39738 | V169: 99075 | W169: 0 | X169: 698802 | Y169: 2024 | Z169: =(1+PPI)^('Future Trunk Assets - Roads'!Y169-YEAR) -> 1.055614607 | AA169: =IF(Y169<YEAR,1,IF('General Input Sheet'!$E$32="WACC1",1/(1+WACC1)^(Y169-YEAR), IF('General Input Sheet'!$E$32="WACC2",1/(1+WACC2)^(Y169-YEAR),"Check WACC Option in General Input Sheet"))) -> 0.8417615727 | AB169: 698802 | AC169: 737666 | AD169: 620939
B170: R211 | C170: IND-RI-003 | D170: Road Intersection Project | E170: 11 | F170: Moggill Road/Coonan Street/Keating Street Intersection | G170: 6 Lane Road / 6 Lane Road | H170: 0 | I170: Arterial / Arterial | J170: 0 | K170: 0 | L170: 0 | M170: 0 | N170: 930973 | O170: 2021 | P170: =IFERROR(('General Input Sheet'!$G$38/(VLOOKUP(O170,Histindex,3,FALSE))),1) -> 1 | Q170: Existing unsignallised Int | R170: =IFERROR(_xlfn.IFS(AND(Q170<>"New",D170<>"Road Bridge"),30%,AND(Q170<>"New",D170="Road Bridge"),10%),0) -> 0.3 | S170: 279292 | T170: 0.075 | U170: 85882 | V170: 214124 | W170: 0 | X170: 1510271 | Y170: 2024 | Z170: =(1+PPI)^('Future Trunk Assets - Roads'!Y170-YEAR) -> 1.055614607 | AA170: =IF(Y170<YEAR,1,IF('General Input Sheet'!$E$32="WACC1",1/(1+WACC1)^(Y170-YEAR), IF('General Input Sheet'!$E$32="WACC2",1/(1+WACC2)^(Y170-YEAR),"Check WACC Option in General Input Sheet"))) -> 0.8417615727 | AB170: 1510271 | AC170: 1594264 | AD170: 1341990
B171: R211 | C171: IND-RI-004 | D171: Road Intersection Project | E171: 11 | F171: Clarence Road/Lambert Road Intersection | G171: 2 Lane Road / 2 Lane Road | H171: 0 | I171: Suburban / Suburban | J171: 600 | K171: 1586.233333 | L171: 951740 | M171: 0 | N171: 382899 | O171: 2021 | P171: =IFERROR(('General Input Sheet'!$G$38/(VLOOKUP(O171,Histindex,3,FALSE))),1) -> 1 | Q171: Existing signallised Int | R171: =IFERROR(_xlfn.IFS(AND(Q171<>"New",D171<>"Road Bridge"),30%,AND(Q171<>"New",D171="Road Bridge"),10%),0) -> 0.3 | S171: 114870 | T171: 0.075 | U171: 35322 | V171: 88067 | W171: 0 | X171: 621158 | Y171: 2024 | Z171: =(1+PPI)^('Future Trunk Assets - Roads'!Y171-YEAR) -> 1.055614607 | AA171: =IF(Y171<YEAR,1,IF('General Input Sheet'!$E$32="WACC1",1/(1+WACC1)^(Y171-YEAR), IF('General Input Sheet'!$E$32="WACC2",1/(1+WACC2)^(Y171-YEAR),"Check WACC Option in General Input Sheet"))) -> 0.8417615727 | AB171: 1572898 | AC171: 1666030 | AD171: 1402400
B172: R211 | C172: IND-RI-005 | D172: Road Intersection Project | E172: 11 | F172: Clarence Road/Westminster Road Intersection | G172: 4 Lane Road / 2 Lane Road | H172: 0 | I172: Suburban / Suburban | J172: 150 | K172: 1125.713333 | L172: 168857 | M172: 0 | N172: 450026 | O172: 2021 | P172: =IFERROR(('General Input Sheet'!$G$38/(VLOOKUP(O172,Histindex,3,FALSE))),1) -> 1 | Q172: Existing signallised Int | R172: =IFERROR(_xlfn.IFS(AND(Q172<>"New",D172<>"Road Bridge"),30%,AND(Q172<>"New",D172="Road Bridge"),10%),0) -> 0.3 | S172: 135008 | T172: 0.075 | U172: 41515 | V172: 103506 | W172: 0 | X172: 730055 | Y172: 2024 | Z172: =(1+PPI)^('Future Trunk Assets - Roads'!Y172-YEAR) -> 1.055614607 | AA172: =IF(Y172<YEAR,1,IF('General Input Sheet'!$E$32="WACC1",1/(1+WACC1)^(Y172-YEAR), IF('General Input Sheet'!$E$32="WACC2",1/(1+WACC2)^(Y172-YEAR),"Check WACC Option in General Input Sheet"))) -> 0.8417615727 | AB172: 898912 | AC172: 949908 | AD172: 799596
B173: R210 | C173: IND-RI-006 | D173: Road Intersection Project | E173: 11 | F173: Witton Road/Kate Street Intersection | G173: 2 Lane Road / 2 Lane Road | H173: 0 | I173: District / District | J173: 150 | K173: 255.8466667 | L173: 38377 | M173: 0 | N173: 430761 | O173: 2021 | P173: =IFERROR(('General Input Sheet'!$G$38/(VLOOKUP(O173,Histindex,3,FALSE))),1) -> 1 | Q173: Existing unsignallised Int | R173: =IFERROR(_xlfn.IFS(AND(Q173<>"New",D173<>"Road Bridge"),30%,AND(Q173<>"New",D173="Road Bridge"),10%),0) -> 0.3 | S173: 129228 | T173: 0.075 | U173: 39738 | V173: 99075 | W173: 0 | X173: 698802 | Y173: 2024 | Z173: =(1+PPI)^('Future Trunk Assets - Roads'!Y173-YEAR) -> 1.055614607 | AA173: =IF(Y173<YEAR,1,IF('General Input Sheet'!$E$32="WACC1",1/(1+WACC1)^(Y173-YEAR), IF('General Input Sheet'!$E$32="WACC2",1/(1+WACC2)^(Y173-YEAR),"Check WACC Option in General Input Sheet"))) -> 0.8417615727 | AB173: 737179 | AC173: 778405 | AD173: 655231
B174: R211 | C174: IND-RI-007 | D174: Road Intersection Project | E174: 11 | F174: Lambert Road/Harts Road Intersection | G174: 2 Lane Road / 2 Lane Road | H174: 0 | I174: Suburban / Local | J174: 0 | K174: 0 | L174: 0 | M174: 0 | N174: 430761 | O174: 2021 | P174: =IFERROR(('General Input Sheet'!$G$38/(VLOOKUP(O174,Histindex,3,FALSE))),1) -> 1 | Q174: Existing unsignallised Int | R174: =IFERROR(_xlfn.IFS(AND(Q174<>"New",D174<>"Road Bridge"),30%,AND(Q174<>"New",D174="Road Bridge"),10%),0) -> 0.3 | S174: 129228 | T174: 0.2 | U174: 105967 | V174: 99075 | W174: 0 | X174: 765031 | Y174: 2034 | Z174: =(1+PPI)^('Future Trunk Assets - Roads'!Y174-YEAR) -> 1.264319088 | AA174: =IF(Y174<YEAR,1,IF('General Input Sheet'!$E$32="WACC1",1/(1+WACC1)^(Y174-YEAR), IF('General Input Sheet'!$E$32="WACC2",1/(1+WACC2)^(Y174-YEAR),"Check WACC Option in General Input Sheet"))) -> 0.4740448311 | AB174: 765031 | AC174: 967243 | AD174: 458517
B175: R269 | C175: JAH-RI-001 | D175: Road Intersection Project | E175: 10 | F175: Sumners Road/Spine Street Intersection | G175: 4 Lane Road / 4 Lane Road | H175: 0 | I175: Suburban / District | J175: 150 | K175: 1404.44 | L175: 210666 | M175: 0 | N175: 516545 | O175: 2021 | P175: =IFERROR(('General Input Sheet'!$G$38/(VLOOKUP(O175,Histindex,3,FALSE))),1) -> 1 | Q175: Existing signallised Int | R175: =IFERROR(_xlfn.IFS(AND(Q175<>"New",D175<>"Road Bridge"),30%,AND(Q175<>"New",D175="Road Bridge"),10%),0) -> 0.3 | S175: 154964 | T175: 0.2 | U175: 127070 | V175: 118805 | W175: 0 | X175: 917384 | Y175: 2034 | Z175: =(1+PPI)^('Future Trunk Assets - Roads'!Y175-YEAR) -> 1.264319088 | AA175: =IF(Y175<YEAR,1,IF('General Input Sheet'!$E$32="WACC1",1/(1+WACC1)^(Y175-YEAR), IF('General Input Sheet'!$E$32="WACC2",1/(1+WACC2)^(Y175-YEAR),"Check WACC Option in General Input Sheet"))) -> 0.4740448311 | AB175: 1128050 | AC175: 1432774 | AD175: 679199
B176: R230 | C176: JIN-RC-001 | D176: Road Corridor Project | E176: 10 | F176: Sinnamon Road (Yallambee Road to Centenary Motorway) | G176: 4 Lane Road | H176: 286 | I176: Suburban | J176: 845 | K176: 23.11715976 | L176: 19534 | M176: 2671.356643 | N176: 764008 | O176: 2021 | P176: =IFERROR(('General Input Sheet'!$G$38/(VLOOKUP(O176,Histindex,3,FALSE))),1) -> 1 | Q176: Upgrade | R176: =IFERROR(_xlfn.IFS(AND(Q176<>"New",D176<>"Road Bridge"),30%,AND(Q176<>"New",D176="Road Bridge"),10%),0) -> 0.3 | S176: 229202 | T176: 0.075 | U176: 70480 | V176: 175722 | W176: 0 | X176: 1239412 | Y176: 2024 | Z176: =(1+PPI)^('Future Trunk Assets - Roads'!Y176-YEAR) -> 1.055614607 | AA176: =IF(Y176<YEAR,1,IF('General Input Sheet'!$E$32="WACC1",1/(1+WACC1)^(Y176-YEAR), IF('General Input Sheet'!$E$32="WACC2",1/(1+WACC2)^(Y176-YEAR),"Check WACC Option in General Input Sheet"))) -> 0.8417615727 | AB176: 1258946 | AC176: 1329078 | AD176: 1118767
B177: R193 | C177: KAN-RI-001 | D177: Road Intersection Project | E177: 8 | F177: Vulture Street/Main Street Intersection | G177: 6 Lane Road / 6 Lane Road | H177: 0 | I177: Arterial / Arterial | J177: 450 | K177: 852.8133333 | L177: 383766 | M177: 0 | N177: 719593 | O177: 2021 | P177: =IFERROR(('General Input Sheet'!$G$38/(VLOOKUP(O177,Histindex,3,FALSE))),1) -> 1 | Q177: Existing signallised Int | R177: =IFERROR(_xlfn.IFS(AND(Q177<>"New",D177<>"Road Bridge"),30%,AND(Q177<>"New",D177="Road Bridge"),10%),0) -> 0.3 | S177: 215878 | T177: 0.15 | U177: 132765 | V177: 165506 | W177: 0 | X177: 1233742 | Y177: 2029 | Z177: =(1+PPI)^('Future Trunk Assets - Roads'!Y177-YEAR) -> 1.155263475 | AA177: =IF(Y177<YEAR,1,IF('General Input Sheet'!$E$32="WACC1",1/(1+WACC1)^(Y177-YEAR), IF('General Input Sheet'!$E$32="WACC2",1/(1+WACC2)^(Y177-YEAR),"Check WACC Option in General Input Sheet"))) -> 0.6316903693 | AB177: 1617508 | AC177: 1875335 | AD177: 1184631
B178: R172 | C178: KGR-RI-001 | D178: Road Intersection Project | E178: 8 | F178: Kelvin Grove Road/Herston Road Intersection | G178: 6 Lane Road / 4 Lane Road | H178: 0 | I178: Arterial / District | J178: 150 | K178: 1023.373333 | L178: 153506 | M178: 0 | N178: 596720 | O178: 2021 | P178: =IFERROR(('General Input Sheet'!$G$38/(VLOOKUP(O178,Histindex,3,FALSE))),1) -> 1 | Q178: Existing signallised Int | R178: =IFERROR(_xlfn.IFS(AND(Q178<>"New",D178<>"Road Bridge"),30%,AND(Q178<>"New",D178="Road Bridge"),10%),0) -> 0.3 | S178: 179016 | T178: 0.2 | U178: 146793 | V178: 137246 | W178: 0 | X178: 1059775 | Y178: 2034 | Z178: =(1+PPI)^('Future Trunk Assets - Roads'!Y178-YEAR) -> 1.264319088 | AA178: =IF(Y178<YEAR,1,IF('General Input Sheet'!$E$32="WACC1",1/(1+WACC1)^(Y178-YEAR), IF('General Input Sheet'!$E$32="WACC2",1/(1+WACC2)^(Y178-YEAR),"Check WACC Option in General Input Sheet"))) -> 0.4740448311 | AB178: 1213281 | AC178: 1538753 | AD178: 729438
B179: R172 | C179: KGR-RI-002 | D179: Road Intersection Project | E179: 8 | F179: Kelvin Grove Road/Windsor Road Intersection | G179: 6 Lane Road / 4 Lane Road | H179: 0 | I179: Arterial / District | J179: 150 | K179: 1404.44 | L179: 210666 | M179: 0 | N179: 681965 | O179: 2021 | P179: =IFERROR(('General Input Sheet'!$G$38/(VLOOKUP(O179,Histindex,3,FALSE))),1) -> 1 | Q179: Existing signallised Int | R179: =IFERROR(_xlfn.IFS(AND(Q179<>"New",D179<>"Road Bridge"),30%,AND(Q179<>"New",D179="Road Bridge"),10%),0) -> 0.3 | S179: 204590 | T179: 0.2 | U179: 167763 | V179: 156852 | W179: 0 | X179: 1211170 | Y179: 2034 | Z179: =(1+PPI)^('Future Trunk Assets - Roads'!Y179-YEAR) -> 1.264319088 | AA179: =IF(Y179<YEAR,1,IF('General Input Sheet'!$E$32="WACC1",1/(1+WACC1)^(Y179-YEAR), IF('General Input Sheet'!$E$32="WACC2",1/(1+WACC2)^(Y179-YEAR),"Check WACC Option in General Input Sheet"))) -> 0.4740448311 | AB179: 1421836 | AC179: 1804213 | AD179: 855278
B180: R172 | C180: KGR-RI-003 | D180: Road Intersection Project | E180: 8 | F180: Kelvin Grove Road/Blamey Street Intersection | G180: 6 Lane Road / 4 Lane Road | H180: 0 | I180: Arterial / District | J180: 150 | K180: 0 | L180: 0 | M180: 0 | N180: 596720 | O180: 2021 | P180: =IFERROR(('General Input Sheet'!$G$38/(VLOOKUP(O180,Histindex,3,FALSE))),1) -> 1 | Q180: Existing signallised Int | R180: =IFERROR(_xlfn.IFS(AND(Q180<>"New",D180<>"Road Bridge"),30%,AND(Q180<>"New",D180="Road Bridge"),10%),0) -> 0.3 | S180: 179016 | T180: 0.075 | U180: 55047 | V180: 137246 | W180: 0 | X180: 968029 | Y180: 2024 | Z180: =(1+PPI)^('Future Trunk Assets - Roads'!Y180-YEAR) -> 1.055614607 | AA180: =IF(Y180<YEAR,1,IF('General Input Sheet'!$E$32="WACC1",1/(1+WACC1)^(Y180-YEAR), IF('General Input Sheet'!$E$32="WACC2",1/(1+WACC2)^(Y180-YEAR),"Check WACC Option in General Input Sheet"))) -> 0.8417615727 | AB180: 968029 | AC180: 1021866 | AD180: 860168
B181: R150 | C181: KRR-RC-002 | D181: Road Corridor Project | E181: 13, 12 | F181: Settlement Road (Kilbowie Street to Mungarie Street) | G181: 4 Lane Road | H181: 1672 | I181: Suburban | J181: 4480 | K181: 124.9589286 | L181: 559816 | M181: 2671.357656 | N181: 4466510 | O181: 2021 | P181: =IFERROR(('General Input Sheet'!$G$38/(VLOOKUP(O181,Histindex,3,FALSE))),1) -> 1 | Q181: Upgrade | R181: =IFERROR(_xlfn.IFS(AND(Q181<>"New",D181<>"Road Bridge"),30%,AND(Q181<>"New",D181="Road Bridge"),10%),0) -> 0.3 | S181: 1339953 | T181: 0.2 | U181: 1098761 | V181: 1027297 | W181: 0 | X181: 7932521 | Y181: 2034 | Z181: =(1+PPI)^('Future Trunk Assets - Roads'!Y181-YEAR) -> 1.264319088 | AA181: =IF(Y181<YEAR,1,IF('General Input Sheet'!$E$32="WACC1",1/(1+WACC1)^(Y181-YEAR), IF('General Input Sheet'!$E$32="WACC2",1/(1+WACC2)^(Y181-YEAR),"Check WACC Option in General Input Sheet"))) -> 0.4740448311 | AB181: 8492337 | AC181: 10754452 | AD181: 5098092
B182: R153 | C182: LUT-RC-001 | D182: Road Corridor Project | E182: 14 | F182: Lutwyche Road (Chalk Street to Bradshaw Street) | G182: 6 Lane Road | H182: 81 | I182: Arterial | J182: 414 | K182: 216.5797101 | L182: 89664 | M182: 4803.888889 | N182: 389115 | O182: 2021 | P182: =IFERROR(('General Input Sheet'!$G$38/(VLOOKUP(O182,Histindex,3,FALSE))),1) -> 1 | Q182: Upgrade | R182: =IFERROR(_xlfn.IFS(AND(Q182<>"New",D182<>"Road Bridge"),30%,AND(Q182<>"New",D182="Road Bridge"),10%),0) -> 0.3 | S182: 116735 | T182: 0.2 | U182: 95722 | V182: 89496 | W182: 0 | X182: 691068 | Y182: 2034 | Z182: =(1+PPI)^('Future Trunk Assets - Roads'!Y182-YEAR) -> 1.264319088 | AA182: =IF(Y182<YEAR,1,IF('General Input Sheet'!$E$32="WACC1",1/(1+WACC1)^(Y182-YEAR), IF('General Input Sheet'!$E$32="WACC2",1/(1+WACC2)^(Y182-YEAR),"Check WACC Option in General Input Sheet"))) -> 0.4740448311 | AB182: 780732 | AC182: 989886 | AD182: 469250
B183: R153 | C183: LUT-RI-001 | D183: Road Intersection Project | E183: 14 | F183: Lutwyche Road/Chalk Street Intersection | G183: 6 Lane Road / 2 Lane Road | H183: 0 | I183: Arterial / District | J183: 600 | K183: 511.6866667 | L183: 307012 | M183: 0 | N183: 690577 | O183: 2021 | P183: =IFERROR(('General Input Sheet'!$G$38/(VLOOKUP(O183,Histindex,3,FALSE))),1) -> 1 | Q183: Existing signallised Int | R183: =IFERROR(_xlfn.IFS(AND(Q183<>"New",D183<>"Road Bridge"),30%,AND(Q183<>"New",D183="Road Bridge"),10%),0) -> 0.3 | S183: 207173 | T183: 0.15 | U183: 127412 | V183: 158833 | W183: 0 | X183: 1183995 | Y183: 2029 | Z183: =(1+PPI)^('Future Trunk Assets - Roads'!Y183-YEAR) -> 1.155263475 | AA183: =IF(Y183<YEAR,1,IF('General Input Sheet'!$E$32="WACC1",1/(1+WACC1)^(Y183-YEAR), IF('General Input Sheet'!$E$32="WACC2",1/(1+WACC2)^(Y183-YEAR),"Check WACC Option in General Input Sheet"))) -> 0.6316903693 | AB183: 1491007 | AC183: 1727855 | AD183: 1091469
B184: R111 | C184: MDW-RC-002 | D184: Road Corridor Project | E184: 14 | F184: Rode Road (Pleshette Place to Foambark Street) | G184: 4 Lane Road | H184: 351 | I184: Suburban | J184: 168 | K184: 799.8154762 | L184: 134369 | M184: 2671.358974 | N184: 937647 | O184: 2021 | P184: =IFERROR(('General Input Sheet'!$G$38/(VLOOKUP(O184,Histindex,3,FALSE))),1) -> 1 | Q184: Upgrade | R184: =IFERROR(_xlfn.IFS(AND(Q184<>"New",D184<>"Road Bridge"),30%,AND(Q184<>"New",D184="Road Bridge"),10%),0) -> 0.3 | S184: 281294 | T184: 0.15 | U184: 172996 | V184: 215659 | W184: 0 | X184: 1607596 | Y184: 2029 | Z184: =(1+PPI)^('Future Trunk Assets - Roads'!Y184-YEAR) -> 1.155263475 | AA184: =IF(Y184<YEAR,1,IF('General Input Sheet'!$E$32="WACC1",1/(1+WACC1)^(Y184-YEAR), IF('General Input Sheet'!$E$32="WACC2",1/(1+WACC2)^(Y184-YEAR),"Check WACC Option in General Input Sheet"))) -> 0.6316903693 | AB184: 1741965 | AC184: 2014770 | AD184: 1272711
B185: R111 | C185: MDW-RC-003 | D185: Road Corridor Project | E185: 15 | F185: Hamilton Road (Streisand Drive to Beckett Road) | G185: 4 Lane Road | H185: 437 | I185: Arterial | J185: 449 | K185: 127.4075724 | L185: 57206 | M185: 2671.356979 | N185: 1167383 | O185: 2021 | P185: =IFERROR(('General Input Sheet'!$G$38/(VLOOKUP(O185,Histindex,3,FALSE))),1) -> 1 | Q185: Upgrade | R185: =IFERROR(_xlfn.IFS(AND(Q185<>"New",D185<>"Road Bridge"),30%,AND(Q185<>"New",D185="Road Bridge"),10%),0) -> 0.3 | S185: 350215 | T185: 0.2 | U185: 287176 | V185: 268498 | W185: 0 | X185: 2073272 | Y185: 2034 | Z185: =(1+PPI)^('Future Trunk Assets - Roads'!Y185-YEAR) -> 1.264319088 | AA185: =IF(Y185<YEAR,1,IF('General Input Sheet'!$E$32="WACC1",1/(1+WACC1)^(Y185-YEAR), IF('General Input Sheet'!$E$32="WACC2",1/(1+WACC2)^(Y185-YEAR),"Check WACC Option in General Input Sheet"))) -> 0.4740448311 | AB185: 2130478 | AC185: 2695385 | AD185: 1277733
B186: R111 | C186: MDW-RC-004 | D186: Road Corridor Project | E186: 14 | F186: Rode Road (Ifield Street to Trouts Road) | G186: 4 Lane Road | H186: 278 | I186: Suburban | J186: 414 | K186: 60.90821256 | L186: 25216 | M186: 2671.356115 | N186: 742637 | O186: 2021 | P186: =IFERROR(('General Input Sheet'!$G$38/(VLOOKUP(O186,Histindex,3,FALSE))),1) -> 1 | Q186: Upgrade | R186: =IFERROR(_xlfn.IFS(AND(Q186<>"New",D186<>"Road Bridge"),30%,AND(Q186<>"New",D186="Road Bridge"),10%),0) -> 0.3 | S186: 222791 | T186: 0.15 | U186: 137017 | V186: 170807 | W186: 0 | X186: 1273252 | Y186: 2029 | Z186: =(1+PPI)^('Future Trunk Assets - Roads'!Y186-YEAR) -> 1.155263475 | AA186: =IF(Y186<YEAR,1,IF('General Input Sheet'!$E$32="WACC1",1/(1+WACC1)^(Y186-YEAR), IF('General Input Sheet'!$E$32="WACC2",1/(1+WACC2)^(Y186-YEAR),"Check WACC Option in General Input Sheet"))) -> 0.6316903693 | AB186: 1298468 | AC186: 1500512 | AD186: 947859
B187: R111 | C187: MDW-RC-005 | D187: Road Corridor Project | E187: 15 | F187: Hamilton Road (Old Northern Road to Streisand Drive) | G187: 4 Lane Road | H187: 264 | I187: Arterial | J187: 333 | K187: 723.1291291 | L187: 240802 | M187: 2671.356061 | N187: 705238 | O187: 2021 | P187: =IFERROR(('General Input Sheet'!$G$38/(VLOOKUP(O187,Histindex,3,FALSE))),1) -> 1 | Q187: Upgrade | R187: =IFERROR(_xlfn.IFS(AND(Q187<>"New",D187<>"Road Bridge"),30%,AND(Q187<>"New",D187="Road Bridge"),10%),0) -> 0.3 | S187: 211571 | T187: 0.075 | U187: 65058 | V187: 162205 | W187: 0 | X187: 1144072 | Y187: 2024 | Z187: =(1+PPI)^('Future Trunk Assets - Roads'!Y187-YEAR) -> 1.055614607 | AA187: =IF(Y187<YEAR,1,IF('General Input Sheet'!$E$32="WACC1",1/(1+WACC1)^(Y187-YEAR), IF('General Input Sheet'!$E$32="WACC2",1/(1+WACC2)^(Y187-YEAR),"Check WACC Option in General Input Sheet"))) -> 0.8417615727 | AB187: 1384874 | AC187: 1463324 | AD187: 1231770
B188: R111, R112 | C188: MDW-RC-006 | D188: Road Corridor Project | E188: 14 | F188: Rode Road (Trouts Road to Cilento Street) | G188: 4 Lane Road | H188: 139 | I188: Suburban | J188: 0 | K188: 0 | L188: 0 | M188: 2959.597122 | N188: 411384 | O188: 2021 | P188: =IFERROR(('General Input Sheet'!$G$38/(VLOOKUP(O188,Histindex,3,FALSE))),1) -> 1 | Q188: Upgrade | R188: =IFERROR(_xlfn.IFS(AND(Q188<>"New",D188<>"Road Bridge"),30%,AND(Q188<>"New",D188="Road Bridge"),10%),0) -> 0.3 | S188: 123415 | T188: 0.15 | U188: 75900 | V188: 94618 | W188: 0 | X188: 705317 | Y188: 2029 | Z188: =(1+PPI)^('Future Trunk Assets - Roads'!Y188-YEAR) -> 1.155263475 | AA188: =IF(Y188<YEAR,1,IF('General Input Sheet'!$E$32="WACC1",1/(1+WACC1)^(Y188-YEAR), IF('General Input Sheet'!$E$32="WACC2",1/(1+WACC2)^(Y188-YEAR),"Check WACC Option in General Input Sheet"))) -> 0.6316903693 | AB188: 705317 | AC188: 814827 | AD188: 514718
B189: R234 | C189: MGE-RC-002 | D189: Road Corridor Project | E189: 3 | F189: Cavendish Road (Nursery Road to Coolong Street) | G189: 4 Lane Road | H189: 478 | I189: Suburban | J189: 1233 | K189: 739.9091646 | L189: 912308 | M189: 2671.357741 | N189: 1276909 | O189: 2021 | P189: =IFERROR(('General Input Sheet'!$G$38/(VLOOKUP(O189,Histindex,3,FALSE))),1) -> 1 | Q189: Upgrade | R189: =IFERROR(_xlfn.IFS(AND(Q189<>"New",D189<>"Road Bridge"),30%,AND(Q189<>"New",D189="Road Bridge"),10%),0) -> 0.3 | S189: 383073 | T189: 0.075 | U189: 117795 | V189: 293689 | W189: 0 | X189: 2071466 | Y189: 2024 | Z189: =(1+PPI)^('Future Trunk Assets - Roads'!Y189-YEAR) -> 1.055614607 | AA189: =IF(Y189<YEAR,1,IF('General Input Sheet'!$E$32="WACC1",1/(1+WACC1)^(Y189-YEAR), IF('General Input Sheet'!$E$32="WACC2",1/(1+WACC2)^(Y189-YEAR),"Check WACC Option in General Input Sheet"))) -> 0.8417615727 | AB189: 2983774 | AC189: 3155137 | AD189: 2655873
B190: R235 | C190: MGE-RI-001 | D190: Road Intersection Project | E190: 3 | F190: Newnham Road/Creek Road Intersection | G190: 6 Lane Road / 4 Lane Road | H190: 0 | I190: Arterial / Suburban | J190: 150 | K190: 1077.486667 | L190: 161623 | M190: 0 | N190: 647867 | O190: 2021 | P190: =IFERROR(('General Input Sheet'!$G$38/(VLOOKUP(O190,Histindex,3,FALSE))),1) -> 1 | Q190: Existing signallised Int | R190: =IFERROR(_xlfn.IFS(AND(Q190<>"New",D190<>"Road Bridge"),30%,AND(Q190<>"New",D190="Road Bridge"),10%),0) -> 0.3 | S190: 194360 | T190: 0.15 | U190: 119531 | V190: 149009 | W190: 0 | X190: 1110767 | Y190: 2029 | Z190: =(1+PPI)^('Future Trunk Assets - Roads'!Y190-YEAR) -> 1.155263475 | AA190: =IF(Y190<YEAR,1,IF('General Input Sheet'!$E$32="WACC1",1/(1+WACC1)^(Y190-YEAR), IF('General Input Sheet'!$E$32="WACC2",1/(1+WACC2)^(Y190-YEAR),"Check WACC Option in General Input Sheet"))) -> 0.6316903693 | AB190: 1272390 | AC190: 1472762 | AD190: 930330
B191: R235 | C191: MGE-RI-002 | D191: Road Intersection Project | E191: 3 | F191: Newnham Road/Wecker Road Intersection | G191: 4 Lane Road / 4 Lane Road | H191: 0 | I191: Arterial / Suburban | J191: 0 | K191: 0 | L191: 0 | M191: 0 | N191: 516545 | O191: 2021 | P191: =IFERROR(('General Input Sheet'!$G$38/(VLOOKUP(O191,Histindex,3,FALSE))),1) -> 1 | Q191: Existing signallised Int | R191: =IFERROR(_xlfn.IFS(AND(Q191<>"New",D191<>"Road Bridge"),30%,AND(Q191<>"New",D191="Road Bridge"),10%),0) -> 0.3 | S191: 154964 | T191: 0.075 | U191: 47651 | V191: 118805 | W191: 0 | X191: 837965 | Y191: 2024 | Z191: =(1+PPI)^('Future Trunk Assets - Roads'!Y191-YEAR) -> 1.055614607 | AA191: =IF(Y191<YEAR,1,IF('General Input Sheet'!$E$32="WACC1",1/(1+WACC1)^(Y191-YEAR), IF('General Input Sheet'!$E$32="WACC2",1/(1+WACC2)^(Y191-YEAR),"Check WACC Option in General Input Sheet"))) -> 0.8417615727 | AB191: 837965 | AC191: 884568 | AD191: 744595
B192: R254 | C192: MGR-RI-001 | D192: Road Intersection Project | E192: 3 | F192: Logan Road/Creek Road Intersection | G192: 6 Lane Road / 4 Lane Road | H192: 0 | I192: Arterial / Suburban | J192: 0 | K192: 0 | L192: 0 | M192: 0 | N192: 686228 | O192: 2021 | P192: =IFERROR(('General Input Sheet'!$G$38/(VLOOKUP(O192,Histindex,3,FALSE))),1) -> 1 | Q192: Existing signallised Int | R192: =IFERROR(_xlfn.IFS(AND(Q192<>"New",D192<>"Road Bridge"),30%,AND(Q192<>"New",D192="Road Bridge"),10%),0) -> 0.3 | S192: 205868 | T192: 0.2 | U192: 168812 | V192: 157832 | W192: 0 | X192: 1218740 | Y192: 2034 | Z192: =(1+PPI)^('Future Trunk Assets - Roads'!Y192-YEAR) -> 1.264319088 | AA192: =IF(Y192<YEAR,1,IF('General Input Sheet'!$E$32="WACC1",1/(1+WACC1)^(Y192-YEAR), IF('General Input Sheet'!$E$32="WACC2",1/(1+WACC2)^(Y192-YEAR),"Check WACC Option in General Input Sheet"))) -> 0.4740448311 | AB192: 1218740 | AC192: 1540876 | AD192: 730444
B193: R254 | C193: MGR-RI-002 | D193: Road Intersection Project | E193: 3 | F193: Logan Road/Broadwater Road Intersection | G193: 6 Lane Road / 4 Lane Road | H193: 0 | I193: Arterial / Suburban | J193: 300 | K193: 1048.96 | L193: 314688 | M193: 0 | N193: 566884 | O193: 2021 | P193: =IFERROR(('General Input Sheet'!$G$38/(VLOOKUP(O193,Histindex,3,FALSE))),1) -> 1 | Q193: Existing signallised Int | R193: =IFERROR(_xlfn.IFS(AND(Q193<>"New",D193<>"Road Bridge"),30%,AND(Q193<>"New",D193="Road Bridge"),10%),0) -> 0.3 | S193: 170065 | T193: 0.075 | U193: 52295 | V193: 130383 | W193: 0 | X193: 919627 | Y193: 2024 | Z193: =(1+PPI)^('Future Trunk Assets - Roads'!Y193-YEAR) -> 1.055614607 | AA193: =IF(Y193<YEAR,1,IF('General Input Sheet'!$E$32="WACC1",1/(1+WACC1)^(Y193-YEAR), IF('General Input Sheet'!$E$32="WACC2",1/(1+WACC2)^(Y193-YEAR),"Check WACC Option in General Input Sheet"))) -> 0.8417615727 | AB193: 1234315 | AC193: 1304831 | AD193: 1098357
B194: R131 | C194: MIT-RC-003 | D194: Road Corridor Project | E194: 13 | F194: Osborne Road (Brookside Shopping Centre access to bridge over Kedron Brook) | G194: 4 Lane Road | H194: 291 | I194: Suburban | J194: 462 | K194: 967.3311688 | L194: 446907 | M194: 3233.749141 | N194: 941021 | O194: 2021 | P194: =IFERROR(('General Input Sheet'!$G$38/(VLOOKUP(O194,Histindex,3,FALSE))),1) -> 1 | Q194: Upgrade | R194: =IFERROR(_xlfn.IFS(AND(Q194<>"New",D194<>"Road Bridge"),30%,AND(Q194<>"New",D194="Road Bridge"),10%),0) -> 0.3 | S194: 282306 | T194: 0.2 | U194: 231491 | V194: 216435 | W194: 0 | X194: 1671253 | Y194: 2034 | Z194: =(1+PPI)^('Future Trunk Assets - Roads'!Y194-YEAR) -> 1.264319088 | AA194: =IF(Y194<YEAR,1,IF('General Input Sheet'!$E$32="WACC1",1/(1+WACC1)^(Y194-YEAR), IF('General Input Sheet'!$E$32="WACC2",1/(1+WACC2)^(Y194-YEAR),"Check WACC Option in General Input Sheet"))) -> 0.4740448311 | AB194: 2118160 | AC194: 2691944 | AD194: 1276102
B195: R252 | C195: MKA-RC-001 | D195: Road Corridor Project | E195: 7 | F195: Ipswich Road (Hamilton Road to Gainsborough Street) | G195: 6 Lane Road | H195: 452 | I195: Arterial | J195: 754 | K195: 985.0490716 | L195: 742727 | M195: 5330.362832 | N195: 2409324 | O195: 2021 | P195: =IFERROR(('General Input Sheet'!$G$38/(VLOOKUP(O195,Histindex,3,FALSE))),1) -> 1 | Q195: New | R195: =IFERROR(_xlfn.IFS(AND(Q195<>"New",D195<>"Road Bridge"),30%,AND(Q195<>"New",D195="Road Bridge"),10%),0) -> 0 | S195: 0 | T195: 0.2 | U195: 592694 | V195: 554145 | W195: 0 | X195: 3556163 | Y195: 2034 | Z195: =(1+PPI)^('Future Trunk Assets - Roads'!Y199-YEAR) -> 1.264319088 | AA195: =IF(Y195<YEAR,1,IF('General Input Sheet'!$E$32="WACC1",1/(1+WACC1)^(Y195-YEAR), IF('General Input Sheet'!$E$32="WACC2",1/(1+WACC2)^(Y195-YEAR),"Check WACC Option in General Input Sheet"))) -> 0.4740448311 | AB195: 4298890 | AC195: 5458292 | AD195: 2587475
B196: R232, R252 | C196: MKA-RC-002 | D196: Road Corridor Project | E196: 7 | F196: Ipswich Road (Gainsborough Street to Beaudesert Road) | G196: 6 Lane Road | H196: 1433 | I196: Arterial | J196: 2555 | K196: 837.6641879 | L196: 2140232 | M196: 2936.949058 | N196: 4208648 | O196: 2021 | P196: =IFERROR(('General Input Sheet'!$G$38/(VLOOKUP(O196,Histindex,3,FALSE))),1) -> 1 | Q196: Upgrade | R196: =IFERROR(_xlfn.IFS(AND(Q196<>"New",D196<>"Road Bridge"),30%,AND(Q196<>"New",D196="Road Bridge"),10%),0) -> 0.3 | S196: 1262594 | T196: 0.2 | U196: 1035327 | V196: 967989 | W196: 0 | X196: 7474558 | Y196: 2034 | Z196: =(1+PPI)^('Future Trunk Assets - Roads'!Y200-YEAR) -> 1.264319088 | AA196: =IF(Y196<YEAR,1,IF('General Input Sheet'!$E$32="WACC1",1/(1+WACC1)^(Y196-YEAR), IF('General Input Sheet'!$E$32="WACC2",1/(1+WACC2)^(Y196-YEAR),"Check WACC Option in General Input Sheet"))) -> 0.4740448311 | AB196: 9614790 | AC196: 12222794 | AD196: 5794152
B197: R252 | C197: MKA-RI-001 | D197: Road Intersection Project | E197: 7 | F197: Ipswich Road/Gainsborough Street Intersection | G197: 6 Lane Road / 2 Lane Road | H197: 0 | I197: Arterial / Local | J197: 0 | K197: 0 | L197: 0 | M197: 0 | N197: 641786 | O197: 2021 | P197: =IFERROR(('General Input Sheet'!$G$38/(VLOOKUP(O197,Histindex,3,FALSE))),1) -> 1 | Q197: Existing unsignallised Int | R197: =IFERROR(_xlfn.IFS(AND(Q197<>"New",D197<>"Road Bridge"),30%,AND(Q197<>"New",D197="Road Bridge"),10%),0) -> 0.3 | S197: 192536 | T197: 0.2 | U197: 157879 | V197: 147611 | W197: 0 | X197: 1139812 | Y197: 2034 | Z197: =(1+PPI)^('Future Trunk Assets - Roads'!Y201-YEAR) -> 1.055614607 | AA197: =IF(Y197<YEAR,1,IF('General Input Sheet'!$E$32="WACC1",1/(1+WACC1)^(Y197-YEAR), IF('General Input Sheet'!$E$32="WACC2",1/(1+WACC2)^(Y197-YEAR),"Check WACC Option in General Input Sheet"))) -> 0.4740448311 | AB197: 1139812 | AC197: 1203202 | AD197: 570372
B198: R196 | C198: MNW-RC-002 | D198: Road Corridor Project | E198: 1 | F198: Wondall Road (Manly Road to Bognor Street) | G198: 4 Lane Road | H198: 621 | I198: Suburban | J198: 0 | K198: 0 | L198: 0 | M198: 2671.357488 | N198: 1658913 | O198: 2021 | P198: =IFERROR(('General Input Sheet'!$G$38/(VLOOKUP(O198,Histindex,3,FALSE))),1) -> 1 | Q198: Upgrade | R198: =IFERROR(_xlfn.IFS(AND(Q198<>"New",D198<>"Road Bridge"),30%,AND(Q198<>"New",D198="Road Bridge"),10%),0) -> 0.3 | S198: 497674 | T198: 0.2 | U198: 408093 | V198: 381550 | W198: 0 | X198: 2946230 | Y198: 2034 | Z198: =(1+PPI)^('Future Trunk Assets - Roads'!Y195-YEAR) -> 1.264319088 | AA198: =IF(Y198<YEAR,1,IF('General Input Sheet'!$E$32="WACC1",1/(1+WACC1)^(Y198-YEAR), IF('General Input Sheet'!$E$32="WACC2",1/(1+WACC2)^(Y198-YEAR),"Check WACC Option in General Input Sheet"))) -> 0.4740448311 | AB198: 2946230 | AC198: 3724975 | AD198: 1765805
B199: R196, R197 | C199: MNW-RC-003 | D199: Road Corridor Project | E199: 1 | F199: Wondall Road (Bognor Street to Kianawah Road South) | G199: 4 Lane Road | H199: 596 | I199: Suburban | J199: 0 | K199: 0 | L199: 0 | M199: 2671.357383 | N199: 1592129 | O199: 2021 | P199: =IFERROR(('General Input Sheet'!$G$38/(VLOOKUP(O199,Histindex,3,FALSE))),1) -> 1 | Q199: Upgrade | R199: =IFERROR(_xlfn.IFS(AND(Q199<>"New",D199<>"Road Bridge"),30%,AND(Q199<>"New",D199="Road Bridge"),10%),0) -> 0.3 | S199: 477639 | T199: 0.2 | U199: 391664 | V199: 366190 | W199: 0 | X199: 2827622 | Y199: 2034 | Z199: =(1+PPI)^('Future Trunk Assets - Roads'!Y196-YEAR) -> 1.264319088 | AA199: =IF(Y199<YEAR,1,IF('General Input Sheet'!$E$32="WACC1",1/(1+WACC1)^(Y199-YEAR), IF('General Input Sheet'!$E$32="WACC2",1/(1+WACC2)^(Y199-YEAR),"Check WACC Option in General Input Sheet"))) -> 0.4740448311 | AB199: 2827622 | AC199: 3575016 | AD199: 1694718
B200: R197, R177 | C200: MNW-RC-004 | D200: Road Corridor Project | E200: 1 | F200: Wondall Road (Kianawah Road South to Randall Road) | G200: 4 Lane Road | H200: 614 | I200: Suburban | J200: 579 | K200: 813.6545769 | L200: 471106 | M200: 2671.358306 | N200: 1640214 | O200: 2021 | P200: =IFERROR(('General Input Sheet'!$G$38/(VLOOKUP(O200,Histindex,3,FALSE))),1) -> 1 | Q200: Upgrade | R200: =IFERROR(_xlfn.IFS(AND(Q200<>"New",D200<>"Road Bridge"),30%,AND(Q200<>"New",D200="Road Bridge"),10%),0) -> 0.3 | S200: 492064 | T200: 0.2 | U200: 403493 | V200: 377249 | W200: 0 | X200: 2913020 | Y200: 2034 | Z200: =(1+PPI)^('Future Trunk Assets - Roads'!Y197-YEAR) -> 1.264319088 | AA200: =IF(Y200<YEAR,1,IF('General Input Sheet'!$E$32="WACC1",1/(1+WACC1)^(Y200-YEAR), IF('General Input Sheet'!$E$32="WACC2",1/(1+WACC2)^(Y200-YEAR),"Check WACC Option in General Input Sheet"))) -> 0.4740448311 | AB200: 3384126 | AC200: 4293282 | AD200: 2035208
B201: R249 | C201: MOM-RI-001 | D201: Road Intersection Project | E201: 10 | F201: Dandenong Road/Sirocco Street/Central Avenue Intersection | G201: 4 Lane Road / 2 Lane Road | H201: 0 | I201: Suburban / Local | J201: 150 | K201: 147.3333333 | L201: 22100 | M201: 0 | N201: 771474 | O201: 2021 | P201: =IFERROR(('General Input Sheet'!$G$38/(VLOOKUP(O201,Histindex,3,FALSE))),1) -> 1 | Q201: Existing unsignallised Int | R201: =IFERROR(_xlfn.IFS(AND(Q201<>"New",D201<>"Road Bridge"),30%,AND(Q201<>"New",D201="Road Bridge"),10%),0) -> 0.3 | S201: 231442 | T201: 0.075 | U201: 71168 | V201: 177439 | W201: 0 | X201: 1251523 | Y201: 2024 | Z201: =(1+PPI)^('Future Trunk Assets - Roads'!Y198-YEAR) -> 1.264319088 | AA201: =IF(Y201<YEAR,1,IF('General Input Sheet'!$E$32="WACC1",1/(1+WACC1)^(Y201-YEAR), IF('General Input Sheet'!$E$32="WACC2",1/(1+WACC2)^(Y201-YEAR),"Check WACC Option in General Input Sheet"))) -> 0.8417615727 | AB201: 1273623 | AC201: 1605785 | AD201: 1351688
B202: R174 | C202: MOR-RB-001 | D202: Road Bridge | E202: 5 | F202: Lytton Road Bridge | G202: 4 Lane Road | H202: 45 | I202: Suburban | J202: 424 | K202: 0.1509433962 | L202: 64 | M202: 151162.9111 | N202: 6802331 | O202: 2021 | P202: =IFERROR(('General Input Sheet'!$G$38/(VLOOKUP(O202,Histindex,3,FALSE))),1) -> 1 | Q202: New | R202: =IFERROR(_xlfn.IFS(AND(Q202<>"New",D202<>"Road Bridge"),30%,AND(Q202<>"New",D202="Road Bridge"),10%),0) -> 0 | S202: 0 | T202: 0.15 | U202: 1255030 | V202: 1564536 | W202: 0 | X202: 9621897 | Y202: 2029 | Z202: =(1+PPI)^('Future Trunk Assets - Roads'!Y202-YEAR) -> 1.155263475 | AA202: =IF(Y202<YEAR,1,IF('General Input Sheet'!$E$32="WACC1",1/(1+WACC1)^(Y202-YEAR), IF('General Input Sheet'!$E$32="WACC2",1/(1+WACC2)^(Y202-YEAR),"Check WACC Option in General Input Sheet"))) -> 0.6316903693 | AB202: 9621961 | AC202: 11115901 | AD202: 7021808
B203: R174 | C203: MOR-RC-002 | D203: Road Corridor Project | E203: 5 | F203: Lytton Road (Thynne Road to bridge over Perrin Creek) | G203: 4 Lane Road | H203: 278 | I203: Suburban | J203: 108 | K203: 423 | L203: 45684 | M203: 2671.356115 | N203: 742637 | O203: 2021 | P203: =IFERROR(('General Input Sheet'!$G$38/(VLOOKUP(O203,Histindex,3,FALSE))),1) -> 1 | Q203: Upgrade | R203: =IFERROR(_xlfn.IFS(AND(Q203<>"New",D203<>"Road Bridge"),30%,AND(Q203<>"New",D203="Road Bridge"),10%),0) -> 0.3 | S203: 222791 | T203: 0.15 | U203: 137017 | V203: 170807 | W203: 0 | X203: 1273252 | Y203: 2029 | Z203: =(1+PPI)^('Future Trunk Assets - Roads'!Y203-YEAR) -> 1.155263475 | AA203: =IF(Y203<YEAR,1,IF('General Input Sheet'!$E$32="WACC1",1/(1+WACC1)^(Y203-YEAR), IF('General Input Sheet'!$E$32="WACC2",1/(1+WACC2)^(Y203-YEAR),"Check WACC Option in General Input Sheet"))) -> 0.6316903693 | AB203: 1318936 | AC203: 1524515 | AD203: 963021
B204: R174 | C204: MOR-RC-003 | D204: Road Corridor Project | E204: 5 | F204: Lytton Road (Junction Road to bridge over Perrin Creek) | G204: 4 Lane Road | H204: 1106 | I204: Suburban | J204: 3024 | K204: 167.3505291 | L204: 506068 | M204: 2671.358047 | N204: 2954522 | O204: 2021 | P204: =IFERROR(('General Input Sheet'!$G$38/(VLOOKUP(O204,Histindex,3,FALSE))),1) -> 1 | Q204: Upgrade | R204: =IFERROR(_xlfn.IFS(AND(Q204<>"New",D204<>"Road Bridge"),30%,AND(Q204<>"New",D204="Road Bridge"),10%),0) -> 0.3 | S204: 886357 | T204: 0.15 | U204: 545109 | V204: 679540 | W204: 0 | X204: 5065528 | Y204: 2029 | Z204: =(1+PPI)^('Future Trunk Assets - Roads'!Y204-YEAR) -> 1.155263475 | AA204: =IF(Y204<YEAR,1,IF('General Input Sheet'!$E$32="WACC1",1/(1+WACC1)^(Y204-YEAR), IF('General Input Sheet'!$E$32="WACC2",1/(1+WACC2)^(Y204-YEAR),"Check WACC Option in General Input Sheet"))) -> 0.6316903693 | AB204: 5571596 | AC204: 6445479 | AD204: 4071547
B205: R174 | C205: MOR-RI-001 | D205: Road Intersection Project | E205: 5 | F205: Lytton Road/Junction Road Intersection | G205: 6 Lane Road / 4 Lane Road | H205: 0 | I205: Arterial / Suburban | J205: 300 | K205: 166.3 | L205: 49890 | M205: 0 | N205: 971801 | O205: 2021 | P205: =IFERROR(('General Input Sheet'!$G$38/(VLOOKUP(O205,Histindex,3,FALSE))),1) -> 1 | Q205: Existing unsignallised Int | R205: =IFERROR(_xlfn.IFS(AND(Q205<>"New",D205<>"Road Bridge"),30%,AND(Q205<>"New",D205="Road Bridge"),10%),0) -> 0.3 | S205: 291540 | T205: 0.075 | U205: 89649 | V205: 223514 | W205: 0 | X205: 1576504 | Y205: 2024 | Z205: =(1+PPI)^('Future Trunk Assets - Roads'!Y205-YEAR) -> 1.055614607 | AA205: =IF(Y205<YEAR,1,IF('General Input Sheet'!$E$32="WACC1",1/(1+WACC1)^(Y205-YEAR), IF('General Input Sheet'!$E$32="WACC2",1/(1+WACC2)^(Y205-YEAR),"Check WACC Option in General Input Sheet"))) -> 0.8417615727 | AB205: 1626394 | AC205: 1717142 | AD205: 1445424
B206: R174 | C206: MOR-RI-003 | D206: Road Intersection Project | E206: 5 | F206: Lytton Road/Thynne Road Intersection | G206: 4 Lane Road / 2 Lane Road | H206: 0 | I206: Suburban / Suburban | J206: 0 | K206: 0 | L206: 0 | M206: 0 | N206: 578606 | O206: 2021 | P206: =IFERROR(('General Input Sheet'!$G$38/(VLOOKUP(O206,Histindex,3,FALSE))),1) -> 1 | Q206: Existing unsignallised Int | R206: =IFERROR(_xlfn.IFS(AND(Q206<>"New",D206<>"Road Bridge"),30%,AND(Q206<>"New",D206="Road Bridge"),10%),0) -> 0.3 | S206: 173582 | T206: 0.075 | U206: 53376 | V206: 133079 | W206: 0 | X206: 938643 | Y206: 2024 | Z206: =(1+PPI)^('Future Trunk Assets - Roads'!Y206-YEAR) -> 1.055614607 | AA206: =IF(Y206<YEAR,1,IF('General Input Sheet'!$E$32="WACC1",1/(1+WACC1)^(Y206-YEAR), IF('General Input Sheet'!$E$32="WACC2",1/(1+WACC2)^(Y206-YEAR),"Check WACC Option in General Input Sheet"))) -> 0.8417615727 | AB206: 938643 | AC206: 990845 | AD206: 834055
B207: R194 | C207: MOR-RI-004 | D207: Road Intersection Project | E207: 5 | F207: Waminda Street/Jack Flynn Memorial Drive Intersection | G207: 2 Lane Road / 2 Lane Road | H207: 0 | I207: Suburban / Suburban | J207: 0 | K207: 0 | L207: 0 | M207: 0 | N207: 453432 | O207: 2021 | P207: =IFERROR(('General Input Sheet'!$G$38/(VLOOKUP(O207,Histindex,3,FALSE))),1) -> 1 | Q207: Existing unsignallised Int | R207: =IFERROR(_xlfn.IFS(AND(Q207<>"New",D207<>"Road Bridge"),30%,AND(Q207<>"New",D207="Road Bridge"),10%),0) -> 0.3 | S207: =ROUND(N207*R207,0) -> 136030 | T207: =IF(Y207="","",IF(Y207<=YEAR+5,0.075,IF(AND(Y207>YEAR+5,Y207<=YEAR+10),0.15,IF(AND(Y207>YEAR+10,Y207<=YEAR+20),0.2,IF(Y207>YEAR+20,0.25,""))))) -> 0.075 | U207: =ROUND((N207+V207)*T207,0) -> 41829 | V207: =ROUND((N207)*23%,0) -> 104289 | W207: 0 | X207: =ROUND(N207+S207+U207+V207,0) -> 735580 | Y207: 2024 | Z207: =(1+PPI)^('Future Trunk Assets - Roads'!Y207-YEAR) -> 1.055614607 | AA207: =IF(Y207<YEAR,1,IF('General Input Sheet'!$E$32="WACC1",1/(1+WACC1)^(Y207-YEAR), IF('General Input Sheet'!$E$32="WACC2",1/(1+WACC2)^(Y207-YEAR),"Check WACC Option in General Input Sheet"))) -> 0.8417615727 | AB207: =ROUND(X207+L207-W207,0) -> 735580 | AC207: =IFERROR(ROUND((X207*Z207)+((1+Landind)^(Y207-YEAR)*L207),0),0) -> 776489 | AD207: =IFERROR(ROUND((AC207*AA207),0),0) -> 653619
... 171 more rows

Sheet Catchment Demand - Roads
B2: ='Navigation Pane'!B2 -> Brisbane City Council
B3: Road Transport
B5: Catchment Demand (trips)
B7: Catchment No | C7: 2021 | D7: =C7+5 -> 2026 | E7: =D7+5 -> 2031 | F7: 2036 | G7: 2041 | I7: ="NPV Future Demand ("&(C7+1)& " - " &G7+10&")" -> NPV Future Demand (2022 - 2051)
B8: 1 | C8: 412712.5 | D8: 428005.6667 | E8: 443298.8333 | F8: 458592 | I8: =NPV(WACC1,D43:R43) -> 29881.68029
B9: 2 | C9: 70990.52 | D9: 73720.35 | E9: 76450.18 | F9: 79180.01 | I9: 5333.879443
B10: 3 | C10: 333451.6 | D10: 350523.2333 | E10: 367594.8667 | F10: 384666.5 | I10: 33356.6684
B11: 4 | C11: 335849.3 | D11: 350922.7667 | E11: 365996.2333 | F11: 381069.7 | I11: 29452.40326
B12: 5 | C12: 306738.4 | D12: 320833.6 | E12: 334928.8 | F12: 349024 | I12: 27540.94487
B13: 6 | C13: 451220.1 | D13: 469943.5333 | E13: 488666.9667 | F13: 507390.4 | I13: 36584.15951
B14: 7 | C14: 485138.4 | D14: 499071 | E14: 513003.6 | F14: 526936.2 | I14: 27223.23688
B15: 8 | C15: 1353162.9 | D15: 1419489.233 | E15: 1485815.567 | F15: 1552141.9 | I15: 129596.5924
B16: 9 | C16: 253827.3 | D16: 261744.0667 | E16: 269660.8333 | F16: 277577.6 | I16: 15468.75775
B17: 10 | C17: 447721.4 | D17: 473019.0667 | E17: 498316.7333 | F17: 523614.4 | I17: 49429.70961
B18: 11 | C18: 278309.1 | D18: 287962.6667 | E18: 297616.2333 | F18: 307269.8 | I18: 18862.33238
B19: 12 | C19: 121140.53 | D19: 123558.6433 | E19: 125976.7567 | F19: 128394.87 | I19: 4724.80887
B20: 13 | C20: 243700.6 | D20: 254299.6667 | E20: 264898.7333 | F20: 275497.8 | I20: 20709.7672
B21: 14 | C21: 454743.9 | D21: 475523.5667 | E21: 496303.2333 | F21: 517082.9 | I21: 40601.88248
B22: 15 | C22: 524581.5 | D22: 550790.0333 | E22: 576998.5667 | F22: 603207.1 | I22: 51209.47355
B23: 16 | C23: 756383.4 | D23: 803817.7333 | E23: 851252.0667 | F23: 898686.4 | I23: 92683.06651
B24: 17 | C24: 74620.17 | D24: 75214.45667 | E24: 75808.74333 | F24: 76403.03 | I24: 1161.190783
B25: Citywide | C25: =SUM(C8:C24) -> 6904291.62 | D25: =SUM(D8:D24) -> 7218439.283 | E25: =SUM(E8:E24) -> 7532586.947 | F25: =SUM(F8:F24) -> 7846734.61 | G25: =SUM(G8:G24) -> 0 | I25: =SUM(I8:I24) -> 613820.5542
I27: =NPV(WACCII,#REF!) -> 
I28: =NPV(WACCII,#REF!) -> 
I29: =NPV(WACCII,#REF!) -> 
I30: =NPV(WACCII,#REF!) -> 
I31: =NPV(WACCII,#REF!) -> 
I32: =NPV(WACCII,#REF!) -> 
I33: =NPV(WACCII,#REF!) -> 
I34: =NPV(WACCII,#REF!) -> 
I35: =NPV(WACCII,#REF!) -> 
I36: =NPV(WACCII,#REF!) -> 
I37: =NPV(WACCII,#REF!) -> 
B41: DETAILED Forecast Demand Growth Profile
B42: Catchment No | C42: 2021 | D42: =C42 +1 -> 2022 | E42: =D42 +1 -> 2023 | F42: 2024 | G42: 2025 | H42: 2026 | I42: 2027 | J42: 2028 | K42: 2029 | L42: 2030 | M42: 2031 | N42: 2032 | O42: 2033 | P42: 2034 | Q42: 2035 | R42: 2036
B43: =B8 -> 1 | D43: =($D8-$C8)/5 -> 3058.633333 | E43: =($D8-$C8)/5 -> 3058.633333 | F43: =($D8-$C8)/5 -> 3058.633333 | G43: =($D8-$C8)/5 -> 3058.633333 | H43: =($D8-$C8)/5 -> 3058.633333 | I43: =($E8-$D8)/5 -> 3058.633333 | J43: =($E8-$D8)/5 -> 3058.633333 | K43: =($E8-$D8)/5 -> 3058.633333 | L43: =($E8-$D8)/5 -> 3058.633333 | M43: =($E8-$D8)/5 -> 3058.633333 | N43: =($F8-$E8)/5 -> 3058.633333 | O43: =($F8-$E8)/5 -> 3058.633333 | P43: 3058.633333 | Q43: 3058.633333 | R43: 3058.633333
B44: =B9 -> 2 | D44: =($D9-$C9)/5 -> 545.966 | E44: 545.966 | F44: 545.966 | G44: 545.966 | H44: 545.966 | I44: =($E9-$D9)/5 -> 545.966 | J44: 545.966 | K44: 545.966 | L44: 545.966 | M44: 545.966 | N44: 545.966 | O44: =($F9-$E9)/5 -> 545.966 | P44: 545.966 | Q44: 545.966 | R44: 545.966
B45: 3 | D45: =($D10-$C10)/5 -> 3414.326667 | E45: 3414.326667 | F45: 3414.326667 | G45: 3414.326667 | H45: 3414.326667 | I45: =($E10-$D10)/5 -> 3414.326667 | J45: 3414.326667 | K45: 3414.326667 | L45: 3414.326667 | M45: 3414.326667 | N45: 3414.326667 | O45: 3414.326667 | P45: 3414.326667 | Q45: 3414.326667 | R45: 3414.326667
B46: 4 | D46: =($D11-$C11)/5 -> 3014.693333 | E46: 3014.693333 | F46: 3014.693333 | G46: 3014.693333 | H46: 3014.693333 | I46: =($E11-$D11)/5 -> 3014.693333 | J46: 3014.693333 | K46: 3014.693333 | L46: 3014.693333 | M46: 3014.693333 | N46: 3014.693333 | O46: 3014.693333 | P46: 3014.693333 | Q46: 3014.693333 | R46: 3014.693333
B47: 5 | D47: =($D12-$C12)/5 -> 2819.04 | E47: 2819.04 | F47: 2819.04 | G47: 2819.04 | H47: 2819.04 | I47: =($E12-$D12)/5 -> 2819.04 | J47: 2819.04 | K47: 2819.04 | L47: 2819.04 | M47: 2819.04 | N47: 2819.04 | O47: 2819.04 | P47: 2819.04 | Q47: 2819.04 | R47: 2819.04
B48: 6 | D48: =($D13-$C13)/5 -> 3744.686667 | E48: 3744.686667 | F48: 3744.686667 | G48: 3744.686667 | H48: 3744.686667 | I48: =($E13-$D13)/5 -> 3744.686667 | J48: 3744.686667 | K48: 3744.686667 | L48: 3744.686667 | M48: 3744.686667 | N48: 3744.686667 | O48: 3744.686667 | P48: 3744.686667 | Q48: 3744.686667 | R48: 3744.686667
B49: 7 | D49: =($D14-$C14)/5 -> 2786.52 | E49: 2786.52 | F49: 2786.52 | G49: 2786.52 | H49: 2786.52 | I49: =($E14-$D14)/5 -> 2786.52 | J49: 2786.52 | K49: 2786.52 | L49: 2786.52 | M49: 2786.52 | N49: 2786.52 | O49: 2786.52 | P49: 2786.52 | Q49: 2786.52 | R49: 2786.52
B50: 8 | D50: =($D15-$C15)/5 -> 13265.26667 | E50: 13265.26667 | F50: 13265.26667 | G50: 13265.26667 | H50: 13265.26667 | I50: =($E15-$D15)/5 -> 13265.26667 | J50: 13265.26667 | K50: 13265.26667 | L50: 13265.26667 | M50: 13265.26667 | N50: 13265.26667 | O50: 13265.26667 | P50: 13265.26667 | Q50: 13265.26667 | R50: 13265.26667
B51: 9 | D51: =($D16-$C16)/5 -> 1583.353333 | E51: 1583.353333 | F51: 1583.353333 | G51: 1583.353333 | H51: 1583.353333 | I51: =($E16-$D16)/5 -> 1583.353333 | J51: 1583.353333 | K51: 1583.353333 | L51: 1583.353333 | M51: 1583.353333 | N51: 1583.353333 | O51: 1583.353333 | P51: 1583.353333 | Q51: 1583.353333 | R51: 1583.353333
B52: 10 | D52: =($D17-$C17)/5 -> 5059.533333 | E52: 5059.533333 | F52: 5059.533333 | G52: 5059.533333 | H52: 5059.533333 | I52: =($E17-$D17)/5 -> 5059.533333 | J52: 5059.533333 | K52: 5059.533333 | L52: 5059.533333 | M52: 5059.533333 | N52: 5059.533333 | O52: 5059.533333 | P52: 5059.533333 | Q52: 5059.533333 | R52: 5059.533333
B53: 11 | D53: =($D18-$C18)/5 -> 1930.713333 | E53: 1930.713333 | F53: 1930.713333 | G53: 1930.713333 | H53: 1930.713333 | I53: =($E18-$D18)/5 -> 1930.713333 | J53: 1930.713333 | K53: 1930.713333 | L53: 1930.713333 | M53: 1930.713333 | N53: 1930.713333 | O53: 1930.713333 | P53: 1930.713333 | Q53: 1930.713333 | R53: 1930.713333
B54: 12 | D54: =($D19-$C19)/5 -> 483.6226667 | E54: 483.6226667 | F54: 483.6226667 | G54: 483.6226667 | H54: 483.6226667 | I54: =($E19-$D19)/5 -> 483.6226667 | J54: 483.6226667 | K54: 483.6226667 | L54: 483.6226667 | M54: 483.6226667 | N54: 483.6226667 | O54: 483.6226667 | P54: 483.6226667 | Q54: 483.6226667 | R54: 483.6226667
B55: 13 | D55: =($D20-$C20)/5 -> 2119.813333 | E55: 2119.813333 | F55: 2119.813333 | G55: 2119.813333 | H55: 2119.813333 | I55: =($E20-$D20)/5 -> 2119.813333 | J55: 2119.813333 | K55: 2119.813333 | L55: 2119.813333 | M55: 2119.813333 | N55: 2119.813333 | O55: 2119.813333 | P55: 2119.813333 | Q55: 2119.813333 | R55: 2119.813333
B56: 14 | D56: =($D21-$C21)/5 -> 4155.933333 | E56: 4155.933333 | F56: 4155.933333 | G56: 4155.933333 | H56: 4155.933333 | I56: =($E21-$D21)/5 -> 4155.933333 | J56: 4155.933333 | K56: 4155.933333 | L56: 4155.933333 | M56: 4155.933333 | N56: 4155.933333 | O56: 4155.933333 | P56: 4155.933333 | Q56: 4155.933333 | R56: 4155.933333
B57: 15 | D57: =($D22-$C22)/5 -> 5241.706667 | E57: 5241.706667 | F57: 5241.706667 | G57: 5241.706667 | H57: 5241.706667 | I57: =($E22-$D22)/5 -> 5241.706667 | J57: 5241.706667 | K57: 5241.706667 | L57: 5241.706667 | M57: 5241.706667 | N57: 5241.706667 | O57: 5241.706667 | P57: 5241.706667 | Q57: 5241.706667 | R57: 5241.706667
B58: 16 | D58: =($D23-$C23)/5 -> 9486.866667 | E58: 9486.866667 | F58: 9486.866667 | G58: 9486.866667 | H58: 9486.866667 | I58: =($E23-$D23)/5 -> 9486.866667 | J58: 9486.866667 | K58: 9486.866667 | L58: 9486.866667 | M58: 9486.866667 | N58: 9486.866667 | O58: 9486.866667 | P58: 9486.866667 | Q58: 9486.866667 | R58: 9486.866667
B59: 17 | D59: =($D24-$C24)/5 -> 118.8573333 | E59: 118.8573333 | F59: 118.8573333 | G59: 118.8573333 | H59: 118.8573333 | I59: =($E24-$D24)/5 -> 118.8573333 | J59: 118.8573333 | K59: 118.8573333 | L59: 118.8573333 | M59: 118.8573333 | N59: 118.8573333 | O59: 118.8573333 | P59: 118.8573333 | Q59: 118.8573333 | R59: 118.8573333
B60: =B25 -> Citywide | D60: =SUM(D43:D59) -> 62829.53267 | E60: =SUM(E43:E59) -> 62829.53267 | F60: 62829.53267 | G60: 62829.53267 | H60: 62829.53267 | I60: 62829.53267 | J60: 62829.53267 | K60: 62829.53267 | L60: 62829.53267 | M60: 62829.53267 | N60: 62829.53267 | O60: 62829.53267 | P60: 62829.53267 | Q60: 62829.53267 | R60: 62829.53267

Sheet Summary Cost Schedule
B2: ='Navigation Pane'!B2 -> Brisbane City Council
B5: Summary Cost Schedule
B7: Catchment | C7: Demand (trips) | F7: Cost of Trunk Infrastructure | I7: Cost per Unit Demand (Average)
B8: No | C8: Existing (A) | D8: NPV Future (B) | E8: TOTAL (A)+ (B) | F8: Existing (C) | G8: NPV Future (D) | H8: TOTAL (C)+ (D)
B9: Transport
B10: ='Catchment Demand - Roads'!B8 -> 1 | C10: =IFERROR(VLOOKUP($B10,'Catchment Demand - Roads'!$B$8:$I$37,2,FALSE),"") -> 412712.5 | D10: =IFERROR(_xlfn.XLOOKUP(B10,'Catchment Demand - Roads'!$B$8:$B$24,'Catchment Demand - Roads'!$I$8:$I$24,,0),"") -> 29881.68029 | E10: =IFERROR(C10+D10,"") -> 442594.1803 | F10: 472183200 | G10: 23302298.26 | H10: =F10+G10 -> 495485498.3 | I10: =IFERROR(H10/E10,0) -> 1119.502968
B11: ='Catchment Demand - Roads'!B9 -> 2 | C11: =IFERROR(VLOOKUP($B11,'Catchment Demand - Roads'!$B$8:$I$37,2,FALSE),"") -> 70990.52 | D11: =IFERROR(_xlfn.XLOOKUP(B11,'Catchment Demand - Roads'!$B$8:$B$24,'Catchment Demand - Roads'!$I$8:$I$24,,0),"") -> 5333.879443 | E11: =IFERROR(C11+D11,"") -> 76324.39944 | F11: 94615820 | G11: 11010405.45 | H11: =F11+G11 -> 105626225.5 | I11: =IFERROR(H11/E11,0) -> 1383.911648
B12: ='Catchment Demand - Roads'!B10 -> 3 | C12: =IFERROR(VLOOKUP($B12,'Catchment Demand - Roads'!$B$8:$I$37,2,FALSE),"") -> 333451.6 | D12: =IFERROR(_xlfn.XLOOKUP(B12,'Catchment Demand - Roads'!$B$8:$B$24,'Catchment Demand - Roads'!$I$8:$I$24,,0),"") -> 33356.6684 | E12: 366808.2684 | F12: 335160100 | G12: 42586091.97 | H12: 377746192 | I12: 1029.819185
B13: ='Catchment Demand - Roads'!B11 -> 4 | C13: =IFERROR(VLOOKUP($B13,'Catchment Demand - Roads'!$B$8:$I$37,2,FALSE),"") -> 335849.3 | D13: =IFERROR(_xlfn.XLOOKUP(B13,'Catchment Demand - Roads'!$B$8:$B$24,'Catchment Demand - Roads'!$I$8:$I$24,,0),"") -> 29452.40326 | E13: 365301.7033 | F13: 609100900 | G13: 52282373.03 | H13: 661383273 | I13: 1810.512426
B14: ='Catchment Demand - Roads'!B12 -> 5 | C14: =IFERROR(VLOOKUP($B14,'Catchment Demand - Roads'!$B$8:$I$37,2,FALSE),"") -> 306738.4 | D14: =IFERROR(_xlfn.XLOOKUP(B14,'Catchment Demand - Roads'!$B$8:$B$24,'Catchment Demand - Roads'!$I$8:$I$24,,0),"") -> 27540.94487 | E14: 334279.3449 | F14: 603030900 | G14: 56791833.46 | H14: 659822733.5 | I14: 1973.8663
B15: ='Catchment Demand - Roads'!B13 -> 6 | C15: =IFERROR(VLOOKUP($B15,'Catchment Demand - Roads'!$B$8:$I$37,2,FALSE),"") -> 451220.1 | D15: =IFERROR(_xlfn.XLOOKUP(B15,'Catchment Demand - Roads'!$B$8:$B$24,'Catchment Demand - Roads'!$I$8:$I$24,,0),"") -> 36584.15951 | E15: 487804.2595 | F15: 402908700 | G15: 42079634.95 | H15: 444988335 | I15: 912.2272434
B16: ='Catchment Demand - Roads'!B14 -> 7 | C16: =IFERROR(VLOOKUP($B16,'Catchment Demand - Roads'!$B$8:$I$37,2,FALSE),"") -> 485138.4 | D16: =IFERROR(_xlfn.XLOOKUP(B16,'Catchment Demand - Roads'!$B$8:$B$24,'Catchment Demand - Roads'!$I$8:$I$24,,0),"") -> 27223.23688 | E16: 512361.6369 | F16: 803574600 | G16: 63069464.55 | H16: 866644064.5 | I16: 1691.469466
B17: ='Catchment Demand - Roads'!B15 -> 8 | C17: =IFERROR(VLOOKUP($B17,'Catchment Demand - Roads'!$B$8:$I$37,2,FALSE),"") -> 1353162.9 | D17: =IFERROR(_xlfn.XLOOKUP(B17,'Catchment Demand - Roads'!$B$8:$B$24,'Catchment Demand - Roads'!$I$8:$I$24,,0),"") -> 129596.5924 | E17: 1482759.492 | F17: 2549309000 | G17: 256503934.6 | H17: 2805812935 | I17: 1892.291332
B18: ='Catchment Demand - Roads'!B16 -> 9 | C18: =IFERROR(VLOOKUP($B18,'Catchment Demand - Roads'!$B$8:$I$37,2,FALSE),"") -> 253827.3 | D18: =IFERROR(_xlfn.XLOOKUP(B18,'Catchment Demand - Roads'!$B$8:$B$24,'Catchment Demand - Roads'!$I$8:$I$24,,0),"") -> 15468.75775 | E18: 269296.0578 | F18: 450564900 | G18: 19770125.31 | H18: 470335025.3 | I18: 1746.53513
B19: ='Catchment Demand - Roads'!B17 -> 10 | C19: =IFERROR(VLOOKUP($B19,'Catchment Demand - Roads'!$B$8:$I$37,2,FALSE),"") -> 447721.4 | D19: =IFERROR(_xlfn.XLOOKUP(B19,'Catchment Demand - Roads'!$B$8:$B$24,'Catchment Demand - Roads'!$I$8:$I$24,,0),"") -> 49429.70961 | E19: 497151.1096 | F19: 501010000 | G19: 59664166.38 | H19: 560674166.4 | I19: 1127.774143
B20: ='Catchment Demand - Roads'!B18 -> 11 | C20: =IFERROR(VLOOKUP($B20,'Catchment Demand - Roads'!$B$8:$I$37,2,FALSE),"") -> 278309.1 | D20: =IFERROR(_xlfn.XLOOKUP(B20,'Catchment Demand - Roads'!$B$8:$B$24,'Catchment Demand - Roads'!$I$8:$I$24,,0),"") -> 18862.33238 | E20: 297171.4324 | F20: 473892300 | G20: 40082073.66 | H20: 513974373.7 | I20: 1729.555124
B21: ='Catchment Demand - Roads'!B19 -> 12 | C21: =IFERROR(VLOOKUP($B21,'Catchment Demand - Roads'!$B$8:$I$37,2,FALSE),"") -> 121140.53 | D21: =IFERROR(_xlfn.XLOOKUP(B21,'Catchment Demand - Roads'!$B$8:$B$24,'Catchment Demand - Roads'!$I$8:$I$24,,0),"") -> 4724.80887 | E21: 125865.3389 | F21: 294794400 | G21: 10065637.77 | H21: 304860037.8 | I21: 2422.112716
B22: ='Catchment Demand - Roads'!B20 -> 13 | C22: =IFERROR(VLOOKUP($B22,'Catchment Demand - Roads'!$B$8:$I$37,2,FALSE),"") -> 243700.6 | D22: =IFERROR(_xlfn.XLOOKUP(B22,'Catchment Demand - Roads'!$B$8:$B$24,'Catchment Demand - Roads'!$I$8:$I$24,,0),"") -> 20709.7672 | E22: 264410.3672 | F22: 394158100 | G22: 28932594.43 | H22: 423090694.4 | I22: 1600.128992
B23: ='Catchment Demand - Roads'!B21 -> 14 | C23: =IFERROR(VLOOKUP($B23,'Catchment Demand - Roads'!$B$8:$I$37,2,FALSE),"") -> 454743.9 | D23: =IFERROR(_xlfn.XLOOKUP(B23,'Catchment Demand - Roads'!$B$8:$B$24,'Catchment Demand - Roads'!$I$8:$I$24,,0),"") -> 40601.88248 | E23: 495345.7825 | F23: 700254500 | G23: 45217766.62 | H23: 745472266.6 | I23: 1504.953293
B24: ='Catchment Demand - Roads'!B22 -> 15 | C24: =IFERROR(VLOOKUP($B24,'Catchment Demand - Roads'!$B$8:$I$37,2,FALSE),"") -> 524581.5 | D24: =IFERROR(_xlfn.XLOOKUP(B24,'Catchment Demand - Roads'!$B$8:$B$24,'Catchment Demand - Roads'!$I$8:$I$24,,0),"") -> 51209.47355 | E24: 575790.9735 | F24: 614578500 | G24: 49954207.85 | H24: 664532707.9 | I24: 1154.121441
B25: ='Catchment Demand - Roads'!B23 -> 16 | C25: =IFERROR(VLOOKUP($B25,'Catchment Demand - Roads'!$B$8:$I$37,2,FALSE),"") -> 756383.4 | D25: =IFERROR(_xlfn.XLOOKUP(B25,'Catchment Demand - Roads'!$B$8:$B$24,'Catchment Demand - Roads'!$I$8:$I$24,,0),"") -> 92683.06651 | E25: 849066.4665 | F25: 1090245900 | G25: 95798597.79 | H25: 1186044498 | I25: 1396.880627
B26: ='Catchment Demand - Roads'!B24 -> 17 | C26: =IFERROR(VLOOKUP($B26,'Catchment Demand - Roads'!$B$8:$I$37,2,FALSE),"") -> 74620.17 | D26: =IFERROR(_xlfn.XLOOKUP(B26,'Catchment Demand - Roads'!$B$8:$B$24,'Catchment Demand - Roads'!$I$8:$I$24,,0),"") -> 1161.190783 | E26: 75781.36078 | F26: 84950380 | G26: 4429525.413 | H26: 89379905.41 | I26: 1179.44445
B27: ='Catchment Demand - Roads'!B25 -> Citywide | C27: =SUM(C10:C26) -> 6904291.62 | D27: =SUM(D10:D26) -> 613820.5542 | E27: 7518112.174 | F27: =SUM(F10:F26) -> 10474332200 | G27: =SUM(G10:G26) -> 901540731.5 | H27: =SUM(H10:H26) -> 1.137587293e+10 | I27: 1513.128917
B31: Note: The roads SOW model utilises the BSTM outputs of apportioned cost and demand to determine a service cost per catchment as a NPV. The BSTM does not calculate the service cost based on the physical location of trunk roads in service catchments, but on the cost of the capacity consumed of trunk roads based on the trips using the roads. The costs are allocated to the zones they are generated by and generated from which are then aggregated to service catchments.
